﻿Department Family,Entity,Date,Expense Type,Expense Area,Supplier,Transaction Number,Amount,Item Description
BEIS,UKRI - AHRC,01/07/2022,T&S UK - Mileage,AHRC - Creative Industries,Unspecified,99762206,242.55,T&S UK - Mileage
BEIS,UKRI - AHRC,01/07/2022,T&S UK - Parking Tolls Congestion Charges,AHRC - Creative Industries,Unspecified,99762206,30.20,T&S UK - Parking Tolls Congestion Charges
BEIS,UKRI - AHRC,01/07/2022,T&S UK - Subsistence,AHRC - Creative Industries,Unspecified,99762206,16.49,T&S UK - Subsistence
BEIS,UKRI - AHRC,01/07/2022,T&S UK - Subsistence,AHRC - Creative Industries,Unspecified,99762206,3.55,T&S UK - Subsistence
BEIS,UKRI - AHRC,01/07/2022,T&S UK - Subsistence,AHRC - Creative Industries,Unspecified,99762206,29.90,T&S UK - Subsistence
BEIS,UKRI - AHRC,01/07/2022,T&S UK - Subsistence,AHRC - Creative Industries,Unspecified,99762206,5.00,T&S UK - Subsistence
BEIS,UKRI - AHRC,04/07/2022,Unspecified,Infrastruture Roadmap,Alexander Mann Solutions Ltd,99761283,1039.60,Legal & Professional Services
BEIS,UKRI - AHRC,04/07/2022,Non-staff travel and subsistance,Operations,Unspecified,99762255,90.10,Non-staff travel and subsistance
BEIS,UKRI - AHRC,05/07/2022,Fees (Including College Members),Operations,Unspecified,99762552,230.00,Fees (Including College Members)
BEIS,UKRI - AHRC,06/07/2022,T&S UK - Other Charges,Executive Office,Unspecified,99760551,68.98,T&S UK - Other Charges
BEIS,UKRI - AHRC,06/07/2022,Fees (Including College Members),Operations,Unspecified,99763332,115.00,Fees (Including College Members)
BEIS,UKRI - AHRC,06/07/2022,Fees (Including College Members),Operations,Unspecified,99763333,85.00,Fees (Including College Members)
BEIS,UKRI - AHRC,06/07/2022,Fees (Including College Members),Operations,Unspecified,99763334,85.00,Fees (Including College Members)
BEIS,UKRI - AHRC,07/07/2022,Unspecified,Skills Strategy,Careers Research and Advisory Centre (CRAC Ltd),99764687,61128.00,Legal & Professional Services
BEIS,UKRI - AHRC,11/07/2022,Financial Services,Corporate Services,CCI Credit Management Ltd,99642710,1.32,Financial Services
BEIS,UKRI - AHRC,12/07/2022,Non-staff travel and subsistance,Operations,Corporate Travel Management (North) Ltd,99767023,0.80,Non-staff travel and subsistance
BEIS,UKRI - AHRC,12/07/2022,Non-staff travel and subsistance,Operations,Corporate Travel Management (North) Ltd,99767023,105.30,Non-staff travel and subsistance
BEIS,UKRI - AHRC,12/07/2022,Non-staff travel and subsistance,Operations,Corporate Travel Management (North) Ltd,99767023,0.16,Non-staff travel and subsistance
BEIS,UKRI - AHRC,12/07/2022,Non-staff travel and subsistance,Secretariat,Corporate Travel Management (North) Ltd,99767023,0.80,Non-staff travel and subsistance
BEIS,UKRI - AHRC,12/07/2022,Non-staff travel and subsistance,Secretariat,Corporate Travel Management (North) Ltd,99767023,283.50,Non-staff travel and subsistance
BEIS,UKRI - AHRC,12/07/2022,Non-staff travel and subsistance,Secretariat,Corporate Travel Management (North) Ltd,99767023,0.80,Non-staff travel and subsistance
BEIS,UKRI - AHRC,12/07/2022,Non-staff travel and subsistance,Secretariat,Corporate Travel Management (North) Ltd,99767023,130.50,Non-staff travel and subsistance
BEIS,UKRI - AHRC,12/07/2022,Non-staff travel and subsistance,Secretariat,Corporate Travel Management (North) Ltd,99767023,0.32,Non-staff travel and subsistance
BEIS,UKRI - AHRC,12/07/2022,T&S UK - Accommodation,Industrial Strategy Challenge Fund (ISCF) - Creative Clusters,Corporate Travel Management (North) Ltd,99767023,0.80,T&S UK - Accommodation
BEIS,UKRI - AHRC,12/07/2022,T&S UK - Accommodation,Industrial Strategy Challenge Fund (ISCF) - Creative Clusters,Corporate Travel Management (North) Ltd,99767023,95.00,T&S UK - Accommodation
BEIS,UKRI - AHRC,12/07/2022,T&S UK - Accommodation,Industrial Strategy Challenge Fund (ISCF) - Creative Clusters,Corporate Travel Management (North) Ltd,99767023,0.80,T&S UK - Accommodation
BEIS,UKRI - AHRC,12/07/2022,T&S UK - Accommodation,Industrial Strategy Challenge Fund (ISCF) - Creative Clusters,Corporate Travel Management (North) Ltd,99767023,86.00,T&S UK - Accommodation
BEIS,UKRI - AHRC,12/07/2022,T&S UK - Accommodation,Industrial Strategy Challenge Fund (ISCF) - Creative Clusters,Corporate Travel Management (North) Ltd,99767023,0.80,T&S UK - Accommodation
BEIS,UKRI - AHRC,12/07/2022,T&S UK - Accommodation,Industrial Strategy Challenge Fund (ISCF) - Creative Clusters,Corporate Travel Management (North) Ltd,99767023,121.00,T&S UK - Accommodation
BEIS,UKRI - AHRC,12/07/2022,T&S UK - Accommodation,Industrial Strategy Challenge Fund (ISCF) - Creative Clusters,Corporate Travel Management (North) Ltd,99767023,0.80,T&S UK - Accommodation
BEIS,UKRI - AHRC,12/07/2022,T&S UK - Accommodation,Industrial Strategy Challenge Fund (ISCF) - Creative Clusters,Corporate Travel Management (North) Ltd,99767023,121.00,T&S UK - Accommodation
BEIS,UKRI - AHRC,12/07/2022,T&S UK - Accommodation,Industrial Strategy Challenge Fund (ISCF) - Creative Clusters,Corporate Travel Management (North) Ltd,99767023,0.64,T&S UK - Accommodation
BEIS,UKRI - AHRC,12/07/2022,T&S UK - Accommodation,Infrastructure Fund - CoSTAR,Corporate Travel Management (North) Ltd,99767023,0.80,T&S UK - Accommodation
BEIS,UKRI - AHRC,12/07/2022,T&S UK - Accommodation,Infrastructure Fund - CoSTAR,Corporate Travel Management (North) Ltd,99767023,61.00,T&S UK - Accommodation
BEIS,UKRI - AHRC,12/07/2022,T&S UK - Accommodation,Infrastructure Fund - CoSTAR,Corporate Travel Management (North) Ltd,99767023,0.80,T&S UK - Accommodation
BEIS,UKRI - AHRC,12/07/2022,T&S UK - Accommodation,Infrastructure Fund - CoSTAR,Corporate Travel Management (North) Ltd,99767023,61.00,T&S UK - Accommodation
BEIS,UKRI - AHRC,12/07/2022,T&S UK - Accommodation,Infrastructure Fund - CoSTAR,Corporate Travel Management (North) Ltd,99767023,0.80,T&S UK - Accommodation
BEIS,UKRI - AHRC,12/07/2022,T&S UK - Accommodation,Infrastructure Fund - CoSTAR,Corporate Travel Management (North) Ltd,99767023,116.85,T&S UK - Accommodation
BEIS,UKRI - AHRC,12/07/2022,T&S UK - Accommodation,Infrastructure Fund - CoSTAR,Corporate Travel Management (North) Ltd,99767023,0.48,T&S UK - Accommodation
BEIS,UKRI - AHRC,12/07/2022,T&S UK - Accommodation,Infrastruture Roadmap,Corporate Travel Management (North) Ltd,99767023,0.80,T&S UK - Accommodation
BEIS,UKRI - AHRC,12/07/2022,T&S UK - Accommodation,Infrastruture Roadmap,Corporate Travel Management (North) Ltd,99767023,0.80,T&S UK - Accommodation
BEIS,UKRI - AHRC,12/07/2022,T&S UK - Accommodation,Infrastruture Roadmap,Corporate Travel Management (North) Ltd,99767023,212.00,T&S UK - Accommodation
BEIS,UKRI - AHRC,12/07/2022,T&S UK - Accommodation,Infrastruture Roadmap,Corporate Travel Management (North) Ltd,99767023,0.32,T&S UK - Accommodation
BEIS,UKRI - AHRC,12/07/2022,T&S UK - Accommodation,SMT,Corporate Travel Management (North) Ltd,99767023,0.80,T&S UK - Accommodation
BEIS,UKRI - AHRC,12/07/2022,T&S UK - Accommodation,SMT,Corporate Travel Management (North) Ltd,99767023,144.00,T&S UK - Accommodation
BEIS,UKRI - AHRC,12/07/2022,T&S UK - Accommodation,SMT,Corporate Travel Management (North) Ltd,99767023,0.80,T&S UK - Accommodation
BEIS,UKRI - AHRC,12/07/2022,T&S UK - Accommodation,SMT,Corporate Travel Management (North) Ltd,99767023,341.50,T&S UK - Accommodation
BEIS,UKRI - AHRC,12/07/2022,T&S UK - Accommodation,SMT,Corporate Travel Management (North) Ltd,99767023,0.32,T&S UK - Accommodation
BEIS,UKRI - AHRC,12/07/2022,T&S UK - Accommodation,Secretariat,Corporate Travel Management (North) Ltd,99767023,0.80,T&S UK - Accommodation
BEIS,UKRI - AHRC,12/07/2022,T&S UK - Accommodation,Secretariat,Corporate Travel Management (North) Ltd,99767023,102.00,T&S UK - Accommodation
BEIS,UKRI - AHRC,12/07/2022,T&S UK - Accommodation,Secretariat,Corporate Travel Management (North) Ltd,99767023,0.80,T&S UK - Accommodation
BEIS,UKRI - AHRC,12/07/2022,T&S UK - Accommodation,Secretariat,Corporate Travel Management (North) Ltd,99767023,102.00,T&S UK - Accommodation
BEIS,UKRI - AHRC,12/07/2022,T&S UK - Accommodation,Secretariat,Corporate Travel Management (North) Ltd,99767023,0.32,T&S UK - Accommodation
BEIS,UKRI - AHRC,12/07/2022,T&S UK - Flights,Industrial Strategy Challenge Fund (ISCF) - Creative Clusters,Corporate Travel Management (North) Ltd,99767023,4.50,T&S UK - Flights
BEIS,UKRI - AHRC,12/07/2022,T&S UK - Flights,Industrial Strategy Challenge Fund (ISCF) - Creative Clusters,Corporate Travel Management (North) Ltd,99767023,63.99,T&S UK - Flights
BEIS,UKRI - AHRC,12/07/2022,T&S UK - Flights,Industrial Strategy Challenge Fund (ISCF) - Creative Clusters,Corporate Travel Management (North) Ltd,99767023,0.90,T&S UK - Flights
BEIS,UKRI - AHRC,12/07/2022,T&S UK - Flights,Infrastruture Roadmap,Corporate Travel Management (North) Ltd,99767023,2.50,T&S UK - Flights
BEIS,UKRI - AHRC,12/07/2022,T&S UK - Flights,Infrastruture Roadmap,Corporate Travel Management (North) Ltd,99767023,344.10,T&S UK - Flights
BEIS,UKRI - AHRC,12/07/2022,T&S UK - Public Transport,AHRC - Creative Industries,Corporate Travel Management (North) Ltd,99767023,0.25,T&S UK - Public Transport
BEIS,UKRI - AHRC,12/07/2022,T&S UK - Public Transport,AHRC - Creative Industries,Corporate Travel Management (North) Ltd,99767023,117.00,T&S UK - Public Transport
BEIS,UKRI - AHRC,12/07/2022,T&S UK - Public Transport,AI&Design,Corporate Travel Management (North) Ltd,99767023,0.25,T&S UK - Public Transport
BEIS,UKRI - AHRC,12/07/2022,T&S UK - Public Transport,AI&Design,Corporate Travel Management (North) Ltd,99767023,195.00,T&S UK - Public Transport
BEIS,UKRI - AHRC,12/07/2022,T&S UK - Public Transport,AI&Design,Corporate Travel Management (North) Ltd,99767023,0.25,T&S UK - Public Transport
BEIS,UKRI - AHRC,12/07/2022,T&S UK - Public Transport,AI&Design,Corporate Travel Management (North) Ltd,99767023,180.80,T&S UK - Public Transport
BEIS,UKRI - AHRC,12/07/2022,T&S UK - Public Transport,AI&Design,Corporate Travel Management (North) Ltd,99767023,0.25,T&S UK - Public Transport
BEIS,UKRI - AHRC,12/07/2022,T&S UK - Public Transport,AI&Design,Corporate Travel Management (North) Ltd,99767023,158.70,T&S UK - Public Transport
BEIS,UKRI - AHRC,12/07/2022,T&S UK - Public Transport,AI&Design,Corporate Travel Management (North) Ltd,99767023,0.25,T&S UK - Public Transport
BEIS,UKRI - AHRC,12/07/2022,T&S UK - Public Transport,AI&Design,Corporate Travel Management (North) Ltd,99767023,67.20,T&S UK - Public Transport
BEIS,UKRI - AHRC,12/07/2022,T&S UK - Public Transport,FIC- US,Corporate Travel Management (North) Ltd,99767023,0.25,T&S UK - Public Transport
BEIS,UKRI - AHRC,12/07/2022,T&S UK - Public Transport,FIC- US,Corporate Travel Management (North) Ltd,99767023,67.55,T&S UK - Public Transport
BEIS,UKRI - AHRC,12/07/2022,T&S UK - Public Transport,Industrial Strategy Challenge Fund (ISCF) - Creative Clusters,Corporate Travel Management (North) Ltd,99767023,0.25,T&S UK - Public Transport
BEIS,UKRI - AHRC,12/07/2022,T&S UK - Public Transport,Industrial Strategy Challenge Fund (ISCF) - Creative Clusters,Corporate Travel Management (North) Ltd,99767023,167.60,T&S UK - Public Transport
BEIS,UKRI - AHRC,12/07/2022,T&S UK - Public Transport,Industrial Strategy Challenge Fund (ISCF) - Creative Clusters,Corporate Travel Management (North) Ltd,99767023,-27.20,T&S UK - Public Transport
BEIS,UKRI - AHRC,12/07/2022,T&S UK - Public Transport,Infrastructure Fund - CoSTAR,Corporate Travel Management (North) Ltd,99767023,0.25,T&S UK - Public Transport
BEIS,UKRI - AHRC,12/07/2022,T&S UK - Public Transport,Infrastructure Fund - CoSTAR,Corporate Travel Management (North) Ltd,99767023,73.00,T&S UK - Public Transport
BEIS,UKRI - AHRC,12/07/2022,T&S UK - Public Transport,Infrastructure Fund - CoSTAR,Corporate Travel Management (North) Ltd,99767023,0.25,T&S UK - Public Transport
BEIS,UKRI - AHRC,12/07/2022,T&S UK - Public Transport,Infrastructure Fund - CoSTAR,Corporate Travel Management (North) Ltd,99767023,66.90,T&S UK - Public Transport
BEIS,UKRI - AHRC,12/07/2022,T&S UK - Public Transport,Infrastruture Roadmap,Corporate Travel Management (North) Ltd,99767023,0.25,T&S UK - Public Transport
BEIS,UKRI - AHRC,12/07/2022,T&S UK - Public Transport,Infrastruture Roadmap,Corporate Travel Management (North) Ltd,99767023,66.20,T&S UK - Public Transport
BEIS,UKRI - AHRC,12/07/2022,T&S UK - Public Transport,International Partnership and Engagement,Corporate Travel Management (North) Ltd,99767023,0.25,T&S UK - Public Transport
BEIS,UKRI - AHRC,12/07/2022,T&S UK - Public Transport,International Partnership and Engagement,Corporate Travel Management (North) Ltd,99767023,98.90,T&S UK - Public Transport
BEIS,UKRI - AHRC,12/07/2022,T&S UK - Public Transport,Operations,Corporate Travel Management (North) Ltd,99767023,0.25,T&S UK - Public Transport
BEIS,UKRI - AHRC,12/07/2022,T&S UK - Public Transport,Operations,Corporate Travel Management (North) Ltd,99767023,26.20,T&S UK - Public Transport
BEIS,UKRI - AHRC,12/07/2022,T&S UK - Public Transport,Operations,Corporate Travel Management (North) Ltd,99767023,0.25,T&S UK - Public Transport
BEIS,UKRI - AHRC,12/07/2022,T&S UK - Public Transport,Operations,Corporate Travel Management (North) Ltd,99767023,26.20,T&S UK - Public Transport
BEIS,UKRI - AHRC,12/07/2022,T&S UK - Public Transport,Operations,Corporate Travel Management (North) Ltd,99767023,0.25,T&S UK - Public Transport
BEIS,UKRI - AHRC,12/07/2022,T&S UK - Public Transport,Operations,Corporate Travel Management (North) Ltd,99767023,8.70,T&S UK - Public Transport
BEIS,UKRI - AHRC,12/07/2022,T&S UK - Public Transport,Public Engagement,Corporate Travel Management (North) Ltd,99767023,0.25,T&S UK - Public Transport
BEIS,UKRI - AHRC,12/07/2022,T&S UK - Public Transport,Public Engagement,Corporate Travel Management (North) Ltd,99767023,13.10,T&S UK - Public Transport
BEIS,UKRI - AHRC,12/07/2022,T&S UK - Public Transport,SMT,Corporate Travel Management (North) Ltd,99767023,0.25,T&S UK - Public Transport
BEIS,UKRI - AHRC,12/07/2022,T&S UK - Public Transport,SMT,Corporate Travel Management (North) Ltd,99767023,63.20,T&S UK - Public Transport
BEIS,UKRI - AHRC,12/07/2022,T&S UK - Public Transport,SMT,Corporate Travel Management (North) Ltd,99767023,0.25,T&S UK - Public Transport
BEIS,UKRI - AHRC,12/07/2022,T&S UK - Public Transport,SMT,Corporate Travel Management (North) Ltd,99767023,37.20,T&S UK - Public Transport
BEIS,UKRI - AHRC,12/07/2022,T&S UK - Public Transport,SMT,Corporate Travel Management (North) Ltd,99767023,0.25,T&S UK - Public Transport
BEIS,UKRI - AHRC,12/07/2022,T&S UK - Public Transport,SMT,Corporate Travel Management (North) Ltd,99767023,57.20,T&S UK - Public Transport
BEIS,UKRI - AHRC,12/07/2022,T&S UK - Public Transport,SMT,Corporate Travel Management (North) Ltd,99767023,0.50,T&S UK - Public Transport
BEIS,UKRI - AHRC,12/07/2022,T&S UK - Public Transport,SMT,Corporate Travel Management (North) Ltd,99767023,6.30,T&S UK - Public Transport
BEIS,UKRI - AHRC,12/07/2022,T&S UK - Public Transport,SMT,Corporate Travel Management (North) Ltd,99767023,16.00,T&S UK - Public Transport
BEIS,UKRI - AHRC,12/07/2022,T&S UK - Public Transport,SMT,Corporate Travel Management (North) Ltd,99767023,0.25,T&S UK - Public Transport
BEIS,UKRI - AHRC,12/07/2022,T&S UK - Public Transport,SMT,Corporate Travel Management (North) Ltd,99767023,71.40,T&S UK - Public Transport
BEIS,UKRI - AHRC,12/07/2022,T&S UK - Public Transport,SMT,Corporate Travel Management (North) Ltd,99767023,0.25,T&S UK - Public Transport
BEIS,UKRI - AHRC,12/07/2022,T&S UK - Public Transport,SMT,Corporate Travel Management (North) Ltd,99767023,12.00,T&S UK - Public Transport
BEIS,UKRI - AHRC,12/07/2022,T&S UK - Public Transport,SMT,Corporate Travel Management (North) Ltd,99767023,0.25,T&S UK - Public Transport
BEIS,UKRI - AHRC,12/07/2022,T&S UK - Public Transport,SMT,Corporate Travel Management (North) Ltd,99767023,31.00,T&S UK - Public Transport
BEIS,UKRI - AHRC,12/07/2022,T&S UK - Public Transport,SMT,Corporate Travel Management (North) Ltd,99767023,0.25,T&S UK - Public Transport
BEIS,UKRI - AHRC,12/07/2022,T&S UK - Public Transport,SMT,Corporate Travel Management (North) Ltd,99767023,102.10,T&S UK - Public Transport
BEIS,UKRI - AHRC,12/07/2022,T&S UK - Public Transport,SMT,Corporate Travel Management (North) Ltd,99767023,5.00,T&S UK - Public Transport
BEIS,UKRI - AHRC,12/07/2022,T&S UK - Public Transport,SMT,Corporate Travel Management (North) Ltd,99767023,-45.90,T&S UK - Public Transport
BEIS,UKRI - AHRC,12/07/2022,T&S UK - Public Transport,SMT,Corporate Travel Management (North) Ltd,99767023,0.25,T&S UK - Public Transport
BEIS,UKRI - AHRC,12/07/2022,T&S UK - Public Transport,SMT,Corporate Travel Management (North) Ltd,99767023,57.20,T&S UK - Public Transport
BEIS,UKRI - AHRC,12/07/2022,T&S UK - Public Transport,SMT,Corporate Travel Management (North) Ltd,99767023,0.75,T&S UK - Public Transport
BEIS,UKRI - AHRC,12/07/2022,T&S UK - Public Transport,SMT,Corporate Travel Management (North) Ltd,99767023,9.30,T&S UK - Public Transport
BEIS,UKRI - AHRC,12/07/2022,T&S UK - Public Transport,SMT,Corporate Travel Management (North) Ltd,99767023,32.70,T&S UK - Public Transport
BEIS,UKRI - AHRC,12/07/2022,T&S UK - Public Transport,SMT,Corporate Travel Management (North) Ltd,99767023,13.00,T&S UK - Public Transport
BEIS,UKRI - AHRC,12/07/2022,T&S UK - Public Transport,SMT,Corporate Travel Management (North) Ltd,99767023,0.25,T&S UK - Public Transport
BEIS,UKRI - AHRC,12/07/2022,T&S UK - Public Transport,SMT,Corporate Travel Management (North) Ltd,99767023,52.40,T&S UK - Public Transport
BEIS,UKRI - AHRC,12/07/2022,T&S UK - Public Transport,SMT,Corporate Travel Management (North) Ltd,99767023,0.25,T&S UK - Public Transport
BEIS,UKRI - AHRC,12/07/2022,T&S UK - Public Transport,SMT,Corporate Travel Management (North) Ltd,99767023,57.20,T&S UK - Public Transport
BEIS,UKRI - AHRC,12/07/2022,T&S UK - Public Transport,SMT,Corporate Travel Management (North) Ltd,99767023,0.25,T&S UK - Public Transport
BEIS,UKRI - AHRC,12/07/2022,T&S UK - Public Transport,SMT,Corporate Travel Management (North) Ltd,99767023,52.40,T&S UK - Public Transport
BEIS,UKRI - AHRC,12/07/2022,T&S UK - Public Transport,SMT,Corporate Travel Management (North) Ltd,99767023,10.00,T&S UK - Public Transport
BEIS,UKRI - AHRC,12/07/2022,T&S UK - Public Transport,SMT,Corporate Travel Management (North) Ltd,99767023,-31.90,T&S UK - Public Transport
BEIS,UKRI - AHRC,12/07/2022,T&S UK - Public Transport,SMT,Corporate Travel Management (North) Ltd,99767023,0.25,T&S UK - Public Transport
BEIS,UKRI - AHRC,12/07/2022,T&S UK - Public Transport,SMT,Corporate Travel Management (North) Ltd,99767023,57.20,T&S UK - Public Transport
BEIS,UKRI - AHRC,12/07/2022,T&S UK - Public Transport,SMT,Corporate Travel Management (North) Ltd,99767023,0.25,T&S UK - Public Transport
BEIS,UKRI - AHRC,12/07/2022,T&S UK - Public Transport,SMT,Corporate Travel Management (North) Ltd,99767023,57.20,T&S UK - Public Transport
BEIS,UKRI - AHRC,12/07/2022,T&S UK - Public Transport,SMT,Corporate Travel Management (North) Ltd,99767023,0.25,T&S UK - Public Transport
BEIS,UKRI - AHRC,12/07/2022,T&S UK - Public Transport,SMT,Corporate Travel Management (North) Ltd,99767023,57.20,T&S UK - Public Transport
BEIS,UKRI - AHRC,12/07/2022,T&S UK - Public Transport,SMT,Corporate Travel Management (North) Ltd,99767023,0.50,T&S UK - Public Transport
BEIS,UKRI - AHRC,12/07/2022,T&S UK - Public Transport,SMT,Corporate Travel Management (North) Ltd,99767023,14.40,T&S UK - Public Transport
BEIS,UKRI - AHRC,12/07/2022,T&S UK - Public Transport,SMT,Corporate Travel Management (North) Ltd,99767023,32.20,T&S UK - Public Transport
BEIS,UKRI - AHRC,12/07/2022,T&S UK - Public Transport,SMT,Corporate Travel Management (North) Ltd,99767023,0.50,T&S UK - Public Transport
BEIS,UKRI - AHRC,12/07/2022,T&S UK - Public Transport,SMT,Corporate Travel Management (North) Ltd,99767023,50.90,T&S UK - Public Transport
BEIS,UKRI - AHRC,12/07/2022,T&S UK - Public Transport,SMT,Corporate Travel Management (North) Ltd,99767023,50.90,T&S UK - Public Transport
BEIS,UKRI - AHRC,12/07/2022,T&S UK - Public Transport,Secretariat,Corporate Travel Management (North) Ltd,99767023,0.13,T&S UK - Public Transport
BEIS,UKRI - AHRC,12/07/2022,T&S UK - Public Transport,Secretariat,Corporate Travel Management (North) Ltd,99767023,88.80,T&S UK - Public Transport
BEIS,UKRI - AHRC,12/07/2022,T&S UK - Public Transport,Secretariat,Corporate Travel Management (North) Ltd,99767023,0.12,T&S UK - Public Transport
BEIS,UKRI - AHRC,12/07/2022,T&S UK - Public Transport,Secretariat,Corporate Travel Management (North) Ltd,99767023,88.80,T&S UK - Public Transport
BEIS,UKRI - AHRC,12/07/2022,Unspecified,Infrastruture Roadmap,Alexander Mann Solutions Ltd,99767117,346.54,Legal & Professional Services
BEIS,UKRI - AHRC,12/07/2022,T&S UK - Other Charges,Operations,Unspecified,99767237,29.99,T&S UK - Other Charges
BEIS,UKRI - AHRC,12/07/2022,Fees (Including College Members),Infrastructure Fund - CoSTAR,Unspecified,99768020,170.00,Fees (Including College Members)
BEIS,UKRI - AHRC,13/07/2022,Unspecified,Balance Sheet,HM Revenue & Customs,99768006,66471.01,NI Payable Salaries
BEIS,UKRI - AHRC,13/07/2022,Unspecified,Balance Sheet,HM Revenue & Customs,99768007,47829.54,PAYE Payable Salaries
BEIS,UKRI - AHRC,13/07/2022,Unspecified,Balance Sheet,HM Revenue & Customs,99768008,5142.00,Student Loans
BEIS,UKRI - AHRC,13/07/2022,Unspecified,Corporate Services,HM Revenue & Customs,99768009,1682.00,Apprenticeship Levy
BEIS,UKRI - AHRC,14/07/2022,Voluntary Deductions,Balance Sheet,Swindon Office Sports and Social Club,99768010,26.00,Voluntary Deductions
BEIS,UKRI - AHRC,14/07/2022,Union Deductions,Balance Sheet,PCS Union,99768011,58.67,Union Deductions
BEIS,UKRI - AHRC,14/07/2022,Unspecified,Balance Sheet,Unspecified,99768012,9482.38,Ees Pension Deductions - JSS
BEIS,UKRI - AHRC,14/07/2022,Unspecified,Balance Sheet,Unspecified,99768013,39751.24,Ers Pension Deductions - JSS
BEIS,UKRI - AHRC,14/07/2022,Unspecified,Balance Sheet,Scottish Widows,99768014,193.37,Partnership Pension Deductions
BEIS,UKRI - AHRC,14/07/2022,Unspecified,Balance Sheet,Cabinet Office RM Shared Services,99768015,54207.07,Ees Pension Deductions - MyCSP
BEIS,UKRI - AHRC,14/07/2022,Unspecified,Balance Sheet,Cabinet Office RM Shared Services,99768016,11721.26,Ers Pension Deductions - MyCSP
BEIS,UKRI - AHRC,14/07/2022,Unspecified,Balance Sheet,Unspecified,99768017,156.72,Ees Pension Deductions - MRC
BEIS,UKRI - AHRC,14/07/2022,Unspecified,Balance Sheet,Unspecified,99768018,385.76,Ers Pension Deductions - MRC
BEIS,UKRI - AHRC,14/07/2022,Nursery Deductions,Balance Sheet,UKRI - Engineering & Physical Sciences Research Council,99768019,1013.00,Nursery Deductions
BEIS,UKRI - AHRC,14/07/2022,Non-staff travel and subsistance,Operations,Unspecified,99769005,37.90,Non-staff travel and subsistance
BEIS,UKRI - AHRC,14/07/2022,Fees (Including College Members),Operations,Unspecified,99769006,230.00,Fees (Including College Members)
BEIS,UKRI - AHRC,14/07/2022,Non-staff travel and subsistance,Operations,Unspecified,99769007,118.50,Non-staff travel and subsistance
BEIS,UKRI - AHRC,15/07/2022,Fees (Including College Members),Operations,Unspecified,99769444,230.00,Fees (Including College Members)
BEIS,UKRI - AHRC,15/07/2022,Fees (Including College Members),Operations,Unspecified,99769445,170.00,Fees (Including College Members)
BEIS,UKRI - AHRC,15/07/2022,Fees (Including College Members),Operations,Unspecified,99769446,170.00,Fees (Including College Members)
BEIS,UKRI - AHRC,15/07/2022,Fees (Including College Members),Operations,Unspecified,99769447,170.00,Fees (Including College Members)
BEIS,UKRI - AHRC,15/07/2022,Fees (Including College Members),Operations,Unspecified,99769448,170.00,Fees (Including College Members)
BEIS,UKRI - AHRC,15/07/2022,Fees (Including College Members),Operations,Unspecified,99769449,170.00,Fees (Including College Members)
BEIS,UKRI - AHRC,15/07/2022,Fees (Including College Members),Operations,Unspecified,99769450,170.00,Fees (Including College Members)
BEIS,UKRI - AHRC,15/07/2022,Fees (Including College Members),Operations,Unspecified,99769464,170.00,Fees (Including College Members)
BEIS,UKRI - AHRC,15/07/2022,Non-staff travel and subsistance,Operations,Unspecified,99769465,71.30,Non-staff travel and subsistance
BEIS,UKRI - AHRC,15/07/2022,Non-staff travel and subsistance,Operations,Unspecified,99769466,112.10,Non-staff travel and subsistance
BEIS,UKRI - AHRC,18/07/2022,Training Awards - Postgraduates,Collabrative Doctoral Grants - Block Payment,University of Sussex,99766306,5539.75,Training Awards - Postgraduates
BEIS,UKRI - AHRC,18/07/2022,Training Awards - Postgraduates,Collabrative Doctoral Grants - Block Payment,University of Southampton GRANT,99766307,5539.75,Training Awards - Postgraduates
BEIS,UKRI - AHRC,18/07/2022,Training Awards - Postgraduates,Collabrative Doctoral Grants - Block Payment,University of Cambridge,99766308,5539.75,Training Awards - Postgraduates
BEIS,UKRI - AHRC,18/07/2022,Training Awards - Postgraduates,Collabrative Doctoral Grants - Block Payment,Bournemouth University,99766309,5539.75,Training Awards - Postgraduates
BEIS,UKRI - AHRC,18/07/2022,Training Awards - Postgraduates,Collabrative Doctoral Grants - Block Payment,Bournemouth University,99766310,5539.75,Training Awards - Postgraduates
BEIS,UKRI - AHRC,18/07/2022,Training Awards - Postgraduates,Collabrative Doctoral Grants - Block Payment,Birkbeck College,99766311,5789.75,Training Awards - Postgraduates
BEIS,UKRI - AHRC,18/07/2022,Training Awards - Postgraduates,Collabrative Doctoral Grants - Block Payment,King's College London,99766312,5789.75,Training Awards - Postgraduates
BEIS,UKRI - AHRC,18/07/2022,Training Awards - Postgraduates,Collabrative Doctoral Grants - Block Payment,University of Warwick,99766313,5539.75,Training Awards - Postgraduates
BEIS,UKRI - AHRC,18/07/2022,Training Awards - Postgraduates,Collabrative Doctoral Grants - Block Payment,University of York,99766314,5289.75,Training Awards - Postgraduates
BEIS,UKRI - AHRC,18/07/2022,Training Awards - Postgraduates,Collabrative Doctoral Grants - Block Payment,University of Oxford,99766315,5539.75,Training Awards - Postgraduates
BEIS,UKRI - AHRC,18/07/2022,Training Awards - Postgraduates,Collabrative Doctoral Grants - Block Payment,Birkbeck College,99766316,5789.75,Training Awards - Postgraduates
BEIS,UKRI - AHRC,18/07/2022,Training Awards - Postgraduates,Collabrative Doctoral Grants - Block Payment,University of Leicester,99766317,5539.75,Training Awards - Postgraduates
BEIS,UKRI - AHRC,18/07/2022,Training Awards - Postgraduates,Collabrative Doctoral Grants - Block Payment,University of Leicester,99766317,5539.75,Training Awards - Postgraduates
BEIS,UKRI - AHRC,18/07/2022,Training Awards - Postgraduates,Collabrative Doctoral Grants - Block Payment,University of Durham,99766318,5539.75,Training Awards - Postgraduates
BEIS,UKRI - AHRC,18/07/2022,Training Awards - Postgraduates,Collabrative Doctoral Grants - Block Payment,University of Edinburgh,99766319,5289.75,Training Awards - Postgraduates
BEIS,UKRI - AHRC,18/07/2022,Training Awards - Postgraduates,Collabrative Doctoral Grants - Block Payment,University College London,99766320,5789.75,Training Awards - Postgraduates
BEIS,UKRI - AHRC,18/07/2022,Training Awards - Postgraduates,Collabrative Doctoral Grants - Block Payment,Birkbeck College,99766321,5789.75,Training Awards - Postgraduates
BEIS,UKRI - AHRC,18/07/2022,Training Awards - Postgraduates,Collabrative Doctoral Grants - Block Payment,University of Southampton GRANT,99766322,5539.75,Training Awards - Postgraduates
BEIS,UKRI - AHRC,18/07/2022,Training Awards - Postgraduates,Collabrative Doctoral Grants - Block Payment,University College London,99766323,5789.75,Training Awards - Postgraduates
BEIS,UKRI - AHRC,18/07/2022,Training Awards - Postgraduates,Collabrative Doctoral Grants - Block Payment,University College London,99766324,5789.75,Training Awards - Postgraduates
BEIS,UKRI - AHRC,18/07/2022,Training Awards - Postgraduates,Collabrative Doctoral Grants - Block Payment,University of Edinburgh,99766325,5289.75,Training Awards - Postgraduates
BEIS,UKRI - AHRC,18/07/2022,Training Awards - Postgraduates,Collabrative Doctoral Grants - Block Payment,Courtauld Institute of Art,99766326,5789.75,Training Awards - Postgraduates
BEIS,UKRI - AHRC,18/07/2022,Training Awards - Postgraduates,Collabrative Doctoral Grants - Block Payment,University of Southampton GRANT,99766327,5539.75,Training Awards - Postgraduates
BEIS,UKRI - AHRC,18/07/2022,Training Awards - Postgraduates,Collabrative Doctoral Grants - Block Payment,University of Exeter,99766328,5539.75,Training Awards - Postgraduates
BEIS,UKRI - AHRC,18/07/2022,Training Awards - Postgraduates,Collabrative Doctoral Grants - Block Payment,University of Exeter,99766329,5539.75,Training Awards - Postgraduates
BEIS,UKRI - AHRC,18/07/2022,Training Awards - Postgraduates,Collabrative Doctoral Grants - Block Payment,University of Newcastle Upon Tyne,99766330,5539.75,Training Awards - Postgraduates
BEIS,UKRI - AHRC,18/07/2022,Training Awards - Postgraduates,Collabrative Doctoral Grants - Block Payment,"Royal Holloway, University of London",99766331,5789.75,Training Awards - Postgraduates
BEIS,UKRI - AHRC,18/07/2022,Training Awards - Postgraduates,Collabrative Doctoral Grants - Block Payment,University of Hull,99766332,5539.75,Training Awards - Postgraduates
BEIS,UKRI - AHRC,18/07/2022,Training Awards - Postgraduates,Collabrative Doctoral Grants - Block Payment,University of Exeter,99766333,5289.75,Training Awards - Postgraduates
BEIS,UKRI - AHRC,18/07/2022,Training Awards - Postgraduates,Collabrative Doctoral Grants - Block Payment,University of Essex,99766334,5539.75,Training Awards - Postgraduates
BEIS,UKRI - AHRC,18/07/2022,Training Awards - Postgraduates,Collabrative Doctoral Grants - Block Payment,Edge Hill University College,99766335,5539.75,Training Awards - Postgraduates
BEIS,UKRI - AHRC,18/07/2022,Training Awards - Postgraduates,Collabrative Doctoral Grants - Block Payment,Royal Northern College of Music,99766336,5539.75,Training Awards - Postgraduates
BEIS,UKRI - AHRC,18/07/2022,Training Awards - Postgraduates,Collabrative Doctoral Grants - Block Payment,University of Liverpool,99766337,5539.75,Training Awards - Postgraduates
BEIS,UKRI - AHRC,18/07/2022,Training Awards - Postgraduates,Collabrative Doctoral Grants - Block Payment,University of Liverpool,99766337,5539.75,Training Awards - Postgraduates
BEIS,UKRI - AHRC,18/07/2022,Training Awards - Postgraduates,Collabrative Doctoral Grants - Block Payment,University of East Anglia,99766338,5539.75,Training Awards - Postgraduates
BEIS,UKRI - AHRC,18/07/2022,Training Awards - Postgraduates,Collabrative Doctoral Grants - Block Payment,University of Edinburgh,99766339,5289.75,Training Awards - Postgraduates
BEIS,UKRI - AHRC,18/07/2022,Training Awards - Postgraduates,Collabrative Doctoral Grants - Block Payment,University of Brighton,99766340,5289.75,Training Awards - Postgraduates
BEIS,UKRI - AHRC,18/07/2022,Training Awards - Postgraduates,Collabrative Doctoral Grants - Block Payment,The University of Manchester,99766341,5539.75,Training Awards - Postgraduates
BEIS,UKRI - AHRC,18/07/2022,Training Awards - Postgraduates,Collabrative Doctoral Grants - Block Payment,University of York,99766342,5531.00,Training Awards - Postgraduates
BEIS,UKRI - AHRC,18/07/2022,Training Awards - Postgraduates,Collabrative Doctoral Grants - Block Payment,Cardiff University,99766343,5281.00,Training Awards - Postgraduates
BEIS,UKRI - AHRC,18/07/2022,Training Awards - Postgraduates,Collabrative Doctoral Grants - Block Payment,University of Sheffield,99766344,5531.00,Training Awards - Postgraduates
BEIS,UKRI - AHRC,18/07/2022,Training Awards - Postgraduates,Collabrative Doctoral Grants - Block Payment,Heriot Watt University,99766345,5281.00,Training Awards - Postgraduates
BEIS,UKRI - AHRC,18/07/2022,Training Awards - Postgraduates,Collabrative Doctoral Grants - Block Payment,University of Durham,99766346,5531.00,Training Awards - Postgraduates
BEIS,UKRI - AHRC,18/07/2022,Training Awards - Postgraduates,Collabrative Doctoral Grants - Block Payment,University of East Anglia,99766347,5281.00,Training Awards - Postgraduates
BEIS,UKRI - AHRC,18/07/2022,Training Awards - Postgraduates,Collabrative Doctoral Grants - Block Payment,University of East Anglia,99766348,5531.00,Training Awards - Postgraduates
BEIS,UKRI - AHRC,18/07/2022,Training Awards - Postgraduates,Collabrative Doctoral Grants - Block Payment,University of Reading,99766349,5281.00,Training Awards - Postgraduates
BEIS,UKRI - AHRC,18/07/2022,Training Awards - Postgraduates,Collabrative Doctoral Grants - Block Payment,University of Bristol GRANT,99766350,5531.00,Training Awards - Postgraduates
BEIS,UKRI - AHRC,18/07/2022,Training Awards - Postgraduates,Collabrative Doctoral Grants - Block Payment,Birkbeck College,99766351,5781.00,Training Awards - Postgraduates
BEIS,UKRI - AHRC,18/07/2022,Training Awards - Postgraduates,Collabrative Doctoral Grants - Block Payment,University of Lincoln,99766352,5531.00,Training Awards - Postgraduates
BEIS,UKRI - AHRC,18/07/2022,Training Awards - Postgraduates,Collabrative Doctoral Grants - Block Payment,"Royal Holloway, University of London",99766353,5781.00,Training Awards - Postgraduates
BEIS,UKRI - AHRC,18/07/2022,Training Awards - Postgraduates,Collabrative Doctoral Grants - Block Payment,University of Cambridge,99766354,5531.00,Training Awards - Postgraduates
BEIS,UKRI - AHRC,18/07/2022,Training Awards - Postgraduates,Collabrative Doctoral Grants - Block Payment,University of Sheffield,99766355,5281.00,Training Awards - Postgraduates
BEIS,UKRI - AHRC,18/07/2022,Training Awards - Postgraduates,Collabrative Doctoral Grants - Block Payment,University of Cambridge,99766356,5531.00,Training Awards - Postgraduates
BEIS,UKRI - AHRC,18/07/2022,Training Awards - Postgraduates,Collabrative Doctoral Grants - Block Payment,Queen Mary University of London,99766357,5781.00,Training Awards - Postgraduates
BEIS,UKRI - AHRC,18/07/2022,Training Awards - Postgraduates,Collabrative Doctoral Grants - Block Payment,Birkbeck College,99766358,5781.00,Training Awards - Postgraduates
BEIS,UKRI - AHRC,18/07/2022,Training Awards - Postgraduates,Collabrative Doctoral Grants - Block Payment,University of Reading,99766359,5531.00,Training Awards - Postgraduates
BEIS,UKRI - AHRC,18/07/2022,Training Awards - Postgraduates,Collabrative Doctoral Grants - Block Payment,Birkbeck College,99766360,5781.00,Training Awards - Postgraduates
BEIS,UKRI - AHRC,18/07/2022,Training Awards - Postgraduates,Collabrative Doctoral Grants - Block Payment,University of Bath,99766361,5281.00,Training Awards - Postgraduates
BEIS,UKRI - AHRC,18/07/2022,Training Awards - Postgraduates,Collabrative Doctoral Grants - Block Payment,Queen Mary University of London,99766362,5781.00,Training Awards - Postgraduates
BEIS,UKRI - AHRC,18/07/2022,Training Awards - Postgraduates,Collabrative Doctoral Grants - Block Payment,University of Durham,99766363,5531.00,Training Awards - Postgraduates
BEIS,UKRI - AHRC,18/07/2022,Training Awards - Postgraduates,Collabrative Doctoral Grants - Block Payment,Manchester Metropolitan University,99766364,5281.00,Training Awards - Postgraduates
BEIS,UKRI - AHRC,18/07/2022,Training Awards - Postgraduates,Collabrative Doctoral Grants - Block Payment,Birkbeck College,99766365,5781.00,Training Awards - Postgraduates
BEIS,UKRI - AHRC,18/07/2022,Training Awards - Postgraduates,Collabrative Doctoral Grants - Block Payment,Birkbeck College,99766366,5781.00,Training Awards - Postgraduates
BEIS,UKRI - AHRC,18/07/2022,Training Awards - Postgraduates,Collabrative Doctoral Grants - Block Payment,University of London,99766367,5781.00,Training Awards - Postgraduates
BEIS,UKRI - AHRC,18/07/2022,Training Awards - Postgraduates,Collabrative Doctoral Grants - Block Payment,University of London,99766368,5781.00,Training Awards - Postgraduates
BEIS,UKRI - AHRC,18/07/2022,Training Awards - Postgraduates,Collabrative Doctoral Grants - Block Payment,University of Portsmouth,99766369,5531.00,Training Awards - Postgraduates
BEIS,UKRI - AHRC,18/07/2022,Training Awards - Postgraduates,Collabrative Doctoral Grants - Block Payment,Northumbria University,99766370,5281.00,Training Awards - Postgraduates
BEIS,UKRI - AHRC,18/07/2022,Training Awards - Postgraduates,Collabrative Doctoral Grants - Block Payment,University of Winchester,99766371,5629.00,Training Awards - Postgraduates
BEIS,UKRI - AHRC,18/07/2022,Training Awards - Postgraduates,Collabrative Doctoral Grants - Block Payment,Birkbeck College,99766372,5781.00,Training Awards - Postgraduates
BEIS,UKRI - AHRC,18/07/2022,Training Awards - Postgraduates,Collabrative Doctoral Grants - Block Payment,Cardiff University,99766373,5531.00,Training Awards - Postgraduates
BEIS,UKRI - AHRC,18/07/2022,Training Awards - Postgraduates,Collabrative Doctoral Grants - Block Payment,Manchester Metropolitan University,99766374,5531.00,Training Awards - Postgraduates
BEIS,UKRI - AHRC,18/07/2022,Training Awards - Postgraduates,Collabrative Doctoral Grants - Block Payment,University of Reading,99766375,5531.00,Training Awards - Postgraduates
BEIS,UKRI - AHRC,18/07/2022,Training Awards - Postgraduates,Collabrative Doctoral Grants - Block Payment,Northumbria University,99766376,5435.50,Training Awards - Postgraduates
BEIS,UKRI - AHRC,18/07/2022,Training Awards - Postgraduates,Collabrative Doctoral Grants - Block Payment,London School of Economics and Political Science,99766377,5781.00,Training Awards - Postgraduates
BEIS,UKRI - AHRC,18/07/2022,Training Awards - Postgraduates,Collabrative Doctoral Grants - Block Payment,University of Exeter,99766378,10035.12,Training Awards - Postgraduates
BEIS,UKRI - AHRC,18/07/2022,Training Awards - Postgraduates,Collabrative Doctoral Grants - Block Payment,University of Warwick,99766379,5281.00,Training Awards - Postgraduates
BEIS,UKRI - AHRC,18/07/2022,Training Awards - Postgraduates,Collabrative Doctoral Grants - Block Payment,Canterbury Christ Church University GRANT,99766380,5531.00,Training Awards - Postgraduates
BEIS,UKRI - AHRC,18/07/2022,Training Awards - Postgraduates,Collabrative Doctoral Grants - Block Payment,University College London,99766381,5781.00,Training Awards - Postgraduates
BEIS,UKRI - AHRC,18/07/2022,Training Awards - Postgraduates,Collabrative Doctoral Grants - Block Payment,University of Glasgow,99766382,5281.00,Training Awards - Postgraduates
BEIS,UKRI - AHRC,18/07/2022,Training Awards - Postgraduates,Collabrative Doctoral Grants - Block Payment,University of York,99766383,5531.00,Training Awards - Postgraduates
BEIS,UKRI - AHRC,18/07/2022,Training Awards - Postgraduates,Collabrative Doctoral Grants - Block Payment,University of Exeter,99766384,5531.00,Training Awards - Postgraduates
BEIS,UKRI - AHRC,18/07/2022,Training Awards - Postgraduates,Collabrative Doctoral Grants - Block Payment,University of Edinburgh,99766385,5281.00,Training Awards - Postgraduates
BEIS,UKRI - AHRC,18/07/2022,Training Awards - Postgraduates,Collabrative Doctoral Grants - Block Payment,University of Glasgow,99766386,5281.00,Training Awards - Postgraduates
BEIS,UKRI - AHRC,18/07/2022,Training Awards - Postgraduates,Collabrative Doctoral Grants - Block Payment,University of Edinburgh,99766387,5281.00,Training Awards - Postgraduates
BEIS,UKRI - AHRC,18/07/2022,Training Awards - Postgraduates,International Placement Scheme,University College London,99766388,5370.00,Training Awards - Postgraduates
BEIS,UKRI - AHRC,18/07/2022,Training Awards - Postgraduates,Collabrative Doctoral Grants - Block Payment,"Royal Holloway, University of London",99766389,5781.00,Training Awards - Postgraduates
BEIS,UKRI - AHRC,18/07/2022,Training Awards - Postgraduates,International Placement Scheme,Lancaster University,99766390,6070.00,Training Awards - Postgraduates
BEIS,UKRI - AHRC,18/07/2022,Training Awards - Postgraduates,Collabrative Doctoral Grants - Block Payment,University of Brighton,99766391,5187.25,Training Awards - Postgraduates
BEIS,UKRI - AHRC,18/07/2022,Training Awards - Postgraduates,Collabrative Doctoral Grants - Block Payment,Cardiff University,99766392,4487.55,Training Awards - Postgraduates
BEIS,UKRI - AHRC,18/07/2022,Training Awards - Postgraduates,Collabrative Doctoral Grants - Block Payment,University College London,99766393,5687.25,Training Awards - Postgraduates
BEIS,UKRI - AHRC,18/07/2022,Training Awards - Postgraduates,Collabrative Doctoral Grants - Block Payment,University of Leicester,99766394,5187.25,Training Awards - Postgraduates
BEIS,UKRI - AHRC,18/07/2022,Training Awards - Postgraduates,Collabrative Doctoral Grants - Block Payment,University of Leicester,99766394,5187.25,Training Awards - Postgraduates
BEIS,UKRI - AHRC,18/07/2022,Training Awards - Postgraduates,Collabrative Doctoral Grants - Block Payment,Birkbeck College,99766395,5687.25,Training Awards - Postgraduates
BEIS,UKRI - AHRC,18/07/2022,Training Awards - Postgraduates,Collabrative Doctoral Grants - Block Payment,University of Hertfordshire,99766396,4487.55,Training Awards - Postgraduates
BEIS,UKRI - AHRC,18/07/2022,Training Awards - Postgraduates,Collabrative Doctoral Grants - Block Payment,Goldsmiths College University of London,99766397,5687.25,Training Awards - Postgraduates
BEIS,UKRI - AHRC,18/07/2022,Training Awards - Postgraduates,Collabrative Doctoral Grants - Block Payment,University of Brighton,99766398,5187.25,Training Awards - Postgraduates
BEIS,UKRI - AHRC,18/07/2022,Training Awards - Postgraduates,Collabrative Doctoral Grants - Block Payment,The Open University,99766399,5187.25,Training Awards - Postgraduates
BEIS,UKRI - AHRC,18/07/2022,Training Awards - Postgraduates,Collabrative Doctoral Grants - Block Payment,University of Bristol GRANT,99766400,5187.25,Training Awards - Postgraduates
BEIS,UKRI - AHRC,18/07/2022,Training Awards - Postgraduates,Collabrative Doctoral Grants - Block Payment,University of Bristol GRANT,99766401,5187.25,Training Awards - Postgraduates
BEIS,UKRI - AHRC,18/07/2022,Training Awards - Postgraduates,Collabrative Doctoral Grants - Block Payment,University of Oxford,99766402,5187.25,Training Awards - Postgraduates
BEIS,UKRI - AHRC,18/07/2022,Training Awards - Postgraduates,Collabrative Doctoral Grants - Block Payment,De Montfort University,99766403,4487.52,Training Awards - Postgraduates
BEIS,UKRI - AHRC,18/07/2022,Training Awards - Postgraduates,Collabrative Doctoral Grants - Block Payment,University of Kent,99766404,5187.25,Training Awards - Postgraduates
BEIS,UKRI - AHRC,18/07/2022,Training Awards - Postgraduates,Collabrative Doctoral Grants - Block Payment,University of East Anglia,99766405,5187.25,Training Awards - Postgraduates
BEIS,UKRI - AHRC,18/07/2022,Training Awards - Postgraduates,Collabrative Doctoral Grants - Block Payment,University of East Anglia,99766406,5187.25,Training Awards - Postgraduates
BEIS,UKRI - AHRC,18/07/2022,Training Awards - Postgraduates,Collabrative Doctoral Grants - Block Payment,University of East Anglia,99766407,5187.25,Training Awards - Postgraduates
BEIS,UKRI - AHRC,18/07/2022,Training Awards - Postgraduates,Collabrative Doctoral Grants - Block Payment,University of Edinburgh,99766408,5187.25,Training Awards - Postgraduates
BEIS,UKRI - AHRC,18/07/2022,Training Awards - Postgraduates,Collabrative Doctoral Grants - Block Payment,University of Southampton GRANT,99766409,5187.25,Training Awards - Postgraduates
BEIS,UKRI - AHRC,18/07/2022,Training Awards - Postgraduates,Collabrative Doctoral Grants - Block Payment,University of London,99766410,5687.25,Training Awards - Postgraduates
BEIS,UKRI - AHRC,18/07/2022,Training Awards - Postgraduates,Collabrative Doctoral Grants - Block Payment,University of Nottingham,99766411,5187.25,Training Awards - Postgraduates
BEIS,UKRI - AHRC,18/07/2022,Training Awards - Postgraduates,Collabrative Doctoral Grants - Block Payment,University of Brighton,99766412,5187.25,Training Awards - Postgraduates
BEIS,UKRI - AHRC,18/07/2022,Training Awards - Postgraduates,Collabrative Doctoral Grants - Block Payment,Imperial College London,99766413,5687.26,Training Awards - Postgraduates
BEIS,UKRI - AHRC,18/07/2022,Training Awards - Postgraduates,Collabrative Doctoral Grants - Block Payment,Sheffield Hallam University,99766414,5187.25,Training Awards - Postgraduates
BEIS,UKRI - AHRC,18/07/2022,Training Awards - Postgraduates,Collabrative Doctoral Grants - Block Payment,University of Glasgow,99766415,5187.25,Training Awards - Postgraduates
BEIS,UKRI - AHRC,18/07/2022,Training Awards - Postgraduates,Collabrative Doctoral Grants - Block Payment,University College London,99766416,5687.25,Training Awards - Postgraduates
BEIS,UKRI - AHRC,18/07/2022,Training Awards - Postgraduates,Collabrative Doctoral Grants - Block Payment,King's College London,99766417,5687.25,Training Awards - Postgraduates
BEIS,UKRI - AHRC,18/07/2022,Training Awards - Postgraduates,Collabrative Doctoral Grants - Block Payment,King's College London,99766418,5687.25,Training Awards - Postgraduates
BEIS,UKRI - AHRC,18/07/2022,Training Awards - Postgraduates,Collabrative Doctoral Grants - Block Payment,University of Edinburgh,99766419,5187.25,Training Awards - Postgraduates
BEIS,UKRI - AHRC,18/07/2022,Training Awards - Postgraduates,Collabrative Doctoral Grants - Block Payment,University of York,99766420,5187.25,Training Awards - Postgraduates
BEIS,UKRI - AHRC,18/07/2022,Training Awards - Postgraduates,Collabrative Doctoral Grants - Block Payment,University of Durham,99766421,5187.25,Training Awards - Postgraduates
BEIS,UKRI - AHRC,18/07/2022,Training Awards - Postgraduates,Collabrative Doctoral Grants - Block Payment,University College London,99766422,4987.53,Training Awards - Postgraduates
BEIS,UKRI - AHRC,18/07/2022,Training Awards - Postgraduates,Collabrative Doctoral Grants - Block Payment,University of the Arts London,99766423,5687.25,Training Awards - Postgraduates
BEIS,UKRI - AHRC,18/07/2022,Training Awards - Postgraduates,Collabrative Doctoral Grants - Block Payment,University of the Arts London,99766424,5687.25,Training Awards - Postgraduates
BEIS,UKRI - AHRC,18/07/2022,Training Awards - Postgraduates,Collabrative Doctoral Grants - Block Payment,University of Warwick,99766425,5187.25,Training Awards - Postgraduates
BEIS,UKRI - AHRC,18/07/2022,Training Awards - Postgraduates,Collabrative Doctoral Grants - Block Payment,University of Strathclyde,99766426,5187.25,Training Awards - Postgraduates
BEIS,UKRI - AHRC,18/07/2022,Training Awards - Postgraduates,Collabrative Doctoral Grants - Block Payment,Goldsmiths College University of London,99766427,5687.25,Training Awards - Postgraduates
BEIS,UKRI - AHRC,18/07/2022,Training Awards - Postgraduates,Collabrative Doctoral Grants - Block Payment,University of St Andrews,99766428,5187.25,Training Awards - Postgraduates
BEIS,UKRI - AHRC,18/07/2022,Training Awards - Postgraduates,Collabrative Doctoral Grants - Block Payment,University College London,99766429,5687.25,Training Awards - Postgraduates
BEIS,UKRI - AHRC,18/07/2022,Training Awards - Postgraduates,Collabrative Doctoral Grants - Block Payment,University College London,99766430,5687.25,Training Awards - Postgraduates
BEIS,UKRI - AHRC,18/07/2022,Training Awards - Postgraduates,Collabrative Doctoral Grants - Block Payment,University of Hull,99766431,5187.25,Training Awards - Postgraduates
BEIS,UKRI - AHRC,18/07/2022,Training Awards - Postgraduates,Collabrative Doctoral Grants - Block Payment,"City, University of London",99766432,5687.25,Training Awards - Postgraduates
BEIS,UKRI - AHRC,18/07/2022,Training Awards - Postgraduates,Collabrative Doctoral Grants - Block Payment,Glasgow Caledonian University,99766433,5187.25,Training Awards - Postgraduates
BEIS,UKRI - AHRC,18/07/2022,Training Awards - Postgraduates,Collabrative Doctoral Grants - Block Payment,University of Leicester,99766434,5187.25,Training Awards - Postgraduates
BEIS,UKRI - AHRC,18/07/2022,Training Awards - Postgraduates,Collabrative Doctoral Grants - Block Payment,University of Leicester,99766434,5187.25,Training Awards - Postgraduates
BEIS,UKRI - AHRC,18/07/2022,Training Awards - Postgraduates,Collabrative Doctoral Grants - Block Payment,University of York,99766435,5187.25,Training Awards - Postgraduates
BEIS,UKRI - AHRC,18/07/2022,Training Awards - Postgraduates,Collabrative Doctoral Grants - Block Payment,Loughborough University,99766436,5187.25,Training Awards - Postgraduates
BEIS,UKRI - AHRC,18/07/2022,Training Awards - Postgraduates,Collabrative Doctoral Grants - Block Payment,University of Edinburgh,99766437,5187.25,Training Awards - Postgraduates
BEIS,UKRI - AHRC,18/07/2022,Training Awards - Postgraduates,Industrial Strategy Challenge Fund (ISCF) - Skills,University of the West of England,99766438,19665.54,Training Awards - Postgraduates
BEIS,UKRI - AHRC,18/07/2022,Training Awards - Postgraduates,Industrial Strategy Challenge Fund (ISCF) - Skills,University of Nottingham,99766439,19474.19,Training Awards - Postgraduates
BEIS,UKRI - AHRC,18/07/2022,Training Awards - Postgraduates,Industrial Strategy Challenge Fund (ISCF) - Skills,"Royal Holloway, University of London",99766440,21379.12,Training Awards - Postgraduates
BEIS,UKRI - AHRC,18/07/2022,Training Awards - Postgraduates,Industrial Strategy Challenge Fund (ISCF) - Skills,The University of Manchester,99766441,19474.18,Training Awards - Postgraduates
BEIS,UKRI - AHRC,18/07/2022,Training Awards - Postgraduates,Industrial Strategy Challenge Fund (ISCF) - Skills,University of Glasgow,99766442,19474.18,Training Awards - Postgraduates
BEIS,UKRI - AHRC,18/07/2022,Training Awards - Postgraduates,Industrial Strategy Challenge Fund (ISCF) - Skills,University of Newcastle Upon Tyne,99766443,19474.22,Training Awards - Postgraduates
BEIS,UKRI - AHRC,18/07/2022,Training Awards - Postgraduates,Collabrative Doctoral Grants - Block Payment,The British Museum,99766444,16450.00,Training Awards - Postgraduates
BEIS,UKRI - AHRC,18/07/2022,Training Awards - Postgraduates,Collabrative Doctoral Grants - Block Payment,The National Archives,99766445,0.06,Training Awards - Postgraduates
BEIS,UKRI - AHRC,18/07/2022,Training Awards - Postgraduates,Collabrative Doctoral Grants - Block Payment,Sheffield Hallam University,99766446,2599.28,Training Awards - Postgraduates
BEIS,UKRI - AHRC,18/07/2022,Training Awards - Postgraduates,Collabrative Doctoral Grants - Block Payment,Queen Mary University of London,99766447,2849.22,Training Awards - Postgraduates
BEIS,UKRI - AHRC,18/07/2022,Training Awards - Postgraduates,Collabrative Doctoral Grants - Block Payment,De Montfort University,99766448,2599.28,Training Awards - Postgraduates
BEIS,UKRI - AHRC,18/07/2022,Training Awards - Postgraduates,Collabrative Doctoral Grants - Block Payment,Courtauld Institute of Art,99766449,2849.22,Training Awards - Postgraduates
BEIS,UKRI - AHRC,18/07/2022,Training Awards - Postgraduates,Collabrative Doctoral Grants - Block Payment,University of the Arts London,99766450,2849.22,Training Awards - Postgraduates
BEIS,UKRI - AHRC,18/07/2022,Training Awards - Postgraduates,Collabrative Doctoral Grants - Block Payment,University of Cambridge,99766451,2599.22,Training Awards - Postgraduates
BEIS,UKRI - AHRC,18/07/2022,Training Awards - Postgraduates,Collabrative Doctoral Grants - Block Payment,University of Cambridge,99766452,2599.22,Training Awards - Postgraduates
BEIS,UKRI - AHRC,18/07/2022,Training Awards - Postgraduates,Collabrative Doctoral Grants - Block Payment,University of Cambridge,99766453,2599.22,Training Awards - Postgraduates
BEIS,UKRI - AHRC,18/07/2022,Training Awards - Postgraduates,Collabrative Doctoral Grants - Block Payment,Keele University,99766454,2599.22,Training Awards - Postgraduates
BEIS,UKRI - AHRC,18/07/2022,Training Awards - Postgraduates,Collabrative Doctoral Grants - Block Payment,University of Strathclyde,99766455,2599.28,Training Awards - Postgraduates
BEIS,UKRI - AHRC,18/07/2022,Training Awards - Postgraduates,Collabrative Doctoral Grants - Block Payment,University of Kent,99766456,2599.22,Training Awards - Postgraduates
BEIS,UKRI - AHRC,18/07/2022,Training Awards - Postgraduates,Collabrative Doctoral Grants - Block Payment,University of Kent,99766457,2574.22,Training Awards - Postgraduates
BEIS,UKRI - AHRC,18/07/2022,Training Awards - Postgraduates,Collabrative Doctoral Grants - Block Payment,University College London,99766458,2849.28,Training Awards - Postgraduates
BEIS,UKRI - AHRC,18/07/2022,Training Awards - Postgraduates,Collabrative Doctoral Grants - Block Payment,University of Durham,99766459,2599.22,Training Awards - Postgraduates
BEIS,UKRI - AHRC,18/07/2022,Training Awards - Postgraduates,Collabrative Doctoral Grants - Block Payment,University of Oxford,99766460,2599.22,Training Awards - Postgraduates
BEIS,UKRI - AHRC,18/07/2022,Training Awards - Postgraduates,Collabrative Doctoral Grants - Block Payment,University of Aberdeen,99766461,2599.22,Training Awards - Postgraduates
BEIS,UKRI - AHRC,18/07/2022,Training Awards - Postgraduates,Collabrative Doctoral Grants - Block Payment,University of Newcastle Upon Tyne,99766462,2599.22,Training Awards - Postgraduates
BEIS,UKRI - AHRC,18/07/2022,Training Awards - Postgraduates,Collabrative Doctoral Grants - Block Payment,University of York,99766463,2599.22,Training Awards - Postgraduates
BEIS,UKRI - AHRC,18/07/2022,Training Awards - Postgraduates,Collabrative Doctoral Grants - Block Payment,Royal College of Art,99766464,2849.24,Training Awards - Postgraduates
BEIS,UKRI - AHRC,18/07/2022,Training Awards - Postgraduates,Collabrative Doctoral Grants - Block Payment,Royal College of Art,99766464,2849.24,Training Awards - Postgraduates
BEIS,UKRI - AHRC,18/07/2022,Training Awards - Postgraduates,Collabrative Doctoral Grants - Block Payment,Royal College of Art,99766464,2849.26,Training Awards - Postgraduates
BEIS,UKRI - AHRC,18/07/2022,Training Awards - Postgraduates,Collabrative Doctoral Grants - Block Payment,University of Glasgow,99766465,2599.22,Training Awards - Postgraduates
BEIS,UKRI - AHRC,18/07/2022,Training Awards - Postgraduates,Collabrative Doctoral Grants - Block Payment,De Montfort University,99766466,2599.28,Training Awards - Postgraduates
BEIS,UKRI - AHRC,18/07/2022,Training Awards - Postgraduates,Collabrative Doctoral Grants - Block Payment,Birkbeck College,99766467,2849.04,Training Awards - Postgraduates
BEIS,UKRI - AHRC,18/07/2022,Training Awards - Postgraduates,Collabrative Doctoral Grants - Block Payment,University of Southampton GRANT,99766468,2599.22,Training Awards - Postgraduates
BEIS,UKRI - AHRC,18/07/2022,Training Awards - Postgraduates,Collabrative Doctoral Grants - Block Payment,University of Stirling,99766469,2599.22,Training Awards - Postgraduates
BEIS,UKRI - AHRC,18/07/2022,Training Awards - Postgraduates,Collabrative Doctoral Grants - Block Payment,King's College London,99766470,2849.22,Training Awards - Postgraduates
BEIS,UKRI - AHRC,18/07/2022,Training Awards - Postgraduates,Collabrative Doctoral Grants - Block Payment,University of Central Lancashire,99766471,2599.26,Training Awards - Postgraduates
BEIS,UKRI - AHRC,18/07/2022,Training Awards - Postgraduates,Collabrative Doctoral Grants - Block Payment,University of Central Lancashire,99766471,2599.22,Training Awards - Postgraduates
BEIS,UKRI - AHRC,18/07/2022,Training Awards - Postgraduates,Collabrative Doctoral Grants - Block Payment,University College London,99766472,2849.28,Training Awards - Postgraduates
BEIS,UKRI - AHRC,18/07/2022,Training Awards - Postgraduates,Collabrative Doctoral Grants - Block Payment,University College London,99766473,2849.22,Training Awards - Postgraduates
BEIS,UKRI - AHRC,18/07/2022,Training Awards - Postgraduates,Collabrative Doctoral Grants - Block Payment,"City, University of London",99766474,2849.24,Training Awards - Postgraduates
BEIS,UKRI - AHRC,18/07/2022,Training Awards - Postgraduates,Collabrative Doctoral Grants - Block Payment,University of Durham,99766475,2599.28,Training Awards - Postgraduates
BEIS,UKRI - AHRC,18/07/2022,Training Awards - Postgraduates,Collabrative Doctoral Grants - Block Payment,Goldsmiths College University of London,99766476,2849.28,Training Awards - Postgraduates
BEIS,UKRI - AHRC,18/07/2022,Training Awards - Postgraduates,Collabrative Doctoral Grants - Block Payment,Robert Gordon University,99766477,2599.29,Training Awards - Postgraduates
BEIS,UKRI - AHRC,18/07/2022,Training Awards - Postgraduates,Collabrative Doctoral Grants - Block Payment,University of Liverpool,99766478,2599.24,Training Awards - Postgraduates
BEIS,UKRI - AHRC,18/07/2022,Training Awards - Postgraduates,Collabrative Doctoral Grants - Block Payment,University of Liverpool,99766478,2599.28,Training Awards - Postgraduates
BEIS,UKRI - AHRC,18/07/2022,Training Awards - Postgraduates,Collabrative Doctoral Grants - Block Payment,University of Exeter,99766479,2599.28,Training Awards - Postgraduates
BEIS,UKRI - AHRC,18/07/2022,Training Awards - Postgraduates,Collabrative Doctoral Grants - Block Payment,University of Edinburgh,99766480,2599.28,Training Awards - Postgraduates
BEIS,UKRI - AHRC,18/07/2022,Training Awards - Postgraduates,Collabrative Doctoral Grants - Block Payment,King's College London,99766481,2849.22,Training Awards - Postgraduates
BEIS,UKRI - AHRC,18/07/2022,Training Awards - Postgraduates,Collabrative Doctoral Grants - Block Payment,University of Brighton,99766482,2599.26,Training Awards - Postgraduates
BEIS,UKRI - AHRC,18/07/2022,Training Awards - Postgraduates,Collabrative Doctoral Grants - Block Payment,Northumbria University,99766483,2599.26,Training Awards - Postgraduates
BEIS,UKRI - AHRC,18/07/2022,Training Awards - Postgraduates,Collabrative Doctoral Grants - Block Payment,"SOAS, University of London",99766484,2849.28,Training Awards - Postgraduates
BEIS,UKRI - AHRC,18/07/2022,Training Awards - Postgraduates,Collabrative Doctoral Grants - Block Payment,University of Stirling,99766485,2599.22,Training Awards - Postgraduates
BEIS,UKRI - AHRC,18/07/2022,Training Awards - Postgraduates,Collabrative Doctoral Grants - Block Payment,University College London,99766486,2945.97,Training Awards - Postgraduates
BEIS,UKRI - AHRC,18/07/2022,Training Awards - Postgraduates,Collabrative Doctoral Grants - Block Payment,University of Sheffield,99766487,2599.22,Training Awards - Postgraduates
BEIS,UKRI - AHRC,18/07/2022,Training Awards - Postgraduates,Collabrative Doctoral Grants - Block Payment,University of London,99766488,2849.22,Training Awards - Postgraduates
BEIS,UKRI - AHRC,18/07/2022,Training Awards - Postgraduates,Collabrative Doctoral Grants - Block Payment,University of Sheffield,99766489,2599.28,Training Awards - Postgraduates
BEIS,UKRI - AHRC,18/07/2022,Training Awards - Postgraduates,BGP Award,University of Sussex,99766490,629340.89,Training Awards - Postgraduates
BEIS,UKRI - AHRC,18/07/2022,Training Awards - Postgraduates,BGP Award,The University of Manchester,99766491,487950.75,Training Awards - Postgraduates
BEIS,UKRI - AHRC,18/07/2022,Training Awards - Postgraduates,BGP Award,The University of Manchester,99766491,1782.56,Training Awards - Postgraduates
BEIS,UKRI - AHRC,18/07/2022,Training Awards - Postgraduates,BGP Award,University of Bristol GRANT,99766492,324434.22,Training Awards - Postgraduates
BEIS,UKRI - AHRC,18/07/2022,Training Awards - Postgraduates,BGP Award,"Royal Holloway, University of London",99766493,665950.95,Training Awards - Postgraduates
BEIS,UKRI - AHRC,18/07/2022,Training Awards - Postgraduates,BGP Award,University of York,99766494,519787.80,Training Awards - Postgraduates
BEIS,UKRI - AHRC,18/07/2022,Training Awards - Postgraduates,BGP Award,University of Nottingham,99766495,745680.77,Training Awards - Postgraduates
BEIS,UKRI - AHRC,18/07/2022,Training Awards - Postgraduates,BGP Award,University of Glasgow,99766496,618070.95,Training Awards - Postgraduates
BEIS,UKRI - AHRC,18/07/2022,Training Awards - Postgraduates,BGP Award,University of Oxford,99766497,828411.82,Training Awards - Postgraduates
BEIS,UKRI - AHRC,18/07/2022,Training Awards - Postgraduates,BGP Award,University College London,99766498,800852.06,Training Awards - Postgraduates
BEIS,UKRI - AHRC,18/07/2022,Training Awards - Postgraduates,BGP Award,University of Newcastle Upon Tyne,99766499,618070.95,Training Awards - Postgraduates
BEIS,UKRI - AHRC,18/07/2022,Training Awards - Postgraduates,BGP Award,"Royal Holloway, University of London",99766500,99884.50,Training Awards - Postgraduates
BEIS,UKRI - AHRC,18/07/2022,Training Awards - Postgraduates,BGP Award,University of Bristol GRANT,99766501,105708.75,Training Awards - Postgraduates
BEIS,UKRI - AHRC,18/07/2022,Training Awards - Postgraduates,BGP Award,University of Newcastle Upon Tyne,99766502,81924.25,Training Awards - Postgraduates
BEIS,UKRI - AHRC,18/07/2022,Training Awards - Postgraduates,BGP Award,University of Glasgow,99766503,105708.75,Training Awards - Postgraduates
BEIS,UKRI - AHRC,18/07/2022,Training Awards - Postgraduates,BGP Award,The University of Manchester,99766504,105708.75,Training Awards - Postgraduates
BEIS,UKRI - AHRC,18/07/2022,Training Awards - Postgraduates,BGP Award,University of Cambridge,99766505,105708.75,Training Awards - Postgraduates
BEIS,UKRI - AHRC,18/07/2022,Training Awards - Postgraduates,BGP Award,University of Oxford,99766506,105708.75,Training Awards - Postgraduates
BEIS,UKRI - AHRC,18/07/2022,Training Awards - Postgraduates,BGP Award,University College London,99766507,139450.49,Training Awards - Postgraduates
BEIS,UKRI - AHRC,18/07/2022,Training Awards - Postgraduates,BGP Award,University of Sussex,99766508,124972.31,Training Awards - Postgraduates
BEIS,UKRI - AHRC,18/07/2022,Training Awards - Postgraduates,BGP Award,University of Nottingham,99766509,108351.47,Training Awards - Postgraduates
BEIS,UKRI - AHRC,18/07/2022,Training Awards - Postgraduates,BGP Award,University of York,99766510,142706.83,Training Awards - Postgraduates
BEIS,UKRI - AHRC,18/07/2022,Training Awards - Postgraduates,BGP Award,Northumbria University,99766511,7928.14,Training Awards - Postgraduates
BEIS,UKRI - AHRC,18/07/2022,Training Awards - Postgraduates,BGP Award,University College London,99766512,19113.25,Training Awards - Postgraduates
BEIS,UKRI - AHRC,18/07/2022,Training Awards - Postgraduates,BGP Award,University of Hull,99766513,13213.58,Training Awards - Postgraduates
BEIS,UKRI - AHRC,18/07/2022,Training Awards - Postgraduates,BGP Award,University of Glasgow,99766514,13213.58,Training Awards - Postgraduates
BEIS,UKRI - AHRC,18/07/2022,Training Awards - Postgraduates,BGP Award,University of the West of England,99766515,18499.00,Training Awards - Postgraduates
BEIS,UKRI - AHRC,18/07/2022,Training Awards - Postgraduates,BGP Award,Royal College of Art,99766516,17431.31,Training Awards - Postgraduates
BEIS,UKRI - AHRC,18/07/2022,Training Awards - Postgraduates,BGP Award,Royal College of Art,99766516,17431.33,Training Awards - Postgraduates
BEIS,UKRI - AHRC,18/07/2022,Training Awards - Postgraduates,BGP Award,Royal College of Art,99766516,21190.41,Training Awards - Postgraduates
BEIS,UKRI - AHRC,18/07/2022,Training Awards - Postgraduates,BGP Award,University of Reading,99766517,16221.19,Training Awards - Postgraduates
BEIS,UKRI - AHRC,18/07/2022,Training Awards - Postgraduates,International Placement Scheme,University of Cambridge,99766519,5370.00,Training Awards - Postgraduates
BEIS,UKRI - AHRC,18/07/2022,Training Awards - Postgraduates,International Placement Scheme,University College London,99766520,3870.00,Training Awards - Postgraduates
BEIS,UKRI - AHRC,18/07/2022,Training Awards - Postgraduates,International Placement Scheme,University of Plymouth,99766521,5347.44,Training Awards - Postgraduates
BEIS,UKRI - AHRC,18/07/2022,Training Awards - Postgraduates,Collabrative Doctoral Grants - Block Payment,King's College London,99766522,-740.54,Training Awards - Postgraduates
BEIS,UKRI - AHRC,18/07/2022,Training Awards - Postgraduates,Collabrative Doctoral Grants - Block Payment,University of St Andrews,99766523,-4365.98,Training Awards - Postgraduates
BEIS,UKRI - AHRC,18/07/2022,Training Awards - Postgraduates,Collabrative Doctoral Grants - Block Payment,Nottingham Trent University,99766524,1378.22,Training Awards - Postgraduates
BEIS,UKRI - AHRC,18/07/2022,Training Awards - Postgraduates,Collabrative Doctoral Grants - Block Payment,University of Oxford,99766525,-38672.00,Training Awards - Postgraduates
BEIS,UKRI - AHRC,18/07/2022,Training Awards - Postgraduates,Collabrative Doctoral Grants - Block Payment,Queen Mary University of London,99766526,-5049.20,Training Awards - Postgraduates
BEIS,UKRI - AHRC,18/07/2022,Training Awards - Postgraduates,Collabrative Doctoral Grants - Block Payment,University of Strathclyde,99766527,-2444.10,Training Awards - Postgraduates
BEIS,UKRI - AHRC,18/07/2022,Training Awards - Postgraduates,Collabrative Doctoral Grants - Block Payment,De Montfort University,99766528,-119.30,Training Awards - Postgraduates
BEIS,UKRI - AHRC,18/07/2022,Training Awards - Postgraduates,International Placement Scheme,University of London,99766529,1074.00,Training Awards - Postgraduates
BEIS,UKRI - AHRC,18/07/2022,Non-staff travel and subsistance,Operations,Unspecified,99770231,201.40,Non-staff travel and subsistance
BEIS,UKRI - AHRC,18/07/2022,Hospitality,International Partnership and Engagement,Calder Conference Ltd,99770821,2529.99,Hospitality
BEIS,UKRI - AHRC,18/07/2022,Hospitality,International Partnership and Engagement,Calder Conference Ltd,99770821,55.00,Hospitality
BEIS,UKRI - AHRC,18/07/2022,Hospitality,Executive Office,Calder Conference Ltd,99770822,434.04,Hospitality
BEIS,UKRI - AHRC,18/07/2022,Conferences & Seminars,Skills Strategy,Unspecified,99770842,60.00,Conferences & Seminars
BEIS,UKRI - AHRC,18/07/2022,T&S UK - Other Charges,"History, Heritage, Languages and Literature",Unspecified,99770843,18.70,T&S UK - Other Charges
BEIS,UKRI - AHRC,18/07/2022,T&S UK - Other Charges,Operations,Unspecified,99770844,15.29,T&S UK - Other Charges
BEIS,UKRI - AHRC,19/07/2022,T&S Overseas - Flights,International Placement Scheme,University of Brighton,99759847,1800.00,T&S Overseas - Flights
BEIS,UKRI - AHRC,19/07/2022,T&S Overseas - Flights,International Placement Scheme,University of Brighton,99759847,360.00,T&S Overseas - Flights
BEIS,UKRI - AHRC,19/07/2022,T&S UK - Mileage,AHRC - Creative Industries,Unspecified,99771200,66.00,T&S UK - Mileage
BEIS,UKRI - AHRC,19/07/2022,T&S UK - Public Transport,AHRC - Creative Industries,Unspecified,99771200,9.00,T&S UK - Public Transport
BEIS,UKRI - AHRC,19/07/2022,T&S UK - Subsistence,AHRC - Creative Industries,Unspecified,99771200,5.05,T&S UK - Subsistence
BEIS,UKRI - AHRC,19/07/2022,T&S UK - Subsistence,AHRC - Creative Industries,Unspecified,99771200,40.60,T&S UK - Subsistence
BEIS,UKRI - AHRC,19/07/2022,T&S UK - Subsistence,AHRC - Creative Industries,Unspecified,99771200,7.34,T&S UK - Subsistence
BEIS,UKRI - AHRC,19/07/2022,T&S UK - Subsistence,AHRC - Creative Industries,Unspecified,99771200,10.00,T&S UK - Subsistence
BEIS,UKRI - AHRC,20/07/2022,T&S UK - Mileage,AHRC - Creative Industries,Unspecified,99771499,40.50,T&S UK - Mileage
BEIS,UKRI - AHRC,20/07/2022,T&S UK - Parking Tolls Congestion Charges,AHRC - Creative Industries,Unspecified,99771499,29.95,T&S UK - Parking Tolls Congestion Charges
BEIS,UKRI - AHRC,20/07/2022,T&S UK - Public Transport,SMT,Unspecified,99771500,54.00,T&S UK - Public Transport
BEIS,UKRI - AHRC,20/07/2022,T&S UK - Other Charges,AI&Design,Unspecified,99771502,58.37,T&S UK - Other Charges
BEIS,UKRI - AHRC,20/07/2022,T&S UK - Other Charges,Health and Environmental Humanities,Unspecified,99771504,284.38,T&S UK - Other Charges
BEIS,UKRI - AHRC,21/07/2022,Fees (Including College Members),Operations,Unspecified,99772184,115.00,Fees (Including College Members)
BEIS,UKRI - AHRC,21/07/2022,Fees (Including College Members),Operations,Unspecified,99772185,85.00,Fees (Including College Members)
BEIS,UKRI - AHRC,21/07/2022,Fees (Including College Members),Operations,Unspecified,99772186,85.00,Fees (Including College Members)
BEIS,UKRI - AHRC,21/07/2022,Non-staff travel and subsistance,Infrastructure Fund - CoSTAR,Unspecified,99772187,140.50,Non-staff travel and subsistance
BEIS,UKRI - AHRC,21/07/2022,Non-staff travel and subsistance,Infrastructure Fund - CoSTAR,Unspecified,99772188,170.00,Non-staff travel and subsistance
BEIS,UKRI - AHRC,25/07/2022,Staff Training,SMT,The Knowledge Academy,99774046,1464.00,Staff Training
BEIS,UKRI - AHRC,26/07/2022,T&S UK - Public Transport,International Development and Area Studies,Unspecified,99774600,10.00,T&S UK - Public Transport
BEIS,UKRI - AHRC,26/07/2022,T&S UK - Subsistence,International Development and Area Studies,Unspecified,99774600,13.45,T&S UK - Subsistence
BEIS,UKRI - AHRC,26/07/2022,Conferences & Seminars,International Partnership and Engagement,Unspecified,99774601,211.20,Conferences & Seminars
BEIS,UKRI - AHRC,26/07/2022,Education Fees & Study Materials,International Partnership and Engagement,Unspecified,99774601,57.62,Education Fees & Study Materials
BEIS,UKRI - AHRC,27/07/2022,Unspecified,Executive Office,Unspecified,99767050,100.60,Secondments
BEIS,UKRI - AHRC,27/07/2022,T&S UK - Other Charges,FIC- US,Unspecified,99774998,17.20,T&S UK - Other Charges
BEIS,UKRI - AHRC,27/07/2022,T&S UK - Public Transport,FIC- US,Unspecified,99774998,216.57,T&S UK - Public Transport
BEIS,UKRI - AHRC,27/07/2022,T&S UK - Public Transport,FIC- US,Unspecified,99774998,10.75,T&S UK - Public Transport
BEIS,UKRI - AHRC,27/07/2022,T&S UK - Subsistence,FIC- US,Unspecified,99774998,43.07,T&S UK - Subsistence
BEIS,UKRI - AHRC,27/07/2022,T&S UK - Subsistence,FIC- US,Unspecified,99774998,51.51,T&S UK - Subsistence
BEIS,UKRI - AHRC,27/07/2022,T&S UK - Subsistence,FIC- US,Unspecified,99774998,62.17,T&S UK - Subsistence
BEIS,UKRI - AHRC,27/07/2022,T&S UK - Subsistence,FIC- US,Unspecified,99774998,20.77,T&S UK - Subsistence
BEIS,UKRI - AHRC,27/07/2022,T&S UK - Subsistence,FIC- US,Unspecified,99774998,40.00,T&S UK - Subsistence
BEIS,UKRI - AHRC,27/07/2022,T&S UK - Subsistence,FIC- US,Unspecified,99774998,5.58,T&S UK - Subsistence
BEIS,UKRI - AHRC,27/07/2022,Fees (Including College Members),Operations,Unspecified,99775775,115.00,Fees (Including College Members)
BEIS,UKRI - AHRC,27/07/2022,Fees (Including College Members),Operations,Unspecified,99775776,85.00,Fees (Including College Members)
BEIS,UKRI - AHRC,27/07/2022,Fees (Including College Members),Operations,Unspecified,99775777,85.00,Fees (Including College Members)
BEIS,UKRI - AHRC,27/07/2022,Non-staff travel and subsistance,Operations,Unspecified,99775778,21.90,Non-staff travel and subsistance
BEIS,UKRI - AHRC,27/07/2022,Fees (Including College Members),Operations,Unspecified,99775779,460.00,Fees (Including College Members)
BEIS,UKRI - AHRC,28/07/2022,Fees (Including College Members),Operations,Unspecified,99775872,170.00,Fees (Including College Members)
BEIS,UKRI - AHRC,28/07/2022,Fees (Including College Members),Operations,Unspecified,99775873,85.00,Fees (Including College Members)
BEIS,UKRI - AHRC,29/07/2022,Hospitality,Executive Office,Calder Conference Ltd,99776184,2939.53,Hospitality
BEIS,UKRI - AHRC,29/07/2022,Hospitality,Executive Office,Calder Conference Ltd,99776185,1443.38,Hospitality
BEIS,UKRI - BBSRC,01/07/2022,Non-staff travel and subsistance,Science Group - Delivery Function,Unspecified,99760825,130.30,Non-staff travel and subsistance
BEIS,UKRI - BBSRC,01/07/2022,Unspecified,Science Group - Delivery Function,Unspecified,99760826,460.00,Council & Committee Honoraria
BEIS,UKRI - BBSRC,01/07/2022,Non-staff travel and subsistance,Science Group - Delivery Function,Unspecified,99760827,166.30,Non-staff travel and subsistance
BEIS,UKRI - BBSRC,01/07/2022,Unspecified,Science Group - Delivery Function,Unspecified,99760828,340.00,Council & Committee Honoraria
BEIS,UKRI - BBSRC,01/07/2022,Non-staff travel and subsistance,Science Group - Delivery Function,Unspecified,99760829,139.30,Non-staff travel and subsistance
BEIS,UKRI - BBSRC,01/07/2022,Unspecified,Science Group - Delivery Function,Unspecified,99760830,460.00,Council & Committee Honoraria
BEIS,UKRI - BBSRC,01/07/2022,Research Institutes - Capital Grants: Minor Works,Rothamsted Research,Rothamsted Research Ltd,99762139,5046.00,Research Institutes - Capital Grants: Minor Works
BEIS,UKRI - BBSRC,04/07/2022,Fees (Including College Members),Science Group – Admin Function,Unspecified,99761073,230.00,Fees (Including College Members)
BEIS,UKRI - BBSRC,04/07/2022,Fees (Including College Members),Science Group – Admin Function,Unspecified,99761074,170.00,Fees (Including College Members)
BEIS,UKRI - BBSRC,04/07/2022,T&S UK - Public Transport,Innovation and Skills Group,Unspecified,99761342,78.58,T&S UK - Public Transport
BEIS,UKRI - BBSRC,04/07/2022,Unspecified,Science Group - Delivery Function,Unspecified,99762295,170.00,Council & Committee Honoraria
BEIS,UKRI - BBSRC,04/07/2022,Unspecified,Science Group - Delivery Function,Unspecified,99762296,340.00,Council & Committee Honoraria
BEIS,UKRI - BBSRC,04/07/2022,Non-staff travel and subsistance,Science Group - Delivery Function,Unspecified,99762297,300.00,Non-staff travel and subsistance
BEIS,UKRI - BBSRC,04/07/2022,Unspecified,Science Group - Delivery Function,Unspecified,99762298,340.00,Council & Committee Honoraria
BEIS,UKRI - BBSRC,04/07/2022,Non-staff travel and subsistance,Science Group - Delivery Function,Unspecified,99762299,146.60,Non-staff travel and subsistance
BEIS,UKRI - BBSRC,04/07/2022,Unspecified,Science Group - Delivery Function,Unspecified,99762300,340.00,Council & Committee Honoraria
BEIS,UKRI - BBSRC,04/07/2022,Non-staff travel and subsistance,Science Group - Delivery Function,Unspecified,99762301,148.00,Non-staff travel and subsistance
BEIS,UKRI - BBSRC,04/07/2022,Unspecified,Science Group - Delivery Function,Unspecified,99762302,460.00,Council & Committee Honoraria
BEIS,UKRI - BBSRC,05/07/2022,Unspecified,CE - Chief Executive,Pye Tait Ltd T/A Pye Tait Consulting,99762368,16155.00,Legal & Professional Services
BEIS,UKRI - BBSRC,05/07/2022,Non-staff travel and subsistance,Science Group - Delivery Function,Unspecified,99762948,89.50,Non-staff travel and subsistance
BEIS,UKRI - BBSRC,05/07/2022,Unspecified,Science Group - Delivery Function,Unspecified,99762949,340.00,Council & Committee Honoraria
BEIS,UKRI - BBSRC,05/07/2022,T&S UK - Other Charges,Innovation and Skills Group CDSU,Unspecified,99763136,125.00,T&S UK - Other Charges
BEIS,UKRI - BBSRC,05/07/2022,T&S UK - Public Transport,CIMG - Director,Unspecified,99763137,50.82,T&S UK - Public Transport
BEIS,UKRI - BBSRC,06/07/2022,T&S UK - Public Transport,Innovation and Skills Group,Unspecified,99763523,8.50,T&S UK - Public Transport
BEIS,UKRI - BBSRC,06/07/2022,T&S UK - Subsistence,Innovation and Skills Group,Unspecified,99763523,25.00,T&S UK - Subsistence
BEIS,UKRI - BBSRC,06/07/2022,T&S UK - Subsistence,Innovation and Skills Group,Unspecified,99763523,10.00,T&S UK - Subsistence
BEIS,UKRI - BBSRC,06/07/2022,T&S UK - Subsistence,Innovation and Skills Group,Unspecified,99763523,2.45,T&S UK - Subsistence
BEIS,UKRI - BBSRC,06/07/2022,Non-staff travel and subsistance,Science Group - Delivery Function,Unspecified,99764350,166.00,Non-staff travel and subsistance
BEIS,UKRI - BBSRC,06/07/2022,Non-staff travel and subsistance,Science Group - Delivery Function,Unspecified,99764351,2642.26,Non-staff travel and subsistance
BEIS,UKRI - BBSRC,06/07/2022,Non-staff travel and subsistance,Science Group - Delivery Function,Unspecified,99764352,2397.78,Non-staff travel and subsistance
BEIS,UKRI - BBSRC,06/07/2022,Non-staff travel and subsistance,Science Group - Delivery Function,Unspecified,99764353,237.52,Non-staff travel and subsistance
BEIS,UKRI - BBSRC,06/07/2022,Unspecified,Science Group – Admin Function,Unspecified,99764354,340.00,Council & Committee Honoraria
BEIS,UKRI - BBSRC,06/07/2022,Unspecified,Science Group – Admin Function,Unspecified,99764355,340.00,Council & Committee Honoraria
BEIS,UKRI - BBSRC,06/07/2022,Unspecified,Science Group – Admin Function,Unspecified,99764356,340.00,Council & Committee Honoraria
BEIS,UKRI - BBSRC,06/07/2022,Unspecified,Science Group – Admin Function,Unspecified,99764357,340.00,Council & Committee Honoraria
BEIS,UKRI - BBSRC,06/07/2022,Unspecified,Science Group – Admin Function,Unspecified,99764358,340.00,Council & Committee Honoraria
BEIS,UKRI - BBSRC,06/07/2022,Unspecified,Science Group – Admin Function,Unspecified,99764359,460.00,Council & Committee Honoraria
BEIS,UKRI - BBSRC,06/07/2022,Unspecified,Science Group – Admin Function,Unspecified,99764361,340.00,Council & Committee Honoraria
BEIS,UKRI - BBSRC,06/07/2022,Unspecified,Science Group – Admin Function,Unspecified,99764362,340.00,Council & Committee Honoraria
BEIS,UKRI - BBSRC,06/07/2022,Unspecified,Science Group – Admin Function,Unspecified,99764363,340.00,Council & Committee Honoraria
BEIS,UKRI - BBSRC,06/07/2022,Unspecified,Science Group – Admin Function,Unspecified,99764364,460.00,Council & Committee Honoraria
BEIS,UKRI - BBSRC,06/07/2022,Unspecified,Science Group – Admin Function,Unspecified,99764365,340.00,Council & Committee Honoraria
BEIS,UKRI - BBSRC,06/07/2022,Unspecified,Science Group – Admin Function,Unspecified,99764366,340.00,Council & Committee Honoraria
BEIS,UKRI - BBSRC,06/07/2022,Unspecified,Science Group – Admin Function,Unspecified,99764367,340.00,Council & Committee Honoraria
BEIS,UKRI - BBSRC,06/07/2022,Unspecified,Science Group – Admin Function,Unspecified,99764368,340.00,Council & Committee Honoraria
BEIS,UKRI - BBSRC,06/07/2022,Unspecified,Science Group – Admin Function,Unspecified,99764369,340.00,Council & Committee Honoraria
BEIS,UKRI - BBSRC,06/07/2022,Unspecified,Science Group – Admin Function,Unspecified,99764370,340.00,Council & Committee Honoraria
BEIS,UKRI - BBSRC,06/07/2022,Unspecified,Science Group – Admin Function,Unspecified,99764371,460.00,Council & Committee Honoraria
BEIS,UKRI - BBSRC,06/07/2022,Unspecified,Science Group – Admin Function,Unspecified,99764372,340.00,Council & Committee Honoraria
BEIS,UKRI - BBSRC,07/07/2022,Unspecified,FG - Estates,MORTON FRASER LLP,99756319,5852.00,Legal & Professional Services
BEIS,UKRI - BBSRC,07/07/2022,Consultancy Services,CE - CPS,CAMBRIDGE POLICY CONSULTANTS LTD,99764808,17028.00,Consultancy Services
BEIS,UKRI - BBSRC,08/07/2022,Research Grant Expenditure,Impact & Knowledge Exchange,Royal Microscopical Society,99766247,6529.92,Research Grant Expenditure
BEIS,UKRI - BBSRC,11/07/2022,Research Institutes - Capital Grants: Minor Works,JIC,John Innes Centre,99759094,62640.00,Research Institutes - Capital Grants: Minor Works
BEIS,UKRI - BBSRC,11/07/2022,T&S UK - Other Charges,Innovation and Skills Group CDSU,Unspecified,99765623,26.99,T&S UK - Other Charges
BEIS,UKRI - BBSRC,11/07/2022,T&S UK - Public Transport,Science Group,Unspecified,99765625,9.50,T&S UK - Public Transport
BEIS,UKRI - BBSRC,11/07/2022,T&S UK - Subsistence,Science Group,Unspecified,99765625,19.35,T&S UK - Subsistence
BEIS,UKRI - BBSRC,11/07/2022,T&S UK - Other Charges,CE - Chief Executive,Unspecified,99765626,22.25,T&S UK - Other Charges
BEIS,UKRI - BBSRC,12/07/2022,Research Grant Expenditure,Research: Responsive,UKRI - Engineering & Physical Sciences Research Council,99348344,-144968.58,Research Grant Expenditure
BEIS,UKRI - BBSRC,12/07/2022,Research Grant Expenditure,Research: Responsive,UKRI - Engineering & Physical Sciences Research Council,99348344,-131159.50,Research Grant Expenditure
BEIS,UKRI - BBSRC,12/07/2022,Research Grant Expenditure,Research: Responsive,UKRI - Engineering & Physical Sciences Research Council,99348344,-141001.72,Research Grant Expenditure
BEIS,UKRI - BBSRC,12/07/2022,Research Grant Expenditure,Research: Responsive,UKRI - Engineering & Physical Sciences Research Council,99348344,-133048.92,Research Grant Expenditure
BEIS,UKRI - BBSRC,12/07/2022,Research Grant Expenditure,Science Group,UKRI - Engineering & Physical Sciences Research Council,99558715,100000.00,Research Grant Expenditure
BEIS,UKRI - BBSRC,12/07/2022,Research Grant Expenditure,Innovation and Skills Group,UKRI - Engineering & Physical Sciences Research Council,99691733,57251.61,Research Grant Expenditure
BEIS,UKRI - BBSRC,12/07/2022,Fellowships,Innovation and Skills Group,UKRI - Engineering & Physical Sciences Research Council,99755651,5623.77,Fellowships
BEIS,UKRI - BBSRC,12/07/2022,Research Grant Expenditure,Innovation and Skills Group,UKRI - Engineering & Physical Sciences Research Council,99755663,17346.32,Research Grant Expenditure
BEIS,UKRI - BBSRC,12/07/2022,Research Grant Expenditure,Research: Responsive,UKRI - Engineering & Physical Sciences Research Council,99755665,71431.30,Research Grant Expenditure
BEIS,UKRI - BBSRC,12/07/2022,Research Grant Expenditure,Research: Responsive,UKRI - Engineering & Physical Sciences Research Council,99755665,115285.80,Research Grant Expenditure
BEIS,UKRI - BBSRC,12/07/2022,Research Grant Expenditure,Impact & Knowledge Exchange,UKRI - Engineering & Physical Sciences Research Council,99755667,52835.98,Research Grant Expenditure
BEIS,UKRI - BBSRC,12/07/2022,Research Grant Expenditure,Impact & Knowledge Exchange,UKRI - Engineering & Physical Sciences Research Council,99755801,128144.75,Research Grant Expenditure
BEIS,UKRI - BBSRC,12/07/2022,Research Grant Expenditure,Research: Responsive,UKRI - Engineering & Physical Sciences Research Council,99755809,115285.80,Research Grant Expenditure
BEIS,UKRI - BBSRC,12/07/2022,Research Grant Expenditure,Research: Responsive,UKRI - Engineering & Physical Sciences Research Council,99757383,-115285.80,Research Grant Expenditure
BEIS,UKRI - BBSRC,12/07/2022,Doctoral Training Accounts,FG - Accounts & Business Planning,UKRI - Engineering & Physical Sciences Research Council,99765754,28057.05,Doctoral Training Accounts
BEIS,UKRI - BBSRC,12/07/2022,Fees (Including College Members),Science Group - Delivery Function,Unspecified,99767118,340.00,Fees (Including College Members)
BEIS,UKRI - BBSRC,12/07/2022,Fees (Including College Members),Science Group – Admin Function,Unspecified,99767119,340.00,Fees (Including College Members)
BEIS,UKRI - BBSRC,12/07/2022,Fees (Including College Members),Science Group – Admin Function,Unspecified,99767120,340.00,Fees (Including College Members)
BEIS,UKRI - BBSRC,12/07/2022,T&S UK - Mileage,CE - CPS,Unspecified,99767235,184.50,T&S UK - Mileage
BEIS,UKRI - BBSRC,12/07/2022,T&S UK - Other Charges,CE - CPS,Unspecified,99767235,3.90,T&S UK - Other Charges
BEIS,UKRI - BBSRC,12/07/2022,T&S UK - Subsistence,CE - CPS,Unspecified,99767235,6.05,T&S UK - Subsistence
BEIS,UKRI - BBSRC,12/07/2022,T&S UK - Subsistence,CE - CPS,Unspecified,99767235,58.30,T&S UK - Subsistence
BEIS,UKRI - BBSRC,12/07/2022,T&S UK - Subsistence,CE - CPS,Unspecified,99767235,9.38,T&S UK - Subsistence
BEIS,UKRI - BBSRC,12/07/2022,T&S Overseas - Flights,Science Group – Admin Function,Corporate Travel Management (North) Ltd,99767875,2.50,T&S Overseas - Flights
BEIS,UKRI - BBSRC,12/07/2022,T&S Overseas - Flights,Science Group – Admin Function,Corporate Travel Management (North) Ltd,99767875,582.27,T&S Overseas - Flights
BEIS,UKRI - BBSRC,12/07/2022,T&S UK - Accommodation,CE - Chief Executive,Corporate Travel Management (North) Ltd,99767875,0.80,T&S UK - Accommodation
BEIS,UKRI - BBSRC,12/07/2022,T&S UK - Accommodation,CE - Chief Executive,Corporate Travel Management (North) Ltd,99767875,0.80,T&S UK - Accommodation
BEIS,UKRI - BBSRC,12/07/2022,T&S UK - Accommodation,CE - Chief Executive,Corporate Travel Management (North) Ltd,99767875,217.90,T&S UK - Accommodation
BEIS,UKRI - BBSRC,12/07/2022,T&S UK - Accommodation,CE - Chief Executive,Corporate Travel Management (North) Ltd,99767875,0.32,T&S UK - Accommodation
BEIS,UKRI - BBSRC,12/07/2022,T&S UK - Accommodation,Innovation and Skills Group,Corporate Travel Management (North) Ltd,99767875,0.80,T&S UK - Accommodation
BEIS,UKRI - BBSRC,12/07/2022,T&S UK - Accommodation,Innovation and Skills Group,Corporate Travel Management (North) Ltd,99767875,125.40,T&S UK - Accommodation
BEIS,UKRI - BBSRC,12/07/2022,T&S UK - Accommodation,Innovation and Skills Group,Corporate Travel Management (North) Ltd,99767875,0.80,T&S UK - Accommodation
BEIS,UKRI - BBSRC,12/07/2022,T&S UK - Accommodation,Innovation and Skills Group,Corporate Travel Management (North) Ltd,99767875,0.80,T&S UK - Accommodation
BEIS,UKRI - BBSRC,12/07/2022,T&S UK - Accommodation,Innovation and Skills Group,Corporate Travel Management (North) Ltd,99767875,190.00,T&S UK - Accommodation
BEIS,UKRI - BBSRC,12/07/2022,T&S UK - Accommodation,Innovation and Skills Group,Corporate Travel Management (North) Ltd,99767875,0.80,T&S UK - Accommodation
BEIS,UKRI - BBSRC,12/07/2022,T&S UK - Accommodation,Innovation and Skills Group,Corporate Travel Management (North) Ltd,99767875,94.98,T&S UK - Accommodation
BEIS,UKRI - BBSRC,12/07/2022,T&S UK - Accommodation,Innovation and Skills Group,Corporate Travel Management (North) Ltd,99767875,0.64,T&S UK - Accommodation
BEIS,UKRI - BBSRC,12/07/2022,T&S UK - Accommodation,Science Group,Corporate Travel Management (North) Ltd,99767875,0.80,T&S UK - Accommodation
BEIS,UKRI - BBSRC,12/07/2022,T&S UK - Accommodation,Science Group,Corporate Travel Management (North) Ltd,99767875,116.70,T&S UK - Accommodation
BEIS,UKRI - BBSRC,12/07/2022,T&S UK - Accommodation,Science Group,Corporate Travel Management (North) Ltd,99767875,0.80,T&S UK - Accommodation
BEIS,UKRI - BBSRC,12/07/2022,T&S UK - Accommodation,Science Group,Corporate Travel Management (North) Ltd,99767875,198.00,T&S UK - Accommodation
BEIS,UKRI - BBSRC,12/07/2022,T&S UK - Accommodation,Science Group,Corporate Travel Management (North) Ltd,99767875,0.80,T&S UK - Accommodation
BEIS,UKRI - BBSRC,12/07/2022,T&S UK - Accommodation,Science Group,Corporate Travel Management (North) Ltd,99767875,198.00,T&S UK - Accommodation
BEIS,UKRI - BBSRC,12/07/2022,T&S UK - Accommodation,Science Group,Corporate Travel Management (North) Ltd,99767875,0.80,T&S UK - Accommodation
BEIS,UKRI - BBSRC,12/07/2022,T&S UK - Accommodation,Science Group,Corporate Travel Management (North) Ltd,99767875,69.00,T&S UK - Accommodation
BEIS,UKRI - BBSRC,12/07/2022,T&S UK - Accommodation,Science Group,Corporate Travel Management (North) Ltd,99767875,0.80,T&S UK - Accommodation
BEIS,UKRI - BBSRC,12/07/2022,T&S UK - Accommodation,Science Group,Corporate Travel Management (North) Ltd,99767875,118.75,T&S UK - Accommodation
BEIS,UKRI - BBSRC,12/07/2022,T&S UK - Accommodation,Science Group,Corporate Travel Management (North) Ltd,99767875,0.80,T&S UK - Accommodation
BEIS,UKRI - BBSRC,12/07/2022,T&S UK - Accommodation,Science Group,Corporate Travel Management (North) Ltd,99767875,63.00,T&S UK - Accommodation
BEIS,UKRI - BBSRC,12/07/2022,T&S UK - Accommodation,Science Group,Corporate Travel Management (North) Ltd,99767875,0.16,T&S UK - Accommodation
BEIS,UKRI - BBSRC,12/07/2022,T&S UK - Accommodation,Science Group,Corporate Travel Management (North) Ltd,99767875,0.80,T&S UK - Accommodation
BEIS,UKRI - BBSRC,12/07/2022,T&S UK - Public Transport,CE - CPS,Corporate Travel Management (North) Ltd,99767875,0.25,T&S UK - Public Transport
BEIS,UKRI - BBSRC,12/07/2022,T&S UK - Public Transport,CE - CPS,Corporate Travel Management (North) Ltd,99767875,103.00,T&S UK - Public Transport
BEIS,UKRI - BBSRC,12/07/2022,T&S UK - Public Transport,CE - CPS,Corporate Travel Management (North) Ltd,99767875,0.25,T&S UK - Public Transport
BEIS,UKRI - BBSRC,12/07/2022,T&S UK - Public Transport,CE - CPS,Corporate Travel Management (North) Ltd,99767875,113.60,T&S UK - Public Transport
BEIS,UKRI - BBSRC,12/07/2022,T&S UK - Public Transport,CE - CPS,Corporate Travel Management (North) Ltd,99767875,0.25,T&S UK - Public Transport
BEIS,UKRI - BBSRC,12/07/2022,T&S UK - Public Transport,CE - CPS,Corporate Travel Management (North) Ltd,99767875,133.30,T&S UK - Public Transport
BEIS,UKRI - BBSRC,12/07/2022,T&S UK - Public Transport,CE - Chief Executive,Corporate Travel Management (North) Ltd,99767875,5.00,T&S UK - Public Transport
BEIS,UKRI - BBSRC,12/07/2022,T&S UK - Public Transport,CE - Chief Executive,Corporate Travel Management (North) Ltd,99767875,-190.00,T&S UK - Public Transport
BEIS,UKRI - BBSRC,12/07/2022,T&S UK - Public Transport,CE - Chief Executive,Corporate Travel Management (North) Ltd,99767875,0.25,T&S UK - Public Transport
BEIS,UKRI - BBSRC,12/07/2022,T&S UK - Public Transport,CE - Chief Executive,Corporate Travel Management (North) Ltd,99767875,124.80,T&S UK - Public Transport
BEIS,UKRI - BBSRC,12/07/2022,T&S UK - Public Transport,CE - Chief Executive,Corporate Travel Management (North) Ltd,99767875,0.25,T&S UK - Public Transport
BEIS,UKRI - BBSRC,12/07/2022,T&S UK - Public Transport,CE - Chief Executive,Corporate Travel Management (North) Ltd,99767875,125.20,T&S UK - Public Transport
BEIS,UKRI - BBSRC,12/07/2022,T&S UK - Public Transport,CE - Chief Executive,Corporate Travel Management (North) Ltd,99767875,0.25,T&S UK - Public Transport
BEIS,UKRI - BBSRC,12/07/2022,T&S UK - Public Transport,CE - Chief Executive,Corporate Travel Management (North) Ltd,99767875,125.20,T&S UK - Public Transport
BEIS,UKRI - BBSRC,12/07/2022,T&S UK - Public Transport,CE - Chief Executive,Corporate Travel Management (North) Ltd,99767875,0.25,T&S UK - Public Transport
BEIS,UKRI - BBSRC,12/07/2022,T&S UK - Public Transport,CE - Chief Executive,Corporate Travel Management (North) Ltd,99767875,31.60,T&S UK - Public Transport
BEIS,UKRI - BBSRC,12/07/2022,T&S UK - Public Transport,CE - Chief Executive,Corporate Travel Management (North) Ltd,99767875,0.25,T&S UK - Public Transport
BEIS,UKRI - BBSRC,12/07/2022,T&S UK - Public Transport,CE - Chief Executive,Corporate Travel Management (North) Ltd,99767875,42.40,T&S UK - Public Transport
BEIS,UKRI - BBSRC,12/07/2022,T&S UK - Public Transport,CE - Chief Executive,Corporate Travel Management (North) Ltd,99767875,0.25,T&S UK - Public Transport
BEIS,UKRI - BBSRC,12/07/2022,T&S UK - Public Transport,CE - Chief Executive,Corporate Travel Management (North) Ltd,99767875,34.70,T&S UK - Public Transport
BEIS,UKRI - BBSRC,12/07/2022,T&S UK - Public Transport,CE - IRU,Corporate Travel Management (North) Ltd,99767875,0.25,T&S UK - Public Transport
BEIS,UKRI - BBSRC,12/07/2022,T&S UK - Public Transport,CE - IRU,Corporate Travel Management (North) Ltd,99767875,77.30,T&S UK - Public Transport
BEIS,UKRI - BBSRC,12/07/2022,T&S UK - Public Transport,CE - IRU,Corporate Travel Management (North) Ltd,99767875,0.25,T&S UK - Public Transport
BEIS,UKRI - BBSRC,12/07/2022,T&S UK - Public Transport,CE - IRU,Corporate Travel Management (North) Ltd,99767875,124.80,T&S UK - Public Transport
BEIS,UKRI - BBSRC,12/07/2022,T&S UK - Public Transport,CE - IRU,Corporate Travel Management (North) Ltd,99767875,0.25,T&S UK - Public Transport
BEIS,UKRI - BBSRC,12/07/2022,T&S UK - Public Transport,CE - IRU,Corporate Travel Management (North) Ltd,99767875,90.60,T&S UK - Public Transport
BEIS,UKRI - BBSRC,12/07/2022,T&S UK - Public Transport,CIMG - Director,Corporate Travel Management (North) Ltd,99767875,0.25,T&S UK - Public Transport
BEIS,UKRI - BBSRC,12/07/2022,T&S UK - Public Transport,CIMG - Director,Corporate Travel Management (North) Ltd,99767875,112.70,T&S UK - Public Transport
BEIS,UKRI - BBSRC,12/07/2022,T&S UK - Public Transport,CIMG - Director,Corporate Travel Management (North) Ltd,99767875,0.25,T&S UK - Public Transport
BEIS,UKRI - BBSRC,12/07/2022,T&S UK - Public Transport,CIMG - Director,Corporate Travel Management (North) Ltd,99767875,124.30,T&S UK - Public Transport
BEIS,UKRI - BBSRC,12/07/2022,T&S UK - Public Transport,FG - Estates,Corporate Travel Management (North) Ltd,99767875,0.25,T&S UK - Public Transport
BEIS,UKRI - BBSRC,12/07/2022,T&S UK - Public Transport,FG - Estates,Corporate Travel Management (North) Ltd,99767875,164.10,T&S UK - Public Transport
BEIS,UKRI - BBSRC,12/07/2022,T&S UK - Public Transport,Innovation and Skills Group,Corporate Travel Management (North) Ltd,99767875,5.00,T&S UK - Public Transport
BEIS,UKRI - BBSRC,12/07/2022,T&S UK - Public Transport,Innovation and Skills Group,Corporate Travel Management (North) Ltd,99767875,-168.60,T&S UK - Public Transport
BEIS,UKRI - BBSRC,12/07/2022,T&S UK - Public Transport,Innovation and Skills Group,Corporate Travel Management (North) Ltd,99767875,0.25,T&S UK - Public Transport
BEIS,UKRI - BBSRC,12/07/2022,T&S UK - Public Transport,Innovation and Skills Group,Corporate Travel Management (North) Ltd,99767875,104.50,T&S UK - Public Transport
BEIS,UKRI - BBSRC,12/07/2022,T&S UK - Public Transport,Innovation and Skills Group,Corporate Travel Management (North) Ltd,99767875,0.25,T&S UK - Public Transport
BEIS,UKRI - BBSRC,12/07/2022,T&S UK - Public Transport,Innovation and Skills Group,Corporate Travel Management (North) Ltd,99767875,141.00,T&S UK - Public Transport
BEIS,UKRI - BBSRC,12/07/2022,T&S UK - Public Transport,Innovation and Skills Group,Corporate Travel Management (North) Ltd,99767875,0.25,T&S UK - Public Transport
BEIS,UKRI - BBSRC,12/07/2022,T&S UK - Public Transport,Innovation and Skills Group,Corporate Travel Management (North) Ltd,99767875,78.20,T&S UK - Public Transport
BEIS,UKRI - BBSRC,12/07/2022,T&S UK - Public Transport,Innovation and Skills Group,Corporate Travel Management (North) Ltd,99767875,0.25,T&S UK - Public Transport
BEIS,UKRI - BBSRC,12/07/2022,T&S UK - Public Transport,Innovation and Skills Group,Corporate Travel Management (North) Ltd,99767875,167.60,T&S UK - Public Transport
BEIS,UKRI - BBSRC,12/07/2022,T&S UK - Public Transport,Innovation and Skills Group,Corporate Travel Management (North) Ltd,99767875,0.25,T&S UK - Public Transport
BEIS,UKRI - BBSRC,12/07/2022,T&S UK - Public Transport,Innovation and Skills Group,Corporate Travel Management (North) Ltd,99767875,134.60,T&S UK - Public Transport
BEIS,UKRI - BBSRC,12/07/2022,T&S UK - Public Transport,Innovation and Skills Group,Corporate Travel Management (North) Ltd,99767875,0.25,T&S UK - Public Transport
BEIS,UKRI - BBSRC,12/07/2022,T&S UK - Public Transport,Innovation and Skills Group,Corporate Travel Management (North) Ltd,99767875,193.80,T&S UK - Public Transport
BEIS,UKRI - BBSRC,12/07/2022,T&S UK - Public Transport,Innovation and Skills Group,Corporate Travel Management (North) Ltd,99767875,0.25,T&S UK - Public Transport
BEIS,UKRI - BBSRC,12/07/2022,T&S UK - Public Transport,Innovation and Skills Group,Corporate Travel Management (North) Ltd,99767875,61.60,T&S UK - Public Transport
BEIS,UKRI - BBSRC,12/07/2022,T&S UK - Public Transport,Innovation and Skills Group,Corporate Travel Management (North) Ltd,99767875,0.25,T&S UK - Public Transport
BEIS,UKRI - BBSRC,12/07/2022,T&S UK - Public Transport,Innovation and Skills Group,Corporate Travel Management (North) Ltd,99767875,281.20,T&S UK - Public Transport
BEIS,UKRI - BBSRC,12/07/2022,T&S UK - Public Transport,Innovation and Skills Group,Corporate Travel Management (North) Ltd,99767875,0.25,T&S UK - Public Transport
BEIS,UKRI - BBSRC,12/07/2022,T&S UK - Public Transport,Innovation and Skills Group,Corporate Travel Management (North) Ltd,99767875,39.40,T&S UK - Public Transport
BEIS,UKRI - BBSRC,12/07/2022,T&S UK - Public Transport,Innovation and Skills Group,Corporate Travel Management (North) Ltd,99767875,0.12,T&S UK - Public Transport
BEIS,UKRI - BBSRC,12/07/2022,T&S UK - Public Transport,Innovation and Skills Group,Corporate Travel Management (North) Ltd,99767875,40.70,T&S UK - Public Transport
BEIS,UKRI - BBSRC,12/07/2022,T&S UK - Public Transport,Innovation and Skills Group,Corporate Travel Management (North) Ltd,99767875,0.13,T&S UK - Public Transport
BEIS,UKRI - BBSRC,12/07/2022,T&S UK - Public Transport,Innovation and Skills Group,Corporate Travel Management (North) Ltd,99767875,40.70,T&S UK - Public Transport
BEIS,UKRI - BBSRC,12/07/2022,T&S UK - Public Transport,Innovation and Skills Group,Corporate Travel Management (North) Ltd,99767875,0.50,T&S UK - Public Transport
BEIS,UKRI - BBSRC,12/07/2022,T&S UK - Public Transport,Innovation and Skills Group,Corporate Travel Management (North) Ltd,99767875,81.40,T&S UK - Public Transport
BEIS,UKRI - BBSRC,12/07/2022,T&S UK - Public Transport,Innovation and Skills Group,Corporate Travel Management (North) Ltd,99767875,0.06,T&S UK - Public Transport
BEIS,UKRI - BBSRC,12/07/2022,T&S UK - Public Transport,Innovation and Skills Group,Corporate Travel Management (North) Ltd,99767875,30.10,T&S UK - Public Transport
BEIS,UKRI - BBSRC,12/07/2022,T&S UK - Public Transport,Innovation and Skills Group,Corporate Travel Management (North) Ltd,99767875,0.06,T&S UK - Public Transport
BEIS,UKRI - BBSRC,12/07/2022,T&S UK - Public Transport,Innovation and Skills Group,Corporate Travel Management (North) Ltd,99767875,30.10,T&S UK - Public Transport
BEIS,UKRI - BBSRC,12/07/2022,T&S UK - Public Transport,Innovation and Skills Group,Corporate Travel Management (North) Ltd,99767875,0.06,T&S UK - Public Transport
BEIS,UKRI - BBSRC,12/07/2022,T&S UK - Public Transport,Innovation and Skills Group,Corporate Travel Management (North) Ltd,99767875,30.10,T&S UK - Public Transport
BEIS,UKRI - BBSRC,12/07/2022,T&S UK - Public Transport,Innovation and Skills Group,Corporate Travel Management (North) Ltd,99767875,0.25,T&S UK - Public Transport
BEIS,UKRI - BBSRC,12/07/2022,T&S UK - Public Transport,Innovation and Skills Group,Corporate Travel Management (North) Ltd,99767875,13.20,T&S UK - Public Transport
BEIS,UKRI - BBSRC,12/07/2022,T&S UK - Public Transport,Innovation and Skills Group,Corporate Travel Management (North) Ltd,99767875,0.07,T&S UK - Public Transport
BEIS,UKRI - BBSRC,12/07/2022,T&S UK - Public Transport,Innovation and Skills Group,Corporate Travel Management (North) Ltd,99767875,30.10,T&S UK - Public Transport
BEIS,UKRI - BBSRC,12/07/2022,T&S UK - Public Transport,Innovation and Skills Group,Corporate Travel Management (North) Ltd,99767875,0.25,T&S UK - Public Transport
BEIS,UKRI - BBSRC,12/07/2022,T&S UK - Public Transport,Innovation and Skills Group,Corporate Travel Management (North) Ltd,99767875,178.05,T&S UK - Public Transport
BEIS,UKRI - BBSRC,12/07/2022,T&S UK - Public Transport,Innovation and Skills Group,Corporate Travel Management (North) Ltd,99767875,0.25,T&S UK - Public Transport
BEIS,UKRI - BBSRC,12/07/2022,T&S UK - Public Transport,Innovation and Skills Group,Corporate Travel Management (North) Ltd,99767875,173.60,T&S UK - Public Transport
BEIS,UKRI - BBSRC,12/07/2022,T&S UK - Public Transport,Innovation and Skills Group,Corporate Travel Management (North) Ltd,99767875,0.25,T&S UK - Public Transport
BEIS,UKRI - BBSRC,12/07/2022,T&S UK - Public Transport,Innovation and Skills Group,Corporate Travel Management (North) Ltd,99767875,78.20,T&S UK - Public Transport
BEIS,UKRI - BBSRC,12/07/2022,T&S UK - Public Transport,Innovation and Skills Group,Corporate Travel Management (North) Ltd,99767875,0.25,T&S UK - Public Transport
BEIS,UKRI - BBSRC,12/07/2022,T&S UK - Public Transport,Innovation and Skills Group,Corporate Travel Management (North) Ltd,99767875,17.15,T&S UK - Public Transport
BEIS,UKRI - BBSRC,12/07/2022,T&S UK - Public Transport,Science Group,Corporate Travel Management (North) Ltd,99767875,0.50,T&S UK - Public Transport
BEIS,UKRI - BBSRC,12/07/2022,T&S UK - Public Transport,Science Group,Corporate Travel Management (North) Ltd,99767875,812.00,T&S UK - Public Transport
BEIS,UKRI - BBSRC,12/07/2022,T&S UK - Public Transport,Science Group,Corporate Travel Management (North) Ltd,99767875,0.50,T&S UK - Public Transport
BEIS,UKRI - BBSRC,12/07/2022,T&S UK - Public Transport,Science Group,Corporate Travel Management (North) Ltd,99767875,51.00,T&S UK - Public Transport
BEIS,UKRI - BBSRC,12/07/2022,T&S UK - Public Transport,Science Group,Corporate Travel Management (North) Ltd,99767875,51.00,T&S UK - Public Transport
BEIS,UKRI - BBSRC,12/07/2022,T&S UK - Public Transport,Science Group,Corporate Travel Management (North) Ltd,99767875,0.25,T&S UK - Public Transport
BEIS,UKRI - BBSRC,12/07/2022,T&S UK - Public Transport,Science Group,Corporate Travel Management (North) Ltd,99767875,113.50,T&S UK - Public Transport
BEIS,UKRI - BBSRC,12/07/2022,T&S UK - Public Transport,Science Group,Corporate Travel Management (North) Ltd,99767875,0.25,T&S UK - Public Transport
BEIS,UKRI - BBSRC,12/07/2022,T&S UK - Public Transport,Science Group,Corporate Travel Management (North) Ltd,99767875,76.50,T&S UK - Public Transport
BEIS,UKRI - BBSRC,12/07/2022,T&S UK - Public Transport,Science Group,Corporate Travel Management (North) Ltd,99767875,0.25,T&S UK - Public Transport
BEIS,UKRI - BBSRC,12/07/2022,T&S UK - Public Transport,Science Group,Corporate Travel Management (North) Ltd,99767875,92.50,T&S UK - Public Transport
BEIS,UKRI - BBSRC,12/07/2022,T&S UK - Public Transport,Science Group,Corporate Travel Management (North) Ltd,99767875,0.25,T&S UK - Public Transport
BEIS,UKRI - BBSRC,12/07/2022,T&S UK - Public Transport,Science Group,Corporate Travel Management (North) Ltd,99767875,244.80,T&S UK - Public Transport
BEIS,UKRI - BBSRC,12/07/2022,T&S UK - Public Transport,Science Group,Corporate Travel Management (North) Ltd,99767875,10.00,T&S UK - Public Transport
BEIS,UKRI - BBSRC,12/07/2022,T&S UK - Public Transport,Science Group,Corporate Travel Management (North) Ltd,99767875,-237.40,T&S UK - Public Transport
BEIS,UKRI - BBSRC,12/07/2022,T&S UK - Public Transport,Science Group,Corporate Travel Management (North) Ltd,99767875,5.00,T&S UK - Public Transport
BEIS,UKRI - BBSRC,12/07/2022,T&S UK - Public Transport,Science Group,Corporate Travel Management (North) Ltd,99767875,-90.10,T&S UK - Public Transport
BEIS,UKRI - BBSRC,12/07/2022,T&S UK - Public Transport,Science Group,Corporate Travel Management (North) Ltd,99767875,0.25,T&S UK - Public Transport
BEIS,UKRI - BBSRC,12/07/2022,T&S UK - Public Transport,Science Group,Corporate Travel Management (North) Ltd,99767875,154.90,T&S UK - Public Transport
BEIS,UKRI - BBSRC,12/07/2022,T&S UK - Public Transport,Science Group,Corporate Travel Management (North) Ltd,99767875,0.25,T&S UK - Public Transport
BEIS,UKRI - BBSRC,12/07/2022,T&S UK - Public Transport,Science Group,Corporate Travel Management (North) Ltd,99767875,310.00,T&S UK - Public Transport
BEIS,UKRI - BBSRC,12/07/2022,T&S UK - Public Transport,Science Group,Corporate Travel Management (North) Ltd,99767875,-128.20,T&S UK - Public Transport
BEIS,UKRI - BBSRC,12/07/2022,T&S UK - Public Transport,Science Group – Admin Function,Corporate Travel Management (North) Ltd,99767875,0.25,T&S UK - Public Transport
BEIS,UKRI - BBSRC,12/07/2022,T&S UK - Public Transport,Science Group – Admin Function,Corporate Travel Management (North) Ltd,99767875,125.20,T&S UK - Public Transport
BEIS,UKRI - BBSRC,12/07/2022,T&S UK - Public Transport,Science Group – Admin Function,Corporate Travel Management (North) Ltd,99767875,0.25,T&S UK - Public Transport
BEIS,UKRI - BBSRC,12/07/2022,T&S UK - Public Transport,Science Group – Admin Function,Corporate Travel Management (North) Ltd,99767875,107.20,T&S UK - Public Transport
BEIS,UKRI - BBSRC,13/07/2022,Unspecified,Balance Sheet,HM Revenue & Customs,99760964,77530.26,PAYE Payable Salaries
BEIS,UKRI - BBSRC,13/07/2022,Unspecified,Balance Sheet,HM Revenue & Customs,99760965,6661.00,Student Loans
BEIS,UKRI - BBSRC,13/07/2022,Unspecified,Balance Sheet,HM Revenue & Customs,99760966,115879.16,NI Payable Salaries
BEIS,UKRI - BBSRC,13/07/2022,Unspecified,FG - Accounts & Business Planning,HM Revenue & Customs,99760967,2782.00,Apprenticeship Levy
BEIS,UKRI - BBSRC,13/07/2022,Unspecified,Balance Sheet,HM Revenue & Customs,99762131,2341.51,PAYE Payable Salaries
BEIS,UKRI - BBSRC,13/07/2022,Unspecified,Balance Sheet,HM Revenue & Customs,99762132,14.21,NI Payable Salaries
BEIS,UKRI - BBSRC,13/07/2022,Unspecified,FG - Accounts & Business Planning,HM Revenue & Customs,99762133,35.00,Apprenticeship Levy
BEIS,UKRI - BBSRC,13/07/2022,Fees (Including College Members),Science Group – Admin Function,Unspecified,99768021,338.16,Fees (Including College Members)
BEIS,UKRI - BBSRC,13/07/2022,Research Grant Expenditure,ISCF Wave 1: Agri-food Technology Catalyst,Technology Strategy Board (Innovate UK),99768815,22588.10,Research Grant Expenditure
BEIS,UKRI - BBSRC,14/07/2022,Unspecified,Balance Sheet,Scottish Widows Life Assurance,99758657,8892.84,Partnership Pension Deductions
BEIS,UKRI - BBSRC,14/07/2022,Union Deductions,Balance Sheet,PCS Union,99760968,45.21,Union Deductions
BEIS,UKRI - BBSRC,14/07/2022,Voluntary Deductions,Balance Sheet,Swindon Office Sports and Social Club,99760969,48.00,Voluntary Deductions
BEIS,UKRI - BBSRC,14/07/2022,Unspecified,Balance Sheet,Unspecified,99760970,19966.95,Ees Pension Deductions - JSS
BEIS,UKRI - BBSRC,14/07/2022,Unspecified,Balance Sheet,Unspecified,99760971,82491.28,Ers Pension Deductions - JSS
BEIS,UKRI - BBSRC,14/07/2022,Unspecified,Balance Sheet,Scottish Widows Life Assurance,99760972,447.16,Partnership Pension Deductions
BEIS,UKRI - BBSRC,14/07/2022,Unspecified,Balance Sheet,Scottish Widows Life Assurance,99760973,10.00,Other Pension Deductions
BEIS,UKRI - BBSRC,14/07/2022,Unspecified,Balance Sheet,Cabinet Office RM Shared Services,99760974,13.30,Ers Pension Deductions - JSS
BEIS,UKRI - BBSRC,14/07/2022,Unspecified,Balance Sheet,Cabinet Office RM Shared Services,99760975,13704.39,Ees Pension Deductions - MyCSP
BEIS,UKRI - BBSRC,14/07/2022,Unspecified,Balance Sheet,Cabinet Office RM Shared Services,99760976,68183.55,Ers Pension Deductions - MyCSP
BEIS,UKRI - BBSRC,14/07/2022,Nursery Deductions,Balance Sheet,UKRI - Engineering & Physical Sciences Research Council,99760977,1390.00,Nursery Deductions
BEIS,UKRI - BBSRC,14/07/2022,Unspecified,Balance Sheet,Unspecified,99760978,388.26,Ees Pension Deductions - MRC
BEIS,UKRI - BBSRC,14/07/2022,Unspecified,Balance Sheet,Unspecified,99760979,955.72,Ers Pension Deductions - MRC
BEIS,UKRI - BBSRC,14/07/2022,Unspecified,FG - Estates,Womble Bond Dickinson LLP,99769010,13987.20,Legal & Professional Services
BEIS,UKRI - BBSRC,14/07/2022,T&S Overseas - Other Charges,CE - IRU,Unspecified,99769372,28.46,T&S Overseas - Other Charges
BEIS,UKRI - BBSRC,14/07/2022,T&S Overseas - Public Transport,CE - IRU,Unspecified,99769372,25.81,T&S Overseas - Public Transport
BEIS,UKRI - BBSRC,14/07/2022,T&S Overseas - Subsistence,CE - IRU,Unspecified,99769372,25.00,T&S Overseas - Subsistence
BEIS,UKRI - BBSRC,15/07/2022,Training Awards - Postgraduates,FG - Accounts & Business Planning,John Innes Centre,99764934,82.67,Training Awards - Postgraduates
BEIS,UKRI - BBSRC,15/07/2022,Training Awards - Postgraduates,FG - Accounts & Business Planning,Imperial College London,99764935,21190.79,Training Awards - Postgraduates
BEIS,UKRI - BBSRC,15/07/2022,Training Awards - Postgraduates,FG - Accounts & Business Planning,University of Leeds,99764936,-49715.00,Training Awards - Postgraduates
BEIS,UKRI - BBSRC,15/07/2022,Training Awards - Postgraduates,FG - Accounts & Business Planning,University of Leicester,99764937,7615.00,Training Awards - Postgraduates
BEIS,UKRI - BBSRC,15/07/2022,Training Awards - Postgraduates,FG - Accounts & Business Planning,University of York,99764938,5858.83,Training Awards - Postgraduates
BEIS,UKRI - BBSRC,15/07/2022,Training Awards - Postgraduates,FG - Accounts & Business Planning,University of Leicester,99764939,6138.25,Training Awards - Postgraduates
BEIS,UKRI - BBSRC,15/07/2022,Training Awards - Postgraduates,FG - Accounts & Business Planning,University of Liverpool,99764940,-13679.53,Training Awards - Postgraduates
BEIS,UKRI - BBSRC,15/07/2022,Training Awards - Postgraduates,FG - Accounts & Business Planning,University College London,99764941,-6185.61,Training Awards - Postgraduates
BEIS,UKRI - BBSRC,15/07/2022,Training Awards - Postgraduates,FG - Accounts & Business Planning,University College London,99764942,6638.25,Training Awards - Postgraduates
BEIS,UKRI - BBSRC,15/07/2022,Training Awards - Postgraduates,FG - Accounts & Business Planning,University of Warwick,99764943,8239.25,Training Awards - Postgraduates
BEIS,UKRI - BBSRC,15/07/2022,Training Awards - Postgraduates,FG - Accounts & Business Planning,University of Birmingham GRANT,99764944,4309.34,Training Awards - Postgraduates
BEIS,UKRI - BBSRC,15/07/2022,Training Awards - Postgraduates,FG - Accounts & Business Planning,John Innes Centre,99764945,-53965.21,Training Awards - Postgraduates
BEIS,UKRI - BBSRC,15/07/2022,Training Awards - Postgraduates,FG - Accounts & Business Planning,Queen Mary University of London,99764946,6638.25,Training Awards - Postgraduates
BEIS,UKRI - BBSRC,15/07/2022,Training Awards - Postgraduates,FG - Accounts & Business Planning,University College London,99764947,6551.46,Training Awards - Postgraduates
BEIS,UKRI - BBSRC,15/07/2022,Training Awards - Postgraduates,FG - Accounts & Business Planning,University of Oxford,99764948,2372.35,Training Awards - Postgraduates
BEIS,UKRI - BBSRC,15/07/2022,Training Awards - Postgraduates,FG - Accounts & Business Planning,The University of Manchester,99764949,-10862.59,Training Awards - Postgraduates
BEIS,UKRI - BBSRC,15/07/2022,Training Awards - Postgraduates,FG - Accounts & Business Planning,The University of Manchester,99764950,4197.45,Training Awards - Postgraduates
BEIS,UKRI - BBSRC,15/07/2022,Training Awards - Postgraduates,FG - Accounts & Business Planning,The University of Manchester,99764951,-420.45,Training Awards - Postgraduates
BEIS,UKRI - BBSRC,15/07/2022,Training Awards - Postgraduates,FG - Accounts & Business Planning,Imperial College London,99764952,1221.30,Training Awards - Postgraduates
BEIS,UKRI - BBSRC,15/07/2022,Training Awards - Postgraduates,FG - Accounts & Business Planning,Imperial College London,99764953,-205.31,Training Awards - Postgraduates
BEIS,UKRI - BBSRC,15/07/2022,Training Awards - Postgraduates,FG - Accounts & Business Planning,The University of Manchester,99764954,6129.58,Training Awards - Postgraduates
BEIS,UKRI - BBSRC,15/07/2022,Training Awards - Postgraduates,FG - Accounts & Business Planning,Imperial College London,99764955,-1708.19,Training Awards - Postgraduates
BEIS,UKRI - BBSRC,15/07/2022,Training Awards - Postgraduates,FG - Accounts & Business Planning,University of Edinburgh,99764956,6138.25,Training Awards - Postgraduates
BEIS,UKRI - BBSRC,15/07/2022,Training Awards - Postgraduates,FG - Accounts & Business Planning,University of Edinburgh,99764957,6101.42,Training Awards - Postgraduates
BEIS,UKRI - BBSRC,15/07/2022,Training Awards - Postgraduates,FG - Accounts & Business Planning,John Innes Centre,99764958,5692.28,Training Awards - Postgraduates
BEIS,UKRI - BBSRC,15/07/2022,Training Awards - Postgraduates,FG - Accounts & Business Planning,National Institute For Agricultural Botany (NIAB),99764959,1443.25,Training Awards - Postgraduates
BEIS,UKRI - BBSRC,15/07/2022,Training Awards - Postgraduates,FG - Accounts & Business Planning,University of St Andrews,99764960,5746.28,Training Awards - Postgraduates
BEIS,UKRI - BBSRC,15/07/2022,Training Awards - Postgraduates,FG - Accounts & Business Planning,University of Aberdeen,99764961,-528.13,Training Awards - Postgraduates
BEIS,UKRI - BBSRC,15/07/2022,Training Awards - Postgraduates,FG - Accounts & Business Planning,University of Liverpool,99764962,-15024.58,Training Awards - Postgraduates
BEIS,UKRI - BBSRC,15/07/2022,Training Awards - Postgraduates,FG - Accounts & Business Planning,Lancaster University,99764963,-3352.66,Training Awards - Postgraduates
BEIS,UKRI - BBSRC,15/07/2022,Training Awards - Postgraduates,FG - Accounts & Business Planning,University of Cambridge,99764964,6129.96,Training Awards - Postgraduates
BEIS,UKRI - BBSRC,15/07/2022,Training Awards - Postgraduates,FG - Accounts & Business Planning,Queen Mary University of London,99764965,6263.25,Training Awards - Postgraduates
BEIS,UKRI - BBSRC,15/07/2022,Training Awards - Postgraduates,FG - Accounts & Business Planning,University of Exeter,99764966,6138.25,Training Awards - Postgraduates
BEIS,UKRI - BBSRC,15/07/2022,Training Awards - Postgraduates,FG - Accounts & Business Planning,University of Reading,99764967,6138.25,Training Awards - Postgraduates
BEIS,UKRI - BBSRC,15/07/2022,Training Awards - Postgraduates,FG - Accounts & Business Planning,Lancaster University,99764968,10639.64,Training Awards - Postgraduates
BEIS,UKRI - BBSRC,15/07/2022,Training Awards - Postgraduates,FG - Accounts & Business Planning,University of York,99764969,4228.18,Training Awards - Postgraduates
BEIS,UKRI - BBSRC,15/07/2022,Training Awards - Postgraduates,FG - Accounts & Business Planning,University of Cambridge,99764970,6032.91,Training Awards - Postgraduates
BEIS,UKRI - BBSRC,15/07/2022,Training Awards - Postgraduates,FG - Accounts & Business Planning,University of Glasgow,99764971,-1371.41,Training Awards - Postgraduates
BEIS,UKRI - BBSRC,15/07/2022,Training Awards - Postgraduates,FG - Accounts & Business Planning,University of Sheffield,99764972,-32159.40,Training Awards - Postgraduates
BEIS,UKRI - BBSRC,15/07/2022,Training Awards - Postgraduates,FG - Accounts & Business Planning,University of Edinburgh,99764973,1661.27,Training Awards - Postgraduates
BEIS,UKRI - BBSRC,15/07/2022,Training Awards - Postgraduates,FG - Accounts & Business Planning,University of Southampton GRANT,99764974,-5834.52,Training Awards - Postgraduates
BEIS,UKRI - BBSRC,15/07/2022,Training Awards - Postgraduates,FG - Accounts & Business Planning,University of Oxford,99764975,5220.01,Training Awards - Postgraduates
BEIS,UKRI - BBSRC,15/07/2022,Training Awards - Postgraduates,FG - Accounts & Business Planning,University of Exeter,99764976,20720.60,Training Awards - Postgraduates
BEIS,UKRI - BBSRC,15/07/2022,Training Awards - Postgraduates,FG - Accounts & Business Planning,University of Nottingham,99764977,3247.59,Training Awards - Postgraduates
BEIS,UKRI - BBSRC,15/07/2022,Training Awards - Postgraduates,FG - Accounts & Business Planning,University of Newcastle Upon Tyne,99764978,3692.86,Training Awards - Postgraduates
BEIS,UKRI - BBSRC,15/07/2022,Training Awards - Postgraduates,FG - Accounts & Business Planning,University of Reading,99764979,-34.00,Training Awards - Postgraduates
BEIS,UKRI - BBSRC,15/07/2022,Training Awards - Postgraduates,FG - Accounts & Business Planning,National Institute For Agricultural Botany (NIAB),99765758,6495.56,Training Awards - Postgraduates
BEIS,UKRI - BBSRC,15/07/2022,Training Awards - Postgraduates,FG - Accounts & Business Planning,The University of Manchester,99765759,6495.56,Training Awards - Postgraduates
BEIS,UKRI - BBSRC,15/07/2022,Training Awards - Postgraduates,FG - Accounts & Business Planning,National Institute For Agricultural Botany (NIAB),99765760,6495.56,Training Awards - Postgraduates
BEIS,UKRI - BBSRC,15/07/2022,Training Awards - Postgraduates,FG - Accounts & Business Planning,National Institute For Agricultural Botany (NIAB),99765761,6495.56,Training Awards - Postgraduates
BEIS,UKRI - BBSRC,15/07/2022,Training Awards - Postgraduates,FG - Accounts & Business Planning,National Institute For Agricultural Botany (NIAB),99765762,6495.56,Training Awards - Postgraduates
BEIS,UKRI - BBSRC,15/07/2022,Training Awards - Postgraduates,FG - Accounts & Business Planning,National Institute For Agricultural Botany (NIAB),99765763,6495.56,Training Awards - Postgraduates
BEIS,UKRI - BBSRC,15/07/2022,Training Awards - Postgraduates,FG - Accounts & Business Planning,National Institute For Agricultural Botany (NIAB),99765764,6495.56,Training Awards - Postgraduates
BEIS,UKRI - BBSRC,15/07/2022,Training Awards - Postgraduates,FG - Accounts & Business Planning,National Institute For Agricultural Botany (NIAB),99765765,6495.56,Training Awards - Postgraduates
BEIS,UKRI - BBSRC,15/07/2022,Training Awards - Postgraduates,FG - Accounts & Business Planning,National Institute For Agricultural Botany (NIAB),99765766,6495.56,Training Awards - Postgraduates
BEIS,UKRI - BBSRC,15/07/2022,Training Awards - Postgraduates,FG - Accounts & Business Planning,Queen Mary University of London,99765767,6876.63,Training Awards - Postgraduates
BEIS,UKRI - BBSRC,15/07/2022,Training Awards - Postgraduates,FG - Accounts & Business Planning,The University of Manchester,99765768,6495.56,Training Awards - Postgraduates
BEIS,UKRI - BBSRC,15/07/2022,Training Awards - Postgraduates,FG - Accounts & Business Planning,University of York,99765769,6495.56,Training Awards - Postgraduates
BEIS,UKRI - BBSRC,15/07/2022,Training Awards - Postgraduates,FG - Accounts & Business Planning,University of Warwick,99765770,6495.56,Training Awards - Postgraduates
BEIS,UKRI - BBSRC,15/07/2022,Training Awards - Postgraduates,FG - Accounts & Business Planning,University of Nottingham,99765771,6495.56,Training Awards - Postgraduates
BEIS,UKRI - BBSRC,15/07/2022,Training Awards - Postgraduates,FG - Accounts & Business Planning,University of Liverpool,99765772,6495.56,Training Awards - Postgraduates
BEIS,UKRI - BBSRC,15/07/2022,Training Awards - Postgraduates,FG - Accounts & Business Planning,University of Liverpool,99765773,6495.56,Training Awards - Postgraduates
BEIS,UKRI - BBSRC,15/07/2022,Training Awards - Postgraduates,FG - Accounts & Business Planning,University of Exeter,99765774,6495.56,Training Awards - Postgraduates
BEIS,UKRI - BBSRC,15/07/2022,Training Awards - Postgraduates,FG - Accounts & Business Planning,Teesside University,99765775,6495.56,Training Awards - Postgraduates
BEIS,UKRI - BBSRC,15/07/2022,Training Awards - Postgraduates,FG - Accounts & Business Planning,Quadram Institute Bioscience,99765776,6495.59,Training Awards - Postgraduates
BEIS,UKRI - BBSRC,15/07/2022,Training Awards - Postgraduates,FG - Accounts & Business Planning,Queen Mary University of London,99765777,6995.56,Training Awards - Postgraduates
BEIS,UKRI - BBSRC,15/07/2022,Training Awards - Postgraduates,FG - Accounts & Business Planning,University of Cambridge,99765778,6495.56,Training Awards - Postgraduates
BEIS,UKRI - BBSRC,15/07/2022,Training Awards - Postgraduates,FG - Accounts & Business Planning,University of York,99765779,6495.56,Training Awards - Postgraduates
BEIS,UKRI - BBSRC,15/07/2022,Training Awards - Postgraduates,FG - Accounts & Business Planning,University of Strathclyde,99765780,6495.56,Training Awards - Postgraduates
BEIS,UKRI - BBSRC,15/07/2022,Training Awards - Postgraduates,FG - Accounts & Business Planning,University of Strathclyde,99765780,6495.56,Training Awards - Postgraduates
BEIS,UKRI - BBSRC,15/07/2022,Training Awards - Postgraduates,FG - Accounts & Business Planning,University of Strathclyde,99765780,6495.59,Training Awards - Postgraduates
BEIS,UKRI - BBSRC,15/07/2022,Training Awards - Postgraduates,FG - Accounts & Business Planning,University of Strathclyde,99765780,6495.56,Training Awards - Postgraduates
BEIS,UKRI - BBSRC,15/07/2022,Training Awards - Postgraduates,FG - Accounts & Business Planning,Robert Gordon University,99765781,6495.56,Training Awards - Postgraduates
BEIS,UKRI - BBSRC,15/07/2022,Training Awards - Postgraduates,FG - Accounts & Business Planning,Robert Gordon University,99765782,6495.56,Training Awards - Postgraduates
BEIS,UKRI - BBSRC,15/07/2022,Training Awards - Postgraduates,FG - Accounts & Business Planning,The University of Manchester,99765783,6495.56,Training Awards - Postgraduates
BEIS,UKRI - BBSRC,15/07/2022,Training Awards - Postgraduates,FG - Accounts & Business Planning,University of Edinburgh,99765784,6495.56,Training Awards - Postgraduates
BEIS,UKRI - BBSRC,15/07/2022,Training Awards - Postgraduates,FG - Accounts & Business Planning,University of Edinburgh,99765785,6495.56,Training Awards - Postgraduates
BEIS,UKRI - BBSRC,15/07/2022,Training Awards - Postgraduates,FG - Accounts & Business Planning,University of Edinburgh,99765786,6495.56,Training Awards - Postgraduates
BEIS,UKRI - BBSRC,15/07/2022,Training Awards - Postgraduates,FG - Accounts & Business Planning,University of Edinburgh,99765787,6495.56,Training Awards - Postgraduates
BEIS,UKRI - BBSRC,15/07/2022,Training Awards - Postgraduates,FG - Accounts & Business Planning,University of York,99765788,6495.56,Training Awards - Postgraduates
BEIS,UKRI - BBSRC,15/07/2022,Training Awards - Postgraduates,FG - Accounts & Business Planning,Heriot Watt University,99765789,6495.56,Training Awards - Postgraduates
BEIS,UKRI - BBSRC,15/07/2022,Training Awards - Postgraduates,FG - Accounts & Business Planning,Kingston University,99765790,6995.56,Training Awards - Postgraduates
BEIS,UKRI - BBSRC,15/07/2022,Training Awards - Postgraduates,FG - Accounts & Business Planning,Imperial College London,99765791,6995.56,Training Awards - Postgraduates
BEIS,UKRI - BBSRC,15/07/2022,Training Awards - Postgraduates,FG - Accounts & Business Planning,University of Nottingham,99765792,6495.56,Training Awards - Postgraduates
BEIS,UKRI - BBSRC,15/07/2022,Training Awards - Postgraduates,FG - Accounts & Business Planning,University of Liverpool,99765793,6495.56,Training Awards - Postgraduates
BEIS,UKRI - BBSRC,15/07/2022,Training Awards - Postgraduates,FG - Accounts & Business Planning,University of Leeds,99765794,6495.56,Training Awards - Postgraduates
BEIS,UKRI - BBSRC,15/07/2022,Training Awards - Postgraduates,FG - Accounts & Business Planning,University of Glasgow,99765795,6495.56,Training Awards - Postgraduates
BEIS,UKRI - BBSRC,15/07/2022,Training Awards - Postgraduates,FG - Accounts & Business Planning,Babraham Institute,99765796,6495.56,Training Awards - Postgraduates
BEIS,UKRI - BBSRC,15/07/2022,Training Awards - Postgraduates,FG - Accounts & Business Planning,University of Sheffield,99765797,6495.56,Training Awards - Postgraduates
BEIS,UKRI - BBSRC,15/07/2022,Training Awards - Postgraduates,FG - Accounts & Business Planning,University of Nottingham,99765798,6495.56,Training Awards - Postgraduates
BEIS,UKRI - BBSRC,15/07/2022,Training Awards - Postgraduates,FG - Accounts & Business Planning,University of Birmingham GRANT,99765799,6495.56,Training Awards - Postgraduates
BEIS,UKRI - BBSRC,15/07/2022,Training Awards - Postgraduates,FG - Accounts & Business Planning,University College London,99765800,6995.56,Training Awards - Postgraduates
BEIS,UKRI - BBSRC,15/07/2022,Training Awards - Postgraduates,FG - Accounts & Business Planning,University College London,99765801,6995.56,Training Awards - Postgraduates
BEIS,UKRI - BBSRC,15/07/2022,Training Awards - Postgraduates,FG - Accounts & Business Planning,University College London,99765802,6995.56,Training Awards - Postgraduates
BEIS,UKRI - BBSRC,15/07/2022,Training Awards - Postgraduates,FG - Accounts & Business Planning,Institute of Cancer Research,99765803,6995.56,Training Awards - Postgraduates
BEIS,UKRI - BBSRC,15/07/2022,Training Awards - Postgraduates,FG - Accounts & Business Planning,Brunel University London,99765804,6995.56,Training Awards - Postgraduates
BEIS,UKRI - BBSRC,15/07/2022,Training Awards - Postgraduates,FG - Accounts & Business Planning,Queen Mary University of London,99765805,6995.56,Training Awards - Postgraduates
BEIS,UKRI - BBSRC,15/07/2022,Training Awards - Postgraduates,FG - Accounts & Business Planning,Imperial College London,99765806,6995.56,Training Awards - Postgraduates
BEIS,UKRI - BBSRC,15/07/2022,Training Awards - Postgraduates,FG - Accounts & Business Planning,Imperial College London,99765807,6995.56,Training Awards - Postgraduates
BEIS,UKRI - BBSRC,15/07/2022,Training Awards - Postgraduates,FG - Accounts & Business Planning,University of Sheffield,99765808,6495.56,Training Awards - Postgraduates
BEIS,UKRI - BBSRC,15/07/2022,Training Awards - Postgraduates,FG - Accounts & Business Planning,The University of Manchester,99765809,6495.56,Training Awards - Postgraduates
BEIS,UKRI - BBSRC,15/07/2022,Training Awards - Postgraduates,FG - Accounts & Business Planning,University of Cambridge,99765810,6495.56,Training Awards - Postgraduates
BEIS,UKRI - BBSRC,15/07/2022,Training Awards - Postgraduates,FG - Accounts & Business Planning,Babraham Institute,99765811,6495.56,Training Awards - Postgraduates
BEIS,UKRI - BBSRC,15/07/2022,Training Awards - Postgraduates,FG - Accounts & Business Planning,University of Newcastle Upon Tyne,99765812,6376.63,Training Awards - Postgraduates
BEIS,UKRI - BBSRC,15/07/2022,Training Awards - Postgraduates,FG - Accounts & Business Planning,University of Aberdeen,99765813,6376.63,Training Awards - Postgraduates
BEIS,UKRI - BBSRC,15/07/2022,Training Awards - Postgraduates,FG - Accounts & Business Planning,University of Cambridge,99765814,6376.62,Training Awards - Postgraduates
BEIS,UKRI - BBSRC,15/07/2022,Training Awards - Postgraduates,FG - Accounts & Business Planning,The University of Manchester,99765815,6376.62,Training Awards - Postgraduates
BEIS,UKRI - BBSRC,15/07/2022,Training Awards - Postgraduates,FG - Accounts & Business Planning,Queen Mary University of London,99765816,6876.62,Training Awards - Postgraduates
BEIS,UKRI - BBSRC,15/07/2022,Training Awards - Postgraduates,FG - Accounts & Business Planning,King's College London,99765817,6876.62,Training Awards - Postgraduates
BEIS,UKRI - BBSRC,15/07/2022,Training Awards - Postgraduates,FG - Accounts & Business Planning,University of Southampton GRANT,99765818,6376.62,Training Awards - Postgraduates
BEIS,UKRI - BBSRC,15/07/2022,Training Awards - Postgraduates,FG - Accounts & Business Planning,University of Southampton GRANT,99765819,6376.62,Training Awards - Postgraduates
BEIS,UKRI - BBSRC,15/07/2022,Training Awards - Postgraduates,FG - Accounts & Business Planning,National Institute For Agricultural Botany (NIAB),99765820,6376.62,Training Awards - Postgraduates
BEIS,UKRI - BBSRC,15/07/2022,Training Awards - Postgraduates,FG - Accounts & Business Planning,National Institute For Agricultural Botany (NIAB),99765821,6376.62,Training Awards - Postgraduates
BEIS,UKRI - BBSRC,15/07/2022,Training Awards - Postgraduates,FG - Accounts & Business Planning,National Institute For Agricultural Botany (NIAB),99765822,6376.62,Training Awards - Postgraduates
BEIS,UKRI - BBSRC,15/07/2022,Training Awards - Postgraduates,FG - Accounts & Business Planning,National Institute For Agricultural Botany (NIAB),99765823,6376.62,Training Awards - Postgraduates
BEIS,UKRI - BBSRC,15/07/2022,Training Awards - Postgraduates,FG - Accounts & Business Planning,National Institute For Agricultural Botany (NIAB),99765824,6376.62,Training Awards - Postgraduates
BEIS,UKRI - BBSRC,15/07/2022,Training Awards - Postgraduates,FG - Accounts & Business Planning,National Institute For Agricultural Botany (NIAB),99765825,6376.62,Training Awards - Postgraduates
BEIS,UKRI - BBSRC,15/07/2022,Training Awards - Postgraduates,FG - Accounts & Business Planning,University of Reading,99765826,6376.62,Training Awards - Postgraduates
BEIS,UKRI - BBSRC,15/07/2022,Training Awards - Postgraduates,FG - Accounts & Business Planning,University of Reading,99765827,6376.62,Training Awards - Postgraduates
BEIS,UKRI - BBSRC,15/07/2022,Training Awards - Postgraduates,FG - Accounts & Business Planning,University of Reading,99765828,6376.62,Training Awards - Postgraduates
BEIS,UKRI - BBSRC,15/07/2022,Training Awards - Postgraduates,FG - Accounts & Business Planning,Lancaster University,99765829,6376.62,Training Awards - Postgraduates
BEIS,UKRI - BBSRC,15/07/2022,Training Awards - Postgraduates,FG - Accounts & Business Planning,Lancaster University,99765830,6376.62,Training Awards - Postgraduates
BEIS,UKRI - BBSRC,15/07/2022,Training Awards - Postgraduates,FG - Accounts & Business Planning,Lancaster University,99765831,6376.62,Training Awards - Postgraduates
BEIS,UKRI - BBSRC,15/07/2022,Training Awards - Postgraduates,FG - Accounts & Business Planning,University of Oxford,99765832,6376.62,Training Awards - Postgraduates
BEIS,UKRI - BBSRC,15/07/2022,Training Awards - Postgraduates,FG - Accounts & Business Planning,University of Warwick,99765833,6376.62,Training Awards - Postgraduates
BEIS,UKRI - BBSRC,15/07/2022,Training Awards - Postgraduates,FG - Accounts & Business Planning,Queen Mary University of London,99765834,6876.62,Training Awards - Postgraduates
BEIS,UKRI - BBSRC,15/07/2022,Training Awards - Postgraduates,FG - Accounts & Business Planning,King's College London,99765835,6876.62,Training Awards - Postgraduates
BEIS,UKRI - BBSRC,15/07/2022,Training Awards - Postgraduates,FG - Accounts & Business Planning,King's College London,99765836,6188.96,Training Awards - Postgraduates
BEIS,UKRI - BBSRC,15/07/2022,Training Awards - Postgraduates,FG - Accounts & Business Planning,King's College London,99765837,6876.62,Training Awards - Postgraduates
BEIS,UKRI - BBSRC,15/07/2022,Training Awards - Postgraduates,FG - Accounts & Business Planning,Imperial College London,99765838,6876.62,Training Awards - Postgraduates
BEIS,UKRI - BBSRC,15/07/2022,Training Awards - Postgraduates,FG - Accounts & Business Planning,Imperial College London,99765839,6876.62,Training Awards - Postgraduates
BEIS,UKRI - BBSRC,15/07/2022,Training Awards - Postgraduates,FG - Accounts & Business Planning,University College London,99765840,6876.62,Training Awards - Postgraduates
BEIS,UKRI - BBSRC,15/07/2022,Training Awards - Postgraduates,FG - Accounts & Business Planning,University College London,99765841,6876.62,Training Awards - Postgraduates
BEIS,UKRI - BBSRC,15/07/2022,Training Awards - Postgraduates,FG - Accounts & Business Planning,Imperial College London,99765842,6876.62,Training Awards - Postgraduates
BEIS,UKRI - BBSRC,15/07/2022,Training Awards - Postgraduates,FG - Accounts & Business Planning,University of Reading,99765843,2584.00,Training Awards - Postgraduates
BEIS,UKRI - BBSRC,15/07/2022,Training Awards - Postgraduates,FG - Accounts & Business Planning,University of Sheffield,99765844,6376.62,Training Awards - Postgraduates
BEIS,UKRI - BBSRC,15/07/2022,Training Awards - Postgraduates,FG - Accounts & Business Planning,University of Nottingham,99765845,6376.62,Training Awards - Postgraduates
BEIS,UKRI - BBSRC,15/07/2022,Training Awards - Postgraduates,FG - Accounts & Business Planning,University of Glasgow,99765846,6376.62,Training Awards - Postgraduates
BEIS,UKRI - BBSRC,15/07/2022,Training Awards - Postgraduates,FG - Accounts & Business Planning,University of Leeds,99765847,6376.62,Training Awards - Postgraduates
BEIS,UKRI - BBSRC,15/07/2022,Training Awards - Postgraduates,FG - Accounts & Business Planning,University of Cambridge,99765848,6376.62,Training Awards - Postgraduates
BEIS,UKRI - BBSRC,15/07/2022,Training Awards - Postgraduates,FG - Accounts & Business Planning,University of Cambridge,99765849,6376.62,Training Awards - Postgraduates
BEIS,UKRI - BBSRC,15/07/2022,Training Awards - Postgraduates,FG - Accounts & Business Planning,University of Cambridge,99765850,6376.62,Training Awards - Postgraduates
BEIS,UKRI - BBSRC,15/07/2022,Training Awards - Postgraduates,FG - Accounts & Business Planning,University of Cambridge,99765851,6376.62,Training Awards - Postgraduates
BEIS,UKRI - BBSRC,15/07/2022,Training Awards - Postgraduates,FG - Accounts & Business Planning,University of St Andrews,99765852,6376.62,Training Awards - Postgraduates
BEIS,UKRI - BBSRC,15/07/2022,Training Awards - Postgraduates,FG - Accounts & Business Planning,The University of Manchester,99765853,6376.62,Training Awards - Postgraduates
BEIS,UKRI - BBSRC,15/07/2022,Training Awards - Postgraduates,FG - Accounts & Business Planning,University of Exeter,99765854,6376.62,Training Awards - Postgraduates
BEIS,UKRI - BBSRC,15/07/2022,Training Awards - Postgraduates,FG - Accounts & Business Planning,University of Exeter,99765855,6376.62,Training Awards - Postgraduates
BEIS,UKRI - BBSRC,15/07/2022,Training Awards - Postgraduates,FG - Accounts & Business Planning,Keele University,99765856,6376.62,Training Awards - Postgraduates
BEIS,UKRI - BBSRC,15/07/2022,Training Awards - Postgraduates,FG - Accounts & Business Planning,University of Edinburgh,99765857,6376.62,Training Awards - Postgraduates
BEIS,UKRI - BBSRC,15/07/2022,Training Awards - Postgraduates,FG - Accounts & Business Planning,Wellcome Trust Sanger Institute,99765858,6376.62,Training Awards - Postgraduates
BEIS,UKRI - BBSRC,15/07/2022,Training Awards - Postgraduates,FG - Accounts & Business Planning,University of Glasgow,99765859,6376.62,Training Awards - Postgraduates
BEIS,UKRI - BBSRC,15/07/2022,Training Awards - Postgraduates,FG - Accounts & Business Planning,University of Sheffield,99765860,6376.62,Training Awards - Postgraduates
BEIS,UKRI - BBSRC,15/07/2022,Training Awards - Postgraduates,FG - Accounts & Business Planning,University of Oxford,99765861,6376.62,Training Awards - Postgraduates
BEIS,UKRI - BBSRC,15/07/2022,Training Awards - Postgraduates,FG - Accounts & Business Planning,University of Birmingham GRANT,99765862,6376.62,Training Awards - Postgraduates
BEIS,UKRI - BBSRC,15/07/2022,Training Awards - Postgraduates,FG - Accounts & Business Planning,The University of Manchester,99765863,6376.62,Training Awards - Postgraduates
BEIS,UKRI - BBSRC,15/07/2022,Training Awards - Postgraduates,FG - Accounts & Business Planning,University of Exeter,99765864,6376.62,Training Awards - Postgraduates
BEIS,UKRI - BBSRC,15/07/2022,Training Awards - Postgraduates,FG - Accounts & Business Planning,University of Exeter,99765865,6376.62,Training Awards - Postgraduates
BEIS,UKRI - BBSRC,15/07/2022,Training Awards - Postgraduates,FG - Accounts & Business Planning,University of Cambridge,99765866,6376.62,Training Awards - Postgraduates
BEIS,UKRI - BBSRC,15/07/2022,Training Awards - Postgraduates,FG - Accounts & Business Planning,University of Cambridge,99765867,6376.62,Training Awards - Postgraduates
BEIS,UKRI - BBSRC,15/07/2022,Training Awards - Postgraduates,FG - Accounts & Business Planning,Babraham Institute,99765868,6376.62,Training Awards - Postgraduates
BEIS,UKRI - BBSRC,15/07/2022,Training Awards - Postgraduates,FG - Accounts & Business Planning,University of Nottingham,99765869,6376.62,Training Awards - Postgraduates
BEIS,UKRI - BBSRC,15/07/2022,Training Awards - Postgraduates,FG - Accounts & Business Planning,University of Huddersfield,99765870,6376.62,Training Awards - Postgraduates
BEIS,UKRI - BBSRC,15/07/2022,Training Awards - Postgraduates,FG - Accounts & Business Planning,University of Leeds,99765871,6376.62,Training Awards - Postgraduates
BEIS,UKRI - BBSRC,15/07/2022,Training Awards - Postgraduates,FG - Accounts & Business Planning,University of Glasgow,99765872,6376.62,Training Awards - Postgraduates
BEIS,UKRI - BBSRC,15/07/2022,Training Awards - Postgraduates,FG - Accounts & Business Planning,University of Edinburgh,99765873,6376.62,Training Awards - Postgraduates
BEIS,UKRI - BBSRC,15/07/2022,Training Awards - Postgraduates,FG - Accounts & Business Planning,University of Strathclyde,99765874,6376.62,Training Awards - Postgraduates
BEIS,UKRI - BBSRC,15/07/2022,Training Awards - Postgraduates,FG - Accounts & Business Planning,University of Sheffield,99765875,5539.85,Training Awards - Postgraduates
BEIS,UKRI - BBSRC,15/07/2022,Training Awards - Postgraduates,FG - Accounts & Business Planning,University of Strathclyde,99765876,6376.62,Training Awards - Postgraduates
BEIS,UKRI - BBSRC,15/07/2022,Training Awards - Postgraduates,FG - Accounts & Business Planning,University of Edinburgh,99765877,6376.62,Training Awards - Postgraduates
BEIS,UKRI - BBSRC,15/07/2022,Training Awards - Postgraduates,FG - Accounts & Business Planning,University of Aberdeen,99765878,6376.62,Training Awards - Postgraduates
BEIS,UKRI - BBSRC,15/07/2022,Training Awards - Postgraduates,FG - Accounts & Business Planning,University of York,99765879,6376.62,Training Awards - Postgraduates
BEIS,UKRI - BBSRC,15/07/2022,Training Awards - Postgraduates,FG - Accounts & Business Planning,University of Edinburgh,99765880,6376.62,Training Awards - Postgraduates
BEIS,UKRI - BBSRC,15/07/2022,Training Awards - Postgraduates,FG - Accounts & Business Planning,Heriot Watt University,99765881,6376.62,Training Awards - Postgraduates
BEIS,UKRI - BBSRC,15/07/2022,Training Awards - Postgraduates,FG - Accounts & Business Planning,University of Edinburgh,99765882,6376.62,Training Awards - Postgraduates
BEIS,UKRI - BBSRC,15/07/2022,Training Awards - Postgraduates,FG - Accounts & Business Planning,University of Greenwich,99765883,89664.25,Training Awards - Postgraduates
BEIS,UKRI - BBSRC,15/07/2022,Training Awards - Postgraduates,FG - Accounts & Business Planning,The University of Manchester,99765884,6267.44,Training Awards - Postgraduates
BEIS,UKRI - BBSRC,15/07/2022,Training Awards - Postgraduates,FG - Accounts & Business Planning,The University of Manchester,99765885,6267.44,Training Awards - Postgraduates
BEIS,UKRI - BBSRC,15/07/2022,Training Awards - Postgraduates,FG - Accounts & Business Planning,The University of Manchester,99765886,6267.44,Training Awards - Postgraduates
BEIS,UKRI - BBSRC,15/07/2022,Training Awards - Postgraduates,FG - Accounts & Business Planning,University of Nottingham,99765887,6267.44,Training Awards - Postgraduates
BEIS,UKRI - BBSRC,15/07/2022,Training Awards - Postgraduates,FG - Accounts & Business Planning,University of Warwick,99765888,6267.44,Training Awards - Postgraduates
BEIS,UKRI - BBSRC,15/07/2022,Training Awards - Postgraduates,FG - Accounts & Business Planning,University of Nottingham,99765889,6267.44,Training Awards - Postgraduates
BEIS,UKRI - BBSRC,15/07/2022,Training Awards - Postgraduates,FG - Accounts & Business Planning,University of Durham,99765890,6267.44,Training Awards - Postgraduates
BEIS,UKRI - BBSRC,15/07/2022,Training Awards - Postgraduates,FG - Accounts & Business Planning,University of Cambridge,99765891,6267.44,Training Awards - Postgraduates
BEIS,UKRI - BBSRC,15/07/2022,Training Awards - Postgraduates,FG - Accounts & Business Planning,National Institute For Agricultural Botany (NIAB),99765892,6267.44,Training Awards - Postgraduates
BEIS,UKRI - BBSRC,15/07/2022,Training Awards - Postgraduates,FG - Accounts & Business Planning,National Institute For Agricultural Botany (NIAB),99765893,6267.44,Training Awards - Postgraduates
BEIS,UKRI - BBSRC,15/07/2022,Training Awards - Postgraduates,FG - Accounts & Business Planning,University of Exeter,99765894,5013.95,Training Awards - Postgraduates
BEIS,UKRI - BBSRC,15/07/2022,Training Awards - Postgraduates,FG - Accounts & Business Planning,University of Reading,99765895,6267.44,Training Awards - Postgraduates
BEIS,UKRI - BBSRC,15/07/2022,Training Awards - Postgraduates,FG - Accounts & Business Planning,National Institute For Agricultural Botany (NIAB),99765896,6267.44,Training Awards - Postgraduates
BEIS,UKRI - BBSRC,15/07/2022,Training Awards - Postgraduates,FG - Accounts & Business Planning,National Institute For Agricultural Botany (NIAB),99765897,6267.44,Training Awards - Postgraduates
BEIS,UKRI - BBSRC,15/07/2022,Training Awards - Postgraduates,FG - Accounts & Business Planning,National Institute For Agricultural Botany (NIAB),99765898,6267.44,Training Awards - Postgraduates
BEIS,UKRI - BBSRC,15/07/2022,Training Awards - Postgraduates,FG - Accounts & Business Planning,Quadram Institute Bioscience,99765899,6267.44,Training Awards - Postgraduates
BEIS,UKRI - BBSRC,15/07/2022,Training Awards - Postgraduates,FG - Accounts & Business Planning,University College London,99765900,6344.49,Training Awards - Postgraduates
BEIS,UKRI - BBSRC,15/07/2022,Training Awards - Postgraduates,FG - Accounts & Business Planning,Lancaster University,99765901,6267.44,Training Awards - Postgraduates
BEIS,UKRI - BBSRC,15/07/2022,Training Awards - Postgraduates,FG - Accounts & Business Planning,University of Nottingham,99765902,4874.66,Training Awards - Postgraduates
BEIS,UKRI - BBSRC,15/07/2022,Training Awards - Postgraduates,FG - Accounts & Business Planning,University of Liverpool,99765903,6267.44,Training Awards - Postgraduates
BEIS,UKRI - BBSRC,15/07/2022,Training Awards - Postgraduates,FG - Accounts & Business Planning,University of Strathclyde,99765904,6267.44,Training Awards - Postgraduates
BEIS,UKRI - BBSRC,15/07/2022,Training Awards - Postgraduates,FG - Accounts & Business Planning,"Royal Holloway, University of London",99765905,6767.44,Training Awards - Postgraduates
BEIS,UKRI - BBSRC,15/07/2022,Training Awards - Postgraduates,FG - Accounts & Business Planning,Lancaster University,99765906,6267.44,Training Awards - Postgraduates
BEIS,UKRI - BBSRC,15/07/2022,Training Awards - Postgraduates,FG - Accounts & Business Planning,University of Reading,99765907,6267.44,Training Awards - Postgraduates
BEIS,UKRI - BBSRC,15/07/2022,Training Awards - Postgraduates,FG - Accounts & Business Planning,Lancaster University,99765908,6267.44,Training Awards - Postgraduates
BEIS,UKRI - BBSRC,15/07/2022,Training Awards - Postgraduates,FG - Accounts & Business Planning,Lancaster University,99765909,6267.44,Training Awards - Postgraduates
BEIS,UKRI - BBSRC,15/07/2022,Training Awards - Postgraduates,FG - Accounts & Business Planning,Lancaster University,99765910,6267.44,Training Awards - Postgraduates
BEIS,UKRI - BBSRC,15/07/2022,Training Awards - Postgraduates,FG - Accounts & Business Planning,University of Liverpool,99765911,6267.44,Training Awards - Postgraduates
BEIS,UKRI - BBSRC,15/07/2022,Training Awards - Postgraduates,FG - Accounts & Business Planning,Queen Mary University of London,99765912,6767.44,Training Awards - Postgraduates
BEIS,UKRI - BBSRC,15/07/2022,Training Awards - Postgraduates,FG - Accounts & Business Planning,King's College London,99765913,6767.44,Training Awards - Postgraduates
BEIS,UKRI - BBSRC,15/07/2022,Training Awards - Postgraduates,FG - Accounts & Business Planning,University of Birmingham GRANT,99765914,6267.44,Training Awards - Postgraduates
BEIS,UKRI - BBSRC,15/07/2022,Training Awards - Postgraduates,FG - Accounts & Business Planning,University of Strathclyde,99765915,6267.44,Training Awards - Postgraduates
BEIS,UKRI - BBSRC,15/07/2022,Training Awards - Postgraduates,FG - Accounts & Business Planning,University of Strathclyde,99765916,6267.44,Training Awards - Postgraduates
BEIS,UKRI - BBSRC,15/07/2022,Training Awards - Postgraduates,FG - Accounts & Business Planning,University of York,99765917,6267.44,Training Awards - Postgraduates
BEIS,UKRI - BBSRC,15/07/2022,Training Awards - Postgraduates,FG - Accounts & Business Planning,University of Newcastle Upon Tyne,99765918,6267.44,Training Awards - Postgraduates
BEIS,UKRI - BBSRC,15/07/2022,Training Awards - Postgraduates,FG - Accounts & Business Planning,University of Edinburgh,99765919,6267.44,Training Awards - Postgraduates
BEIS,UKRI - BBSRC,15/07/2022,Training Awards - Postgraduates,FG - Accounts & Business Planning,Lancaster University,99765920,6267.44,Training Awards - Postgraduates
BEIS,UKRI - BBSRC,15/07/2022,Training Awards - Postgraduates,FG - Accounts & Business Planning,University of Newcastle Upon Tyne,99765921,6267.44,Training Awards - Postgraduates
BEIS,UKRI - BBSRC,15/07/2022,Training Awards - Postgraduates,FG - Accounts & Business Planning,The University of Manchester,99765922,6267.44,Training Awards - Postgraduates
BEIS,UKRI - BBSRC,15/07/2022,Training Awards - Postgraduates,FG - Accounts & Business Planning,The Scottish Association for Marine Science (SAMS Group),99765923,6267.44,Training Awards - Postgraduates
BEIS,UKRI - BBSRC,15/07/2022,Training Awards - Postgraduates,FG - Accounts & Business Planning,University of Edinburgh,99765924,6267.44,Training Awards - Postgraduates
BEIS,UKRI - BBSRC,15/07/2022,Training Awards - Postgraduates,FG - Accounts & Business Planning,University of Edinburgh,99765925,6267.44,Training Awards - Postgraduates
BEIS,UKRI - BBSRC,15/07/2022,Training Awards - Postgraduates,FG - Accounts & Business Planning,The University of Manchester,99765926,6267.44,Training Awards - Postgraduates
BEIS,UKRI - BBSRC,15/07/2022,Training Awards - Postgraduates,FG - Accounts & Business Planning,University of Sheffield,99765927,6267.44,Training Awards - Postgraduates
BEIS,UKRI - BBSRC,15/07/2022,Training Awards - Postgraduates,FG - Accounts & Business Planning,University of Sheffield,99765928,6267.44,Training Awards - Postgraduates
BEIS,UKRI - BBSRC,15/07/2022,Training Awards - Postgraduates,FG - Accounts & Business Planning,University of Cambridge,99765929,6267.44,Training Awards - Postgraduates
BEIS,UKRI - BBSRC,15/07/2022,Training Awards - Postgraduates,FG - Accounts & Business Planning,King's College London,99765930,6767.44,Training Awards - Postgraduates
BEIS,UKRI - BBSRC,15/07/2022,Training Awards - Postgraduates,FG - Accounts & Business Planning,Sheffield Hallam University,99765931,6267.44,Training Awards - Postgraduates
BEIS,UKRI - BBSRC,15/07/2022,Training Awards - Postgraduates,FG - Accounts & Business Planning,University of Leeds,99765932,6267.44,Training Awards - Postgraduates
BEIS,UKRI - BBSRC,15/07/2022,Training Awards - Postgraduates,FG - Accounts & Business Planning,Babraham Institute,99765933,6267.44,Training Awards - Postgraduates
BEIS,UKRI - BBSRC,15/07/2022,Training Awards - Postgraduates,FG - Accounts & Business Planning,The University of Manchester,99765934,4821.11,Training Awards - Postgraduates
BEIS,UKRI - BBSRC,15/07/2022,Training Awards - Postgraduates,FG - Accounts & Business Planning,The University of Manchester,99765935,5571.05,Training Awards - Postgraduates
BEIS,UKRI - BBSRC,15/07/2022,Training Awards - Postgraduates,FG - Accounts & Business Planning,The University of Manchester,99765936,6267.44,Training Awards - Postgraduates
BEIS,UKRI - BBSRC,15/07/2022,Training Awards - Postgraduates,FG - Accounts & Business Planning,University of Nottingham,99765937,6267.44,Training Awards - Postgraduates
BEIS,UKRI - BBSRC,15/07/2022,Training Awards - Postgraduates,FG - Accounts & Business Planning,University of Nottingham,99765938,5222.86,Training Awards - Postgraduates
BEIS,UKRI - BBSRC,15/07/2022,Training Awards - Postgraduates,FG - Accounts & Business Planning,University of Nottingham,99765939,6267.44,Training Awards - Postgraduates
BEIS,UKRI - BBSRC,15/07/2022,Training Awards - Postgraduates,FG - Accounts & Business Planning,Cardiff University,99765940,6267.44,Training Awards - Postgraduates
BEIS,UKRI - BBSRC,15/07/2022,Training Awards - Postgraduates,FG - Accounts & Business Planning,Queen's University Belfast GRANT,99765941,6267.44,Training Awards - Postgraduates
BEIS,UKRI - BBSRC,15/07/2022,Training Awards - Postgraduates,FG - Accounts & Business Planning,University of Cambridge,99765942,6267.44,Training Awards - Postgraduates
BEIS,UKRI - BBSRC,15/07/2022,Training Awards - Postgraduates,FG - Accounts & Business Planning,University of Glasgow,99765943,6267.44,Training Awards - Postgraduates
BEIS,UKRI - BBSRC,15/07/2022,Training Awards - Postgraduates,FG - Accounts & Business Planning,University of Glasgow,99765944,6267.44,Training Awards - Postgraduates
BEIS,UKRI - BBSRC,15/07/2022,Training Awards - Postgraduates,FG - Accounts & Business Planning,University of Glasgow,99765945,6267.44,Training Awards - Postgraduates
BEIS,UKRI - BBSRC,15/07/2022,Training Awards - Postgraduates,FG - Accounts & Business Planning,University College London,99765946,6767.44,Training Awards - Postgraduates
BEIS,UKRI - BBSRC,15/07/2022,Training Awards - Postgraduates,FG - Accounts & Business Planning,University College London,99765947,6767.44,Training Awards - Postgraduates
BEIS,UKRI - BBSRC,15/07/2022,Training Awards - Postgraduates,FG - Accounts & Business Planning,European Bioinformatics Institute,99765948,6267.44,Training Awards - Postgraduates
BEIS,UKRI - BBSRC,15/07/2022,Training Awards - Postgraduates,FG - Accounts & Business Planning,Rothamsted Research Ltd,99765949,6267.44,Training Awards - Postgraduates
BEIS,UKRI - BBSRC,15/07/2022,Training Awards - Postgraduates,FG - Accounts & Business Planning,University of Newcastle Upon Tyne,99765950,6267.44,Training Awards - Postgraduates
BEIS,UKRI - BBSRC,15/07/2022,Training Awards - Postgraduates,FG - Accounts & Business Planning,University of Newcastle Upon Tyne,99765951,6267.44,Training Awards - Postgraduates
BEIS,UKRI - BBSRC,15/07/2022,Training Awards - Postgraduates,FG - Accounts & Business Planning,University of Newcastle Upon Tyne,99765952,6267.44,Training Awards - Postgraduates
BEIS,UKRI - BBSRC,15/07/2022,Training Awards - Postgraduates,FG - Accounts & Business Planning,University of Bristol GRANT,99765953,6267.44,Training Awards - Postgraduates
BEIS,UKRI - BBSRC,15/07/2022,Training Awards - Postgraduates,FG - Accounts & Business Planning,University of Exeter,99765954,6267.44,Training Awards - Postgraduates
BEIS,UKRI - BBSRC,15/07/2022,Training Awards - Postgraduates,FG - Accounts & Business Planning,University of Birmingham GRANT,99765955,6267.44,Training Awards - Postgraduates
BEIS,UKRI - BBSRC,15/07/2022,Training Awards - Postgraduates,FG - Accounts & Business Planning,University of Birmingham GRANT,99765956,6267.44,Training Awards - Postgraduates
BEIS,UKRI - BBSRC,15/07/2022,Training Awards - Postgraduates,FG - Accounts & Business Planning,University of York,99765957,6267.44,Training Awards - Postgraduates
BEIS,UKRI - BBSRC,15/07/2022,Training Awards - Postgraduates,FG - Accounts & Business Planning,University of York,99765958,6267.44,Training Awards - Postgraduates
BEIS,UKRI - BBSRC,15/07/2022,Training Awards - Postgraduates,FG - Accounts & Business Planning,Queen Mary University of London,99765959,6767.44,Training Awards - Postgraduates
BEIS,UKRI - BBSRC,15/07/2022,Training Awards - Postgraduates,FG - Accounts & Business Planning,University of Edinburgh,99765960,6267.44,Training Awards - Postgraduates
BEIS,UKRI - BBSRC,15/07/2022,Training Awards - Postgraduates,FG - Accounts & Business Planning,University of Reading,99765961,6267.44,Training Awards - Postgraduates
BEIS,UKRI - BBSRC,15/07/2022,Training Awards - Postgraduates,FG - Accounts & Business Planning,University of Leeds,99765962,6267.44,Training Awards - Postgraduates
BEIS,UKRI - BBSRC,15/07/2022,Training Awards - Postgraduates,FG - Accounts & Business Planning,University of Durham,99765963,6267.44,Training Awards - Postgraduates
BEIS,UKRI - BBSRC,15/07/2022,Training Awards - Postgraduates,FG - Accounts & Business Planning,Keele University,99765964,6267.44,Training Awards - Postgraduates
BEIS,UKRI - BBSRC,15/07/2022,Training Awards - Postgraduates,FG - Accounts & Business Planning,King's College London,99765965,6767.44,Training Awards - Postgraduates
BEIS,UKRI - BBSRC,15/07/2022,Training Awards - Postgraduates,FG - Accounts & Business Planning,King's College London,99765966,6767.44,Training Awards - Postgraduates
BEIS,UKRI - BBSRC,15/07/2022,Training Awards - Postgraduates,FG - Accounts & Business Planning,Imperial College London,99765967,7222.95,Training Awards - Postgraduates
BEIS,UKRI - BBSRC,15/07/2022,Training Awards - Postgraduates,FG - Accounts & Business Planning,Imperial College London,99765968,6767.44,Training Awards - Postgraduates
BEIS,UKRI - BBSRC,15/07/2022,Training Awards - Postgraduates,FG - Accounts & Business Planning,Imperial College London,99765969,6767.44,Training Awards - Postgraduates
BEIS,UKRI - BBSRC,15/07/2022,Training Awards - Postgraduates,FG - Accounts & Business Planning,University of Liverpool,99765970,6267.44,Training Awards - Postgraduates
BEIS,UKRI - BBSRC,15/07/2022,Training Awards - Postgraduates,FG - Accounts & Business Planning,University of Cambridge,99765971,6267.44,Training Awards - Postgraduates
BEIS,UKRI - BBSRC,15/07/2022,Training Awards - Postgraduates,FG - Accounts & Business Planning,University of Sheffield,99765972,5571.05,Training Awards - Postgraduates
BEIS,UKRI - BBSRC,15/07/2022,Training Awards - Postgraduates,FG - Accounts & Business Planning,University of Southampton GRANT,99765973,6267.44,Training Awards - Postgraduates
BEIS,UKRI - BBSRC,15/07/2022,Training Awards - Postgraduates,FG - Accounts & Business Planning,University of Southampton GRANT,99765974,6267.44,Training Awards - Postgraduates
BEIS,UKRI - BBSRC,15/07/2022,Training Awards - Postgraduates,FG - Accounts & Business Planning,University of Hertfordshire,99765975,6267.44,Training Awards - Postgraduates
BEIS,UKRI - BBSRC,15/07/2022,Training Awards - Postgraduates,FG - Accounts & Business Planning,University of Dundee,99765976,6267.44,Training Awards - Postgraduates
BEIS,UKRI - BBSRC,15/07/2022,Training Awards - Postgraduates,FG - Accounts & Business Planning,University of Oxford,99765977,52783.00,Training Awards - Postgraduates
BEIS,UKRI - BBSRC,15/07/2022,Training Awards - Postgraduates,FG - Accounts & Business Planning,University of Oxford,99765977,332202.00,Training Awards - Postgraduates
BEIS,UKRI - BBSRC,15/07/2022,Training Awards - Postgraduates,FG - Accounts & Business Planning,University of Reading,99765978,287482.50,Training Awards - Postgraduates
BEIS,UKRI - BBSRC,15/07/2022,Training Awards - Postgraduates,FG - Accounts & Business Planning,University of Southampton GRANT,99765979,255540.00,Training Awards - Postgraduates
BEIS,UKRI - BBSRC,15/07/2022,Training Awards - Postgraduates,FG - Accounts & Business Planning,University of Edinburgh,99765980,51108.00,Training Awards - Postgraduates
BEIS,UKRI - BBSRC,15/07/2022,Training Awards - Postgraduates,FG - Accounts & Business Planning,University of Bristol GRANT,99765981,325813.50,Training Awards - Postgraduates
BEIS,UKRI - BBSRC,15/07/2022,Training Awards - Postgraduates,FG - Accounts & Business Planning,The University of Manchester,99765982,325813.50,Training Awards - Postgraduates
BEIS,UKRI - BBSRC,15/07/2022,Training Awards - Postgraduates,FG - Accounts & Business Planning,John Innes Centre,99765983,325813.50,Training Awards - Postgraduates
BEIS,UKRI - BBSRC,15/07/2022,Training Awards - Postgraduates,FG - Accounts & Business Planning,University College London,99765984,564857.00,Training Awards - Postgraduates
BEIS,UKRI - BBSRC,15/07/2022,Training Awards - Postgraduates,FG - Accounts & Business Planning,University of Liverpool,99765985,198043.50,Training Awards - Postgraduates
BEIS,UKRI - BBSRC,15/07/2022,Training Awards - Postgraduates,FG - Accounts & Business Planning,University of Nottingham,99765986,370533.00,Training Awards - Postgraduates
BEIS,UKRI - BBSRC,15/07/2022,Training Awards - Postgraduates,FG - Accounts & Business Planning,University of Warwick,99765987,460174.50,Training Awards - Postgraduates
BEIS,UKRI - BBSRC,15/07/2022,Training Awards - Postgraduates,FG - Accounts & Business Planning,University of Leeds,99765988,255540.00,Training Awards - Postgraduates
BEIS,UKRI - BBSRC,15/07/2022,Training Awards - Postgraduates,FG - Accounts & Business Planning,Queen Mary University of London,99765989,6243.66,Training Awards - Postgraduates
BEIS,UKRI - BBSRC,15/07/2022,Training Awards - Postgraduates,FG - Accounts & Business Planning,National Institute For Agricultural Botany (NIAB),99765990,6189.63,Training Awards - Postgraduates
BEIS,UKRI - BBSRC,15/07/2022,Training Awards - Postgraduates,FG - Accounts & Business Planning,Imperial College London,99765991,6689.63,Training Awards - Postgraduates
BEIS,UKRI - BBSRC,15/07/2022,Training Awards - Postgraduates,FG - Accounts & Business Planning,University of Glasgow,99765992,9281.07,Training Awards - Postgraduates
BEIS,UKRI - BBSRC,15/07/2022,Training Awards - Postgraduates,FG - Accounts & Business Planning,University of Nottingham,99765993,6189.63,Training Awards - Postgraduates
BEIS,UKRI - BBSRC,15/07/2022,Training Awards - Postgraduates,FG - Accounts & Business Planning,University of Cambridge,99765994,5501.89,Training Awards - Postgraduates
BEIS,UKRI - BBSRC,15/07/2022,Training Awards - Postgraduates,FG - Accounts & Business Planning,The University of Manchester,99765995,3808.99,Training Awards - Postgraduates
BEIS,UKRI - BBSRC,15/07/2022,Training Awards - Postgraduates,FG - Accounts & Business Planning,University of Edinburgh,99765996,6189.63,Training Awards - Postgraduates
BEIS,UKRI - BBSRC,15/07/2022,Training Awards - Postgraduates,FG - Accounts & Business Planning,University of Nottingham,99765997,3713.76,Training Awards - Postgraduates
BEIS,UKRI - BBSRC,15/07/2022,Training Awards - Postgraduates,FG - Accounts & Business Planning,University of Aberdeen,99765998,4126.41,Training Awards - Postgraduates
BEIS,UKRI - BBSRC,15/07/2022,Training Awards - Postgraduates,FG - Accounts & Business Planning,University of Sheffield,99765999,4733.24,Training Awards - Postgraduates
BEIS,UKRI - BBSRC,15/07/2022,Training Awards - Postgraduates,FG - Accounts & Business Planning,University of Leeds,99766000,6189.63,Training Awards - Postgraduates
BEIS,UKRI - BBSRC,15/07/2022,Training Awards - Postgraduates,FG - Accounts & Business Planning,The University of Manchester,99766001,1315.35,Training Awards - Postgraduates
BEIS,UKRI - BBSRC,15/07/2022,Training Awards - Postgraduates,FG - Accounts & Business Planning,University of Leeds,99766002,5193.92,Training Awards - Postgraduates
BEIS,UKRI - BBSRC,15/07/2022,Training Awards - Postgraduates,FG - Accounts & Business Planning,Royal Veterinary College,99766003,3904.16,Training Awards - Postgraduates
BEIS,UKRI - BBSRC,15/07/2022,Training Awards - Postgraduates,FG - Accounts & Business Planning,University of Oxford,99766004,515177.25,Training Awards - Postgraduates
BEIS,UKRI - BBSRC,15/07/2022,Training Awards - Postgraduates,FG - Accounts & Business Planning,John Innes Centre,99766005,506782.25,Training Awards - Postgraduates
BEIS,UKRI - BBSRC,15/07/2022,Training Awards - Postgraduates,FG - Accounts & Business Planning,The University of Manchester,99766006,310704.50,Training Awards - Postgraduates
BEIS,UKRI - BBSRC,15/07/2022,Training Awards - Postgraduates,FG - Accounts & Business Planning,University of Cambridge,99766007,610052.25,Training Awards - Postgraduates
BEIS,UKRI - BBSRC,15/07/2022,Training Awards - Postgraduates,FG - Accounts & Business Planning,University of Newcastle Upon Tyne,99766008,178093.75,Training Awards - Postgraduates
BEIS,UKRI - BBSRC,15/07/2022,Training Awards - Postgraduates,FG - Accounts & Business Planning,Imperial College London,99766009,344113.00,Training Awards - Postgraduates
BEIS,UKRI - BBSRC,15/07/2022,Training Awards - Postgraduates,FG - Accounts & Business Planning,University of Warwick,99766010,522937.25,Training Awards - Postgraduates
BEIS,UKRI - BBSRC,15/07/2022,Training Awards - Postgraduates,FG - Accounts & Business Planning,University of Leeds,99766011,478465.25,Training Awards - Postgraduates
BEIS,UKRI - BBSRC,15/07/2022,Training Awards - Postgraduates,FG - Accounts & Business Planning,University of Edinburgh,99766012,306958.00,Training Awards - Postgraduates
BEIS,UKRI - BBSRC,15/07/2022,Training Awards - Postgraduates,FG - Accounts & Business Planning,University College London,99766013,672879.50,Training Awards - Postgraduates
BEIS,UKRI - BBSRC,15/07/2022,Training Awards - Postgraduates,FG - Accounts & Business Planning,University of Bristol GRANT,99766014,318076.00,Training Awards - Postgraduates
BEIS,UKRI - BBSRC,15/07/2022,Training Awards - Postgraduates,FG - Accounts & Business Planning,University of Nottingham,99766015,510140.25,Training Awards - Postgraduates
BEIS,UKRI - BBSRC,15/07/2022,Training Awards - Postgraduates,FG - Accounts & Business Planning,University of Liverpool,99766018,-15678.84,Training Awards - Postgraduates
BEIS,UKRI - BBSRC,15/07/2022,Research Institutes - Capital Grants: Minor Works,IFR,Quadram Institute Bioscience,99769560,20932.70,Research Institutes - Capital Grants: Minor Works
BEIS,UKRI - BBSRC,15/07/2022,Non-staff travel and subsistance,Science Group - Delivery Function,Unspecified,99769974,1189.97,Non-staff travel and subsistance
BEIS,UKRI - BBSRC,15/07/2022,Unspecified,Science Group – Admin Function,Unspecified,99769975,170.00,Council & Committee Honoraria
BEIS,UKRI - BBSRC,15/07/2022,Unspecified,Science Group – Admin Function,Unspecified,99769976,170.00,Council & Committee Honoraria
BEIS,UKRI - BBSRC,19/07/2022,Research Grant Expenditure,Impact & Knowledge Exchange,UKRI - Medical Research Council,99758995,83333.33,Research Grant Expenditure
BEIS,UKRI - BBSRC,19/07/2022,Research Grant Expenditure,International,UKRI - Medical Research Council,99759234,-86111.04,Research Grant Expenditure
BEIS,UKRI - BBSRC,19/07/2022,Unspecified,CE - CPS,UKRI - Engineering & Physical Sciences Research Council,99760589,123469.00,Secondments
BEIS,UKRI - BBSRC,19/07/2022,Institute Grant Expenditure,Research: Strategic National Capability,Rothamsted Research Ltd,99761266,53166.66,Institute Grant Expenditure
BEIS,UKRI - BBSRC,19/07/2022,Research Institutes - Competitive Strategic Grant,Research: Strategic National Capability,Quadram Institute Bioscience,99761289,23624.41,Research Institutes - Competitive Strategic Grant
BEIS,UKRI - BBSRC,19/07/2022,Research Institutes - Competitive Strategic Grant,Research: Strategic National Capability,Quadram Institute Bioscience,99761289,347920.37,Research Institutes - Competitive Strategic Grant
BEIS,UKRI - BBSRC,19/07/2022,Research Institutes - Competitive Strategic Grant,Research: Strategic National Capability,Quadram Institute Bioscience,99761289,46083.32,Research Institutes - Competitive Strategic Grant
BEIS,UKRI - BBSRC,19/07/2022,Research Institutes - Competitive Strategic Grant,Research: Strategic National Capability,Quadram Institute Bioscience,99761289,261521.57,Research Institutes - Competitive Strategic Grant
BEIS,UKRI - BBSRC,19/07/2022,Research Institutes - Competitive Strategic Grant,Research: Strategic National Capability,Quadram Institute Bioscience,99761289,5833.33,Research Institutes - Competitive Strategic Grant
BEIS,UKRI - BBSRC,19/07/2022,Research Institutes - Competitive Strategic Grant,Research: Strategic National Capability,John Innes Centre,99761292,750176.64,Research Institutes - Competitive Strategic Grant
BEIS,UKRI - BBSRC,19/07/2022,Research Institutes - Competitive Strategic Grant,Research: Strategic National Capability,John Innes Centre,99761294,21999.99,Research Institutes - Competitive Strategic Grant
BEIS,UKRI - BBSRC,19/07/2022,Research Institutes - Competitive Strategic Grant,Research: Strategic National Capability,John Innes Centre,99761294,511416.52,Research Institutes - Competitive Strategic Grant
BEIS,UKRI - BBSRC,19/07/2022,Research Institutes - Competitive Strategic Grant,Research: Strategic National Capability,John Innes Centre,99761294,65333.31,Research Institutes - Competitive Strategic Grant
BEIS,UKRI - BBSRC,19/07/2022,Research Institutes - Competitive Strategic Grant,Research: Strategic National Capability,John Innes Centre,99761294,501249.85,Research Institutes - Competitive Strategic Grant
BEIS,UKRI - BBSRC,19/07/2022,Research Institutes - Competitive Strategic Grant,Research: Strategic National Capability,John Innes Centre,99761294,7083.33,Research Institutes - Competitive Strategic Grant
BEIS,UKRI - BBSRC,19/07/2022,Research Institutes - Competitive Strategic Grant,Research: Strategic National Capability,Earlham Institute,99761296,127640.00,Research Institutes - Competitive Strategic Grant
BEIS,UKRI - BBSRC,19/07/2022,Research Institutes - Competitive Strategic Grant,Research: Strategic National Capability,Earlham Institute,99761299,163172.03,Research Institutes - Competitive Strategic Grant
BEIS,UKRI - BBSRC,19/07/2022,Research Institutes - Competitive Strategic Grant,Research: Strategic National Capability,Earlham Institute,99761299,81239.48,Research Institutes - Competitive Strategic Grant
BEIS,UKRI - BBSRC,19/07/2022,Research Institutes - Competitive Strategic Grant,Research: Strategic National Capability,Earlham Institute,99761299,42166.70,Research Institutes - Competitive Strategic Grant
BEIS,UKRI - BBSRC,19/07/2022,Research Institutes - Competitive Strategic Grant,Research: Strategic National Capability,Earlham Institute,99761299,33333.36,Research Institutes - Competitive Strategic Grant
BEIS,UKRI - BBSRC,19/07/2022,Research Institutes - Competitive Strategic Grant,Research: Strategic National Capability,Earlham Institute,99761299,121088.76,Research Institutes - Competitive Strategic Grant
BEIS,UKRI - BBSRC,19/07/2022,Research Institutes - Competitive Strategic Grant,Research: Strategic National Capability,Earlham Institute,99761299,2916.67,Research Institutes - Competitive Strategic Grant
BEIS,UKRI - BBSRC,19/07/2022,Research Grant Expenditure,Science Group,UKRI - Medical Research Council,99762242,4788.57,Research Grant Expenditure
BEIS,UKRI - BBSRC,19/07/2022,Research Grant Expenditure,Science Group,UKRI - Medical Research Council,99762242,27028.12,Research Grant Expenditure
BEIS,UKRI - BBSRC,19/07/2022,Research Grant Expenditure,Research: Responsive,UKRI - Medical Research Council,99762243,2430.52,Research Grant Expenditure
BEIS,UKRI - BBSRC,19/07/2022,Research Grant Expenditure,Research: Responsive,UKRI - Medical Research Council,99762243,3047.14,Research Grant Expenditure
BEIS,UKRI - BBSRC,19/07/2022,Institute Grant Expenditure,Research: Strategic National Capability,Rothamsted Research Ltd,99762882,50000.00,Institute Grant Expenditure
BEIS,UKRI - BBSRC,19/07/2022,Research Institutes - Competitive Strategic Grant,Research: Strategic National Capability,Rothamsted Research Ltd,99762902,111253.33,Research Institutes - Competitive Strategic Grant
BEIS,UKRI - BBSRC,19/07/2022,Research Institutes - Competitive Strategic Grant,Research: Strategic National Capability,Rothamsted Research Ltd,99762902,418416.67,Research Institutes - Competitive Strategic Grant
BEIS,UKRI - BBSRC,19/07/2022,Research Institutes - Competitive Strategic Grant,Research: Strategic National Capability,Rothamsted Research Ltd,99762902,64666.67,Research Institutes - Competitive Strategic Grant
BEIS,UKRI - BBSRC,19/07/2022,Research Institutes - Competitive Strategic Grant,Research: Strategic National Capability,Rothamsted Research Ltd,99762902,197000.00,Research Institutes - Competitive Strategic Grant
BEIS,UKRI - BBSRC,19/07/2022,Research Institutes - Competitive Strategic Grant,Research: Strategic National Capability,Rothamsted Research Ltd,99762902,7083.33,Research Institutes - Competitive Strategic Grant
BEIS,UKRI - BBSRC,19/07/2022,Research Institutes - Competitive Strategic Grant,Research: Strategic National Capability,Babraham Institute,99763012,352459.91,Research Institutes - Competitive Strategic Grant
BEIS,UKRI - BBSRC,19/07/2022,Research Institutes - Competitive Strategic Grant,Research: Strategic National Capability,Babraham Institute,99763012,48750.01,Research Institutes - Competitive Strategic Grant
BEIS,UKRI - BBSRC,19/07/2022,Research Institutes - Competitive Strategic Grant,Research: Strategic National Capability,Babraham Institute,99763012,395666.75,Research Institutes - Competitive Strategic Grant
BEIS,UKRI - BBSRC,19/07/2022,Research Institutes - Competitive Strategic Grant,Research: Strategic National Capability,Babraham Institute,99763012,5833.33,Research Institutes - Competitive Strategic Grant
BEIS,UKRI - BBSRC,19/07/2022,Research Institutes - Competitive Strategic Grant,Research: Strategic National Capability,Babraham Institute,99763015,259006.00,Research Institutes - Competitive Strategic Grant
BEIS,UKRI - BBSRC,19/07/2022,Research Institutes - Competitive Strategic Grant,Research: Strategic National Capability,Rothamsted Research Ltd,99764393,386750.00,Research Institutes - Competitive Strategic Grant
BEIS,UKRI - BBSRC,19/07/2022,Research Institutes - Competitive Strategic Grant,Research: Strategic National Capability,The Pirbright Institute,99764775,817500.04,Research Institutes - Competitive Strategic Grant
BEIS,UKRI - BBSRC,19/07/2022,Research Institutes - Competitive Strategic Grant,Research: Strategic National Capability,The Pirbright Institute,99764775,231500.01,Research Institutes - Competitive Strategic Grant
BEIS,UKRI - BBSRC,19/07/2022,Research Institutes - Competitive Strategic Grant,Research: Strategic National Capability,The Pirbright Institute,99764775,33333.34,Research Institutes - Competitive Strategic Grant
BEIS,UKRI - BBSRC,19/07/2022,Research Institutes - Competitive Strategic Grant,Research: Strategic National Capability,The Pirbright Institute,99764775,201083.35,Research Institutes - Competitive Strategic Grant
BEIS,UKRI - BBSRC,19/07/2022,Research Institutes - Competitive Strategic Grant,Research: Strategic National Capability,The Pirbright Institute,99764775,4166.67,Research Institutes - Competitive Strategic Grant
BEIS,UKRI - BBSRC,19/07/2022,Research Institutes - Competitive Strategic Grant,Research: Strategic National Capability,The Pirbright Institute,99764776,818730.00,Research Institutes - Competitive Strategic Grant
BEIS,UKRI - BBSRC,19/07/2022,Research Institutes - Competitive Strategic Grant,Research: Strategic National Capability,University of Edinburgh,99764784,277179.92,Research Institutes - Competitive Strategic Grant
BEIS,UKRI - BBSRC,19/07/2022,Research Institutes - Competitive Strategic Grant,Research: Strategic National Capability,University of Edinburgh,99764784,206087.50,Research Institutes - Competitive Strategic Grant
BEIS,UKRI - BBSRC,19/07/2022,Research Institutes - Competitive Strategic Grant,Research: Strategic National Capability,University of Edinburgh,99764784,5833.33,Research Institutes - Competitive Strategic Grant
BEIS,UKRI - BBSRC,19/07/2022,Research Institutes - Competitive Strategic Grant,Research: Strategic National Capability,Aberystwyth University,99768692,86360.99,Research Institutes - Competitive Strategic Grant
BEIS,UKRI - BBSRC,19/07/2022,Research Institutes - Competitive Strategic Grant,Research: Strategic National Capability,Aberystwyth University,99768692,46980.67,Research Institutes - Competitive Strategic Grant
BEIS,UKRI - BBSRC,19/07/2022,Research Institutes - Competitive Strategic Grant,Research: Strategic National Capability,Aberystwyth University,99768692,2916.67,Research Institutes - Competitive Strategic Grant
BEIS,UKRI - BBSRC,19/07/2022,Reward & Recognition Team Advances,Balance Sheet,UKRI - Engineering & Physical Sciences Research Council,99769569,127.59,Reward & Recognition Team Advances
BEIS,UKRI - BBSRC,19/07/2022,Research Institutes - Competitive Strategic Grant,Research: Strategic National Capability,University of Edinburgh,99770282,138941.33,Research Institutes - Competitive Strategic Grant
BEIS,UKRI - BBSRC,19/07/2022,Unspecified,Science Group – Admin Function,Unspecified,99770675,170.00,Council & Committee Honoraria
BEIS,UKRI - BBSRC,19/07/2022,Unspecified,Science Group – Admin Function,Unspecified,99770676,170.00,Council & Committee Honoraria
BEIS,UKRI - BBSRC,19/07/2022,Research Institutes - Capital Grants: Minor Works,Mid-Range Equipment,Babraham Institute,99771772,2429.21,Research Institutes - Capital Grants: Minor Works
BEIS,UKRI - BBSRC,20/07/2022,Unspecified,CE - IRU,Unspecified,99757152,4838.32,Legal & Professional Services
BEIS,UKRI - BBSRC,20/07/2022,Research Institutes - Capital Grants: Major Works,Pirbright,The Pirbright Institute,99763483,4957278.53,Research Institutes - Capital Grants: Major Works
BEIS,UKRI - BBSRC,22/07/2022,Unspecified,FG - Estates,Womble Bond Dickinson LLP,99772120,1496.40,Legal & Professional Services
BEIS,UKRI - BBSRC,25/07/2022,Research Grant Expenditure,SPF W1 EMBL EBI,EMBL (European Molecular Biology Laboratory),99761301,290916.40,Research Grant Expenditure
BEIS,UKRI - BBSRC,25/07/2022,Research Institutes - Capital Grants: Minor Works,Rothamsted Research,Rothamsted Research Ltd,99767464,20116.80,Research Institutes - Capital Grants: Minor Works
BEIS,UKRI - BBSRC,25/07/2022,Research Institutes - Capital Grants: Minor Works,IFR,Quadram Institute Bioscience,99769559,75719.21,Research Institutes - Capital Grants: Minor Works
BEIS,UKRI - BBSRC,25/07/2022,Research Institutes - Capital Grants: Minor Works,TGAC,Earlham Institute,99769689,74127.00,Research Institutes - Capital Grants: Minor Works
BEIS,UKRI - BBSRC,25/07/2022,Research Institutes - Capital Grants: Minor Works,Rothamsted Research,Rothamsted Research Ltd,99770051,22423.60,Research Institutes - Capital Grants: Minor Works
BEIS,UKRI - BBSRC,25/07/2022,Research Grant Expenditure,SPF W1 EMBL EBI,EMBL (European Molecular Biology Laboratory),99771823,11804.24,Research Grant Expenditure
BEIS,UKRI - BBSRC,25/07/2022,Research Grant Expenditure,SPF W1 EMBL EBI,EMBL (European Molecular Biology Laboratory),99771827,1524.10,Research Grant Expenditure
BEIS,UKRI - BBSRC,25/07/2022,Research Institutes - Capital Grants: Minor Works,JIC,John Innes Centre,99772030,82072.80,Research Institutes - Capital Grants: Minor Works
BEIS,UKRI - BBSRC,25/07/2022,Research Institutes - Capital Grants: Minor Works,Rothamsted Research,Rothamsted Research Ltd,99772231,46812.79,Research Institutes - Capital Grants: Minor Works
BEIS,UKRI - BBSRC,25/07/2022,Marketing & PR,CE - CPS,Unspecified,99773364,800.00,Marketing & PR
BEIS,UKRI - BBSRC,25/07/2022,Research Institutes - Capital Grants: Minor Works,Rothamsted Research,Rothamsted Research Ltd,99773882,-199.99,Research Institutes - Capital Grants: Minor Works
BEIS,UKRI - BBSRC,25/07/2022,T&S UK - Other Charges,FG - Estates,Unspecified,99774201,6.90,T&S UK - Other Charges
BEIS,UKRI - BBSRC,25/07/2022,T&S UK - Subsistence,FG - Estates,Unspecified,99774201,4.85,T&S UK - Subsistence
BEIS,UKRI - BBSRC,25/07/2022,T&S UK - Subsistence,FG - Estates,Unspecified,99774201,10.00,T&S UK - Subsistence
BEIS,UKRI - BBSRC,26/07/2022,Purchase of non capital equipment,Innovation and Skills Group CDSU,Abbey Business Interiors Ltd,99737693,289.20,Purchase of non capital equipment
BEIS,UKRI - BBSRC,26/07/2022,Training Awards - Postgraduates,Innovation and Skills Group,UKRI - Economic & Social Research Council,99773650,45651.18,Training Awards - Postgraduates
BEIS,UKRI - BBSRC,26/07/2022,Unspecified,Science Group – Admin Function,Unspecified,99774423,340.00,Council & Committee Honoraria
BEIS,UKRI - BBSRC,26/07/2022,Unspecified,Science Group – Admin Function,Unspecified,99774424,340.00,Council & Committee Honoraria
BEIS,UKRI - BBSRC,26/07/2022,Unspecified,Science Group – Admin Function,Unspecified,99774425,340.00,Council & Committee Honoraria
BEIS,UKRI - BBSRC,26/07/2022,Unspecified,Science Group – Admin Function,Unspecified,99774426,340.00,Council & Committee Honoraria
BEIS,UKRI - BBSRC,26/07/2022,Unspecified,Science Group – Admin Function,Unspecified,99774427,340.00,Council & Committee Honoraria
BEIS,UKRI - BBSRC,26/07/2022,Unspecified,Science Group – Admin Function,Unspecified,99774428,340.00,Council & Committee Honoraria
BEIS,UKRI - BBSRC,26/07/2022,Unspecified,Science Group – Admin Function,Unspecified,99774429,340.00,Council & Committee Honoraria
BEIS,UKRI - BBSRC,26/07/2022,Unspecified,Science Group – Admin Function,Unspecified,99774430,340.00,Council & Committee Honoraria
BEIS,UKRI - BBSRC,26/07/2022,Unspecified,Science Group – Admin Function,Unspecified,99774431,340.00,Council & Committee Honoraria
BEIS,UKRI - BBSRC,26/07/2022,Unspecified,Science Group – Admin Function,Unspecified,99774432,340.00,Council & Committee Honoraria
BEIS,UKRI - BBSRC,26/07/2022,Unspecified,Science Group – Admin Function,Unspecified,99774433,340.00,Council & Committee Honoraria
BEIS,UKRI - BBSRC,26/07/2022,Unspecified,Science Group – Admin Function,Unspecified,99774434,340.00,Council & Committee Honoraria
BEIS,UKRI - BBSRC,26/07/2022,Unspecified,Science Group – Admin Function,Unspecified,99774435,340.00,Council & Committee Honoraria
BEIS,UKRI - BBSRC,26/07/2022,Unspecified,Science Group – Admin Function,Unspecified,99774436,460.00,Council & Committee Honoraria
BEIS,UKRI - BBSRC,26/07/2022,Unspecified,Science Group – Admin Function,Unspecified,99774437,340.00,Council & Committee Honoraria
BEIS,UKRI - BBSRC,26/07/2022,Unspecified,Science Group – Admin Function,Unspecified,99774438,460.00,Council & Committee Honoraria
BEIS,UKRI - BBSRC,26/07/2022,Unspecified,Science Group – Admin Function,Unspecified,99774439,340.00,Council & Committee Honoraria
BEIS,UKRI - BBSRC,26/07/2022,Unspecified,Science Group – Admin Function,Unspecified,99774440,340.00,Council & Committee Honoraria
BEIS,UKRI - BBSRC,26/07/2022,Unspecified,Science Group – Admin Function,Unspecified,99774441,340.00,Council & Committee Honoraria
BEIS,UKRI - BBSRC,26/07/2022,Unspecified,Science Group – Admin Function,Unspecified,99774442,340.00,Council & Committee Honoraria
BEIS,UKRI - BBSRC,26/07/2022,Unspecified,Science Group – Admin Function,Unspecified,99774443,340.00,Council & Committee Honoraria
BEIS,UKRI - BBSRC,26/07/2022,Unspecified,Science Group – Admin Function,Unspecified,99774444,340.00,Council & Committee Honoraria
BEIS,UKRI - BBSRC,26/07/2022,Unspecified,Science Group – Admin Function,Unspecified,99774445,340.00,Council & Committee Honoraria
BEIS,UKRI - BBSRC,26/07/2022,Unspecified,Science Group – Admin Function,Unspecified,99774446,340.00,Council & Committee Honoraria
BEIS,UKRI - BBSRC,26/07/2022,Unspecified,Science Group – Admin Function,Unspecified,99774447,340.00,Council & Committee Honoraria
BEIS,UKRI - BBSRC,26/07/2022,Unspecified,Science Group – Admin Function,Unspecified,99774448,340.00,Council & Committee Honoraria
BEIS,UKRI - BBSRC,26/07/2022,Unspecified,Science Group – Admin Function,Unspecified,99774449,340.00,Council & Committee Honoraria
BEIS,UKRI - BBSRC,26/07/2022,Unspecified,Science Group – Admin Function,Unspecified,99774450,460.00,Council & Committee Honoraria
BEIS,UKRI - BBSRC,26/07/2022,Unspecified,Science Group – Admin Function,Unspecified,99774451,340.00,Council & Committee Honoraria
BEIS,UKRI - BBSRC,26/07/2022,Unspecified,Science Group – Admin Function,Unspecified,99774452,340.00,Council & Committee Honoraria
BEIS,UKRI - BBSRC,26/07/2022,Unspecified,Science Group – Admin Function,Unspecified,99774453,340.00,Council & Committee Honoraria
BEIS,UKRI - BBSRC,26/07/2022,Unspecified,Science Group – Admin Function,Unspecified,99774454,340.00,Council & Committee Honoraria
BEIS,UKRI - BBSRC,26/07/2022,Unspecified,Science Group – Admin Function,Unspecified,99774455,460.00,Council & Committee Honoraria
BEIS,UKRI - BBSRC,26/07/2022,Unspecified,Science Group – Admin Function,Unspecified,99774456,340.00,Council & Committee Honoraria
BEIS,UKRI - BBSRC,26/07/2022,Unspecified,Science Group – Admin Function,Unspecified,99774457,460.00,Council & Committee Honoraria
BEIS,UKRI - BBSRC,26/07/2022,Unspecified,Science Group – Admin Function,Unspecified,99774458,340.00,Council & Committee Honoraria
BEIS,UKRI - BBSRC,26/07/2022,Unspecified,Science Group – Admin Function,Unspecified,99774459,340.00,Council & Committee Honoraria
BEIS,UKRI - BBSRC,26/07/2022,Unspecified,Science Group – Admin Function,Unspecified,99774460,340.00,Council & Committee Honoraria
BEIS,UKRI - BBSRC,26/07/2022,Unspecified,Science Group – Admin Function,Unspecified,99774461,340.00,Council & Committee Honoraria
BEIS,UKRI - BBSRC,26/07/2022,Research Grant Expenditure,SPF W1 EMBL EBI,EMBL (European Molecular Biology Laboratory),99774505,305.88,Research Grant Expenditure
BEIS,UKRI - BBSRC,26/07/2022,Research Grant Expenditure,SPF W1 EMBL EBI,EMBL (European Molecular Biology Laboratory),99774562,9123.40,Research Grant Expenditure
BEIS,UKRI - BBSRC,26/07/2022,Research Institutes - Capital Grants: Minor Works,Pirbright,The Pirbright Institute,99774575,1546.26,Research Institutes - Capital Grants: Minor Works
BEIS,UKRI - BBSRC,26/07/2022,Research Institutes - Capital Grants: Major Works,Pirbright,The Pirbright Institute,99774581,14511.60,Research Institutes - Capital Grants: Major Works
BEIS,UKRI - BBSRC,27/07/2022,T&S UK - Accommodation,Innovation and Skills Group,Unspecified,99771422,96.00,T&S UK - Accommodation
BEIS,UKRI - BBSRC,27/07/2022,Research Institutes - Capital Grants: Minor Works,Mid-Range Equipment,Babraham Institute,99771774,48069.88,Research Institutes - Capital Grants: Minor Works
BEIS,UKRI - BBSRC,27/07/2022,Security Services,FG - Estates,Babraham Institute,99774543,8400.00,Security Services
BEIS,UKRI - BBSRC,27/07/2022,Research Institutes - Capital Grants: Minor Works,Mid-Range Equipment,The Pirbright Institute,99774576,110103.12,Research Institutes - Capital Grants: Minor Works
BEIS,UKRI - BBSRC,27/07/2022,Research Institutes - Capital Grants: Minor Works,Mid-Range Equipment,The Pirbright Institute,99774858,18946.92,Research Institutes - Capital Grants: Minor Works
BEIS,UKRI - BBSRC,27/07/2022,Fees (Including College Members),Science Group – Admin Function,Unspecified,99775740,170.00,Fees (Including College Members)
BEIS,UKRI - BBSRC,27/07/2022,Fees (Including College Members),Science Group – Admin Function,Unspecified,99775741,170.00,Fees (Including College Members)
BEIS,UKRI - BBSRC,27/07/2022,Fees (Including College Members),Science Group – Admin Function,Unspecified,99775742,170.00,Fees (Including College Members)
BEIS,UKRI - BBSRC,27/07/2022,Fees (Including College Members),Science Group – Admin Function,Unspecified,99775743,170.00,Fees (Including College Members)
BEIS,UKRI - BBSRC,27/07/2022,Fees (Including College Members),Science Group – Admin Function,Unspecified,99775744,170.00,Fees (Including College Members)
BEIS,UKRI - BBSRC,27/07/2022,Fees (Including College Members),Science Group – Admin Function,Unspecified,99775745,230.00,Fees (Including College Members)
BEIS,UKRI - BBSRC,27/07/2022,Fees (Including College Members),Science Group – Admin Function,Unspecified,99775746,170.00,Fees (Including College Members)
BEIS,UKRI - BBSRC,27/07/2022,Fees (Including College Members),Science Group – Admin Function,Unspecified,99775747,170.00,Fees (Including College Members)
BEIS,UKRI - BBSRC,27/07/2022,Fees (Including College Members),Science Group – Admin Function,Unspecified,99775748,170.00,Fees (Including College Members)
BEIS,UKRI - BBSRC,27/07/2022,Fees (Including College Members),Science Group – Admin Function,Unspecified,99775749,170.00,Fees (Including College Members)
BEIS,UKRI - BBSRC,27/07/2022,Fees (Including College Members),Science Group – Admin Function,Unspecified,99775750,170.00,Fees (Including College Members)
BEIS,UKRI - BBSRC,27/07/2022,Fees (Including College Members),Science Group – Admin Function,Unspecified,99775751,170.00,Fees (Including College Members)
BEIS,UKRI - BBSRC,27/07/2022,Fees (Including College Members),Science Group – Admin Function,Unspecified,99775752,170.00,Fees (Including College Members)
BEIS,UKRI - BBSRC,27/07/2022,Fees (Including College Members),Science Group – Admin Function,Unspecified,99775753,170.00,Fees (Including College Members)
BEIS,UKRI - BBSRC,27/07/2022,Fees (Including College Members),Science Group – Admin Function,Unspecified,99775754,170.00,Fees (Including College Members)
BEIS,UKRI - BBSRC,27/07/2022,Fees (Including College Members),Science Group – Admin Function,Unspecified,99775755,170.00,Fees (Including College Members)
BEIS,UKRI - BBSRC,27/07/2022,Fees (Including College Members),Science Group – Admin Function,Unspecified,99775756,170.00,Fees (Including College Members)
BEIS,UKRI - BBSRC,27/07/2022,Fees (Including College Members),Science Group – Admin Function,Unspecified,99775757,170.00,Fees (Including College Members)
BEIS,UKRI - BBSRC,27/07/2022,Unspecified,Science Group,European Plant Phenotyping Research Infrastructure e.V,99775827,16699.01,Legal & Professional Services
BEIS,UKRI - BBSRC,28/07/2022,T&S UK - Public Transport,Innovation and Skills Group,Unspecified,99775277,7.25,T&S UK - Public Transport
BEIS,UKRI - BBSRC,28/07/2022,T&S UK - Subsistence,Innovation and Skills Group,Unspecified,99775277,19.88,T&S UK - Subsistence
BEIS,UKRI - BBSRC,28/07/2022,T&S UK - Subsistence,Innovation and Skills Group,Unspecified,99775277,9.10,T&S UK - Subsistence
BEIS,UKRI - BBSRC,28/07/2022,T&S UK - Public Transport,Innovation and Skills Group,Unspecified,99775278,51.00,T&S UK - Public Transport
BEIS,UKRI - BBSRC,28/07/2022,T&S UK - Other Charges,CIMG - Information Management,Unspecified,99775279,23.79,T&S UK - Other Charges
BEIS,UKRI - BBSRC,28/07/2022,T&S Overseas - Accommodation,Science Group – Admin Function,Unspecified,99775280,320.16,T&S Overseas - Accommodation
BEIS,UKRI - BBSRC,28/07/2022,T&S Overseas - Public Transport,Science Group – Admin Function,Unspecified,99775280,8.77,T&S Overseas - Public Transport
BEIS,UKRI - BBSRC,28/07/2022,T&S Overseas - Subsistence,Science Group – Admin Function,Unspecified,99775280,25.39,T&S Overseas - Subsistence
BEIS,UKRI - BBSRC,28/07/2022,Conferences & Seminars,SPF W2 Food Systems,University of Liverpool,99776022,5215.50,Conferences & Seminars
BEIS,UKRI - BBSRC,29/07/2022,T&S UK - Public Transport,Innovation and Skills Group,Unspecified,99769373,6.60,T&S UK - Public Transport
BEIS,UKRI - BBSRC,29/07/2022,T&S UK - Subsistence,Innovation and Skills Group,Unspecified,99769373,25.00,T&S UK - Subsistence
BEIS,UKRI - BBSRC,29/07/2022,T&S UK - Subsistence,Innovation and Skills Group,Unspecified,99769373,15.00,T&S UK - Subsistence
BEIS,UKRI - BBSRC,29/07/2022,Unspecified,SPF W2 Food Systems,University of Leeds,99776155,9819.00,Legal & Professional Services
BEIS,UKRI - BBSRC,29/07/2022,T&S UK - Subsistence,Innovation and Skills Group,Unspecified,99776215,15.00,T&S UK - Subsistence
BEIS,UKRI - BBSRC,29/07/2022,T&S UK - Subsistence,Innovation and Skills Group,Unspecified,99776215,4.00,T&S UK - Subsistence
BEIS,UKRI - BBSRC,29/07/2022,Research Grant Expenditure,SPF W1 EMBL EBI,EMBL (European Molecular Biology Laboratory),99776815,158975.48,Research Grant Expenditure
BEIS,UKRI - UKRI,01/07/2022,Purchase of non capital equipment,UKRI - Culture Leadership and Learning,Abbey Business Interiors Ltd,99375713,422.40,Purchase of non capital equipment
BEIS,UKRI - UKRI,01/07/2022,Unspecified,UKRI - Digital Data and Technology Project Costs,Precision Resource Group Ltd T/A iO,99594727,1974.00,Contract Staff
BEIS,UKRI - UKRI,01/07/2022,Unspecified,UKRI - Digital Data and Technology Project Costs,Precision Resource Group Ltd T/A iO,99706718,1974.00,Contract Staff
BEIS,UKRI - UKRI,01/07/2022,Unspecified,UKRI - Digital Data and Technology Project Costs,Precision Resource Group Ltd T/A iO,99730731,1974.00,Contract Staff
BEIS,UKRI - UKRI,01/07/2022,Unspecified,UKRI - Digital Data and Technology Project Costs,Precision Resource Group Ltd T/A iO,99730731,493.50,Contract Staff
BEIS,UKRI - UKRI,01/07/2022,Unspecified,UKRI - Digital Data and Technology Project Costs,LA International Computer Consultants Ltd,99735831,3593.40,Contract Staff
BEIS,UKRI - UKRI,01/07/2022,Unspecified,UKRI - Digital Data and Technology Project Costs,LA International Computer Consultants Ltd,99736751,3593.40,Contract Staff
BEIS,UKRI - UKRI,01/07/2022,Unspecified,UKRI - Digital Data and Technology Project Costs,LA International Computer Consultants Ltd,99736753,2874.72,Contract Staff
BEIS,UKRI - UKRI,01/07/2022,Unspecified,UKRI - Digital Data and Technology Project Costs,LA International Computer Consultants Ltd,99736754,2874.72,Contract Staff
BEIS,UKRI - UKRI,01/07/2022,Unspecified,UKRI - Digital Data and Technology Project Costs,LA International Computer Consultants Ltd,99736756,3593.40,Contract Staff
BEIS,UKRI - UKRI,01/07/2022,Unspecified,UKRI - Digital Data and Technology Project Costs,LA International Computer Consultants Ltd,99736759,2874.72,Contract Staff
BEIS,UKRI - UKRI,01/07/2022,Unspecified,UKRI - Digital Data and Technology Project Costs,Precision Resource Group Ltd T/A iO,99737350,2467.50,Contract Staff
BEIS,UKRI - UKRI,01/07/2022,Unspecified,UKRI - Digital Data and Technology Project Costs,LA International Computer Consultants Ltd,99737531,3593.40,Contract Staff
BEIS,UKRI - UKRI,01/07/2022,Unspecified,UKRI - Digital Data and Technology Project Costs,Precision Resource Group Ltd T/A iO,99739180,3240.00,Contract Staff
BEIS,UKRI - Research England,01/07/2022,Meetings & Catering,RE - Research Excellence Framework (REF),Academy of Medical Sciences,99740002,1204.80,Meetings & Catering
BEIS,UKRI - Research England,01/07/2022,Meetings & Catering,RE - Research Excellence Framework (REF),Academy of Medical Sciences,99740002,427.20,Meetings & Catering
BEIS,UKRI - UKRI,01/07/2022,Unspecified,UKRI - Digital Data and Technology Project Costs,Precision Resource Group Ltd T/A iO,99740045,2467.50,Contract Staff
BEIS,UKRI - UKRI,01/07/2022,Unspecified,UKRI - Digital Data and Technology Project Costs,Precision Resource Group Ltd T/A iO,99750100,1944.00,Contract Staff
BEIS,UKRI - UKRI,01/07/2022,Unspecified,UKRI - Digital Data and Technology Project Costs,Precision Resource Group Ltd T/A iO,99750106,1974.00,Contract Staff
BEIS,UKRI - UKRI,01/07/2022,Unspecified,UKRI - Digital Data and Technology Project Costs,Alexander Mann Solutions Ltd,99750227,3024.29,Contract Staff
BEIS,UKRI - UKRI,01/07/2022,Unspecified,UKRI - Digital Data and Technology BAU Costs,Precision Resource Group Ltd T/A iO,99753089,17043.00,Contract Staff
BEIS,UKRI - UKRI,01/07/2022,Asset Clearing,UKRI - JBOS,Alert Cascade Ltd,99753107,3600.00,Asset Clearing
BEIS,UKRI - UKRI,01/07/2022,Staff Training,EDI,Advance HE,99754208,335.00,Staff Training
BEIS,UKRI - UKRI,01/07/2022,Staff Training,EDI,Advance HE,99754208,20.00,Staff Training
BEIS,UKRI - UKRI,01/07/2022,Unspecified,UKRI - Digital Data and Technology Project Costs,Alexander Mann Solutions Ltd,99754676,2956.46,Contract Staff
BEIS,UKRI - UKRI,01/07/2022,Unspecified,UKRI - Digital Data and Technology Project Costs,Alexander Mann Solutions Ltd,99754699,3024.29,Contract Staff
BEIS,UKRI - UKRI,01/07/2022,Unspecified,UKRI - Digital Data and Technology Project Costs,Precision Resource Group Ltd T/A iO,99754966,2467.50,Contract Staff
BEIS,UKRI - UKRI,01/07/2022,Unspecified,UKRI - Digital Data and Technology Project Costs,LA International Computer Consultants Ltd,99755291,3593.40,Contract Staff
BEIS,UKRI - UKRI,01/07/2022,Unspecified,UKRI - Digital Data and Technology Project Costs,LA International Computer Consultants Ltd,99755293,3593.40,Contract Staff
BEIS,UKRI - UKRI,01/07/2022,Unspecified,UKRI - Digital Data and Technology Project Costs,LA International Computer Consultants Ltd,99755295,2874.72,Contract Staff
BEIS,UKRI - UKRI,01/07/2022,Unspecified,UKRI - Digital Data and Technology BAU Costs,Alexander Mann Solutions Ltd,99755743,3780.34,Contract Staff
BEIS,UKRI - UKRI,01/07/2022,Telecoms - Non Capital Hardware Costs,UKRI - Digital Data and Technology Recharges,Telefonica UK Ltd (O2),99756462,444.95,Telecoms - Non Capital Hardware Costs
BEIS,UKRI - UKRI,01/07/2022,Unspecified,UKRI - Digital Data and Technology BAU Costs,Alexander Mann Solutions Ltd,99758576,4725.42,Contract Staff
BEIS,UKRI - UKRI,01/07/2022,Unspecified,UKRI - Funding Service,Alexander Mann Solutions Ltd,99758594,4410.42,Contract Staff
BEIS,UKRI - UKRI,01/07/2022,Unspecified,UKRI - Digital Data and Technology Project Costs,Alexander Mann Solutions Ltd,99758602,2956.46,Contract Staff
BEIS,UKRI - UKRI,01/07/2022,T&S UK - Other Charges,UKRI - Grants Policy,Unspecified,99758797,59.50,T&S UK - Other Charges
BEIS,UKRI - EPSRC,01/07/2022,Staff Training,Governance and Planning,Inside Edge Media Training Ltd,99759109,1416.00,Staff Training
BEIS,UKRI - UKRI,01/07/2022,Telecoms - Non Capital Hardware Costs,UKRI - Digital Data and Technology Recharges,Telefonica UK Ltd (O2),99759143,444.95,Telecoms - Non Capital Hardware Costs
BEIS,UKRI - UKRI,01/07/2022,Recruitment Costs,UKRI People and Organisation Development,Agenda Resource Management Ltd,99759399,-23.00,Recruitment Costs
BEIS,UKRI - UKRI,01/07/2022,Recruitment Costs,UKRI People and Organisation Development,Agenda Resource Management Ltd,99759402,-23.00,Recruitment Costs
BEIS,UKRI - UKRI,01/07/2022,Safety Materials & Equipment,UKRI - JRS,Premier Farnell UK Ltd T/A Farnell Onecall,99759570,16.98,Safety Materials & Equipment
BEIS,UKRI - UKRI,01/07/2022,Recruitment Costs,UKRI People and Organisation Development,Agenda Resource Management Ltd,99759641,-48.00,Recruitment Costs
BEIS,UKRI - UKRI,01/07/2022,Recruitment Costs,UKRI People and Organisation Development,Agenda Resource Management Ltd,99759648,-48.00,Recruitment Costs
BEIS,UKRI - Research England,01/07/2022,Unspecified,RE - Research Excellence Framework (REF),University of Dundee,99759941,15341.35,Council & Committee Honoraria
BEIS,UKRI - UKRI,01/07/2022,Unspecified,UKRI - Digital Data and Technology Project Costs,LA International Computer Consultants Ltd,99760428,3593.40,Contract Staff
BEIS,UKRI - UKRI,01/07/2022,Recruitment Costs,UKRI People and Organisation Development,Agenda Resource Management Ltd,99760538,-23.00,Recruitment Costs
BEIS,UKRI - UKRI,01/07/2022,Recruitment Costs,UKRI People and Organisation Development,Agenda Resource Management Ltd,99760540,-23.00,Recruitment Costs
BEIS,UKRI - UKRI,01/07/2022,Corporate Events,UKRI - Procurement and Commercial,Calder Conference Ltd,99760543,1254.96,Corporate Events
BEIS,UKRI - UKRI,01/07/2022,Recruitment Costs,UKRI People and Organisation Development,Agenda Resource Management Ltd,99760544,-23.00,Recruitment Costs
BEIS,UKRI - UKRI,01/07/2022,Recruitment Costs,UKRI People and Organisation Development,Agenda Resource Management Ltd,99760757,2834.22,Recruitment Costs
BEIS,UKRI - EPSRC,01/07/2022,Staff Training,EPSRC Corporate Services,ILX GROUP PLC,99760916,6912.00,Staff Training
BEIS,UKRI - Research England,01/07/2022,Unspecified,RE - Research Excellence Framework (REF),University of Nottingham,99760937,16250.00,Council & Committee Honoraria
BEIS,UKRI - Research England,01/07/2022,Unspecified,RE - Research Excellence Framework (REF),University of Nottingham,99760943,1500.00,Council & Committee Honoraria
BEIS,UKRI - UKRI,01/07/2022,Staff Training,UKRI - Information Governance,Objective Corporation Ltd,99760988,5400.00,Staff Training
BEIS,UKRI - Research England,01/07/2022,Non-staff travel and subsistance,RE - Research Excellence Framework (REF),VW Consulting (Durham) Ltd,99760991,30.00,Non-staff travel and subsistance
BEIS,UKRI - UKRI,01/07/2022,T&S UK - Accommodation,UKRI - Human Resources Support,Baxter Storey Ltd,99761010,169.99,T&S UK - Accommodation
BEIS,UKRI - EPSRC,01/07/2022,T&S UK - Accommodation,Programme Delivery Engineering,Unspecified,99761860,142.00,T&S UK - Accommodation
BEIS,UKRI - UKRI,01/07/2022,Safety Materials & Equipment,UKRI - Health and Safety,Premier Farnell UK Ltd T/A Farnell Onecall,99761939,72.58,Safety Materials & Equipment
BEIS,UKRI - UKRI,01/07/2022,Unspecified,UKRI-SHARP,Hays Specialist Recruitment Ltd,99761986,11763.79,Contract Staff
BEIS,UKRI - UKRI,01/07/2022,Unspecified,UKRI-SHARP,Hays Specialist Recruitment Ltd,99761991,8862.84,Contract Staff
BEIS,UKRI - UKRI,01/07/2022,Consumables,UKRI - JRS,Antalis Ltd t/a Antalis Document Supplies,99762045,348.77,Consumables
BEIS,UKRI - UKRI,01/07/2022,Unspecified,UKRI-SHARP,Hays Specialist Recruitment Ltd,99762085,12428.14,Contract Staff
BEIS,UKRI - UKRI,01/07/2022,Building Rents,UKRI - Corporate Services,Government Property Agency,99762123,531625.00,Building Rents
BEIS,UKRI - UKRI,01/07/2022,Other Bought In Services,UKRI - Risk and Counter Fraud,International SOS Assistance UK Ltd,99762137,98649.40,Other Bought In Services
BEIS,UKRI - Research England,01/07/2022,Unspecified,RE - Research Excellence Framework (REF),Buckinghamshire New University (Bucks New University),99762143,1500.00,Council & Committee Honoraria
